Workbook

Sheet Meni
A1: Дванаестомесечни извештај здравствених установа 2016
A2: Изаберите филијалу, здравствену установу, упишите датум попуњавања, попуните податке о здравственој установи, попуните обрасцe и податке сачувајте кликом на дугме САЧУВАЈ (назив документа треба да буде шифра установе)
C7: 28.02.2017.
C10: Дом здравља "МАЛИ ЗВОРНИК"
C11: МАЛИ ЗВОРНИК
C12: 17813820
C13: 106867296
C14: 840-814661-60
A29: 08 ШАБАЦ | B29: =LEFT(A29,2) -> 08 | D29: 00208015 ДЗ МАЛИ ЗВОРНИК | E29: =LEFT(D29,8) -> 00208015
A30: 01 СУБОТИЦА | B30: 01 | C30: 00201001 ДЗ Б ТОПОЛА | D30: 00208001 ДЗ БОГАТИЋ
A31: 02 ЗРЕЊАНИН | B31: 01 | C31: 00201002 ДЗ М ИЂОШ | D31: 00208002 ДЗ ЉУБОВИЈА
A32: 03 КИКИНДА | B32: 01 | C32: 00201004 ЗЈЗ СУБОТИЦА | D32: 00208005 РХ КОВИЉАЧА
A33: 04 ПАНЧЕВО | B33: 01 | C33: 00201005 АП СУБОТИЦА | D33: 00208006 ЗЈЗ ШАБАЦ
A34: 05 СОМБОР | B34: 01 | C34: 00201006 ДЗ СУБОТИЦА | D34: 00208007 АУ ЛОЗНИЦА
A35: 06 НОВИ САД | B35: 01 | C35: 00201007 ОБ СУБОТИЦА | D35: 00208008 АП ШАБАЦ
A36: 07 СРЕМСКА МИТРОВИЦА | B36: 02 | C36: 00202001 ДЗ ЖИТИШТЕ | D36: 00208009 ОБ ШАБАЦ
A37: 08 ШАБАЦ | B37: 02 | C37: 00202003 ДЗ Н БЕЧЕЈ | D37: 00208010 ДЗ ШАБАЦ
A38: 09 ВАЉЕВО | B38: 02 | C38: 00202004 ДЗ СЕЧАЊ | D38: 00208011 ДЗ ВЛАДИМИРЦИ
A39: 10 СМЕДЕРЕВО | B39: 02 | C39: 00202005 ДЗ С ЦРЊА | D39: 00208012 ДЗ КОЦЕЉЕВА
A40: 11 ПОЖАРЕВАЦ | B40: 02 | C40: 00202007 СП Б МЕЛЕНЦИ | D40: 00208013 ДЗ ЛОЗНИЦА
A41: 12 КРАГУЈЕВАЦ | B41: 02 | C41: 00202008 СП Б ЗРЕЊАНИН | D41: 00208014 ДЗ КРУПАЊ
A42: 13 ЈАГОДИНА | B42: 02 | C42: 00202009 ЗЈЗ ЗРЕЊАНИН | D42: 00208015 ДЗ МАЛИ ЗВОРНИК
A43: 14 БОР | B43: 02 | C43: 00202010 АП ЗРЕЊАНИН | D43: 00208016 ОБ ЛОЗНИЦА
A44: 15 ЗАЈЕЧАР | B44: 02 | C44: 00202011 ДЗ ЗРЕЊАНИН
A45: 16 УЖИЦЕ | B45: 02 | C45: 00202012 ОБ ЗРЕЊАНИН
A46: 17 ЧАЧАК | B46: 03 | C46: 00203001 ДЗ АДА
A47: 18 КРАЉЕВО | B47: 03 | C47: 00203002 ДЗ КАЊИЖА
A48: 19 КРУШЕВАЦ | B48: 03 | C48: 00203003 ДЗ Н КНЕЖЕВАЦ
A49: 20 НИШ | B49: 03 | C49: 00203004 ДЗ ЧОКА
A50: 21 ПРОКУПЉЕ | B50: 03 | C50: 00203007 СП Б Н КНЕЖЕВАЦ
A51: 22 ПИРОТ | B51: 03 | C51: 00203008 РХ КАЊИЖА
A52: 23 ЛЕСКОВАЦ | B52: 03 | C52: 00203009 ЗЈЗ КИКИНДА
A53: 24 ВРАЊЕ | B53: 03 | C53: 00203010 АП КИКИНДА
A54: 25 ГРАЧАНИЦА | B54: 03 | C54: 00203011 ДЗ КИКИНДА
A55: 28 КОСОВСКА МИТРОВИЦА | B55: 03 | C55: 00203012 OБ КИКИНДА
A56: 29 ГЊИЛАНЕ | B56: 03 | C56: 00203013 ДЗ СЕНТА
A57: 30 БЕОГРАД | B57: 03 | C57: 00203014 ОБ СЕНТА
A58: 33 НОВИ ПАЗАР | B58: 03 | C58: 00203015 АП СЕНТА
B59: 04 | C59: 00204001 ДЗ АЛИБУНАР
B60: 04 | C60: 00204002 ДЗ Б ЦРКВА
B61: 04 | C61: 00204003 ДЗ КОВАЧИЦА
B62: 04 | C62: 00204004 ДЗ КОВИН
B63: 04 | C63: 00204005 ДЗ ОПОВО
B64: 04 | C64: 00204006 ДЗ ПЛАНДИШТЕ
B65: 04 | C65: 00204009 СП Б Б ЦРКВА
B66: 04 | C66: 00204010 СП Б ВРШАЦ
B67: 04 | C67: 00204011 СП Б КОВИН
B68: 04 | C68: 00204012 ЗЈЗ ПАНЧЕВО
B69: 04 | C69: 00204013 АП ПАНЧЕВО
B70: 04 | C70: 00204014 АП ВРШАЦ
B71: 04 | C71: 00204015 ДЗ ВРШАЦ
B72: 04 | C72: 00204016 ОБ ВРШАЦ
B73: 04 | C73: 00204017 ДЗ ПАНЧЕВО
B74: 04 | C74: 00204018 ОБ ПАНЧЕВО
B75: 05 | C75: 00205001 ДЗ АПАТИН
B76: 05 | C76: 00205002 ДЗ КУЛА
B77: 05 | C77: 00205003 ДЗ ОЏАЦИ
B78: 05 | C78: 00205005 ЗЈЗ СОМБОР
B79: 05 | C79: 00205006 АП СОМБОР
B80: 05 | C80: 00205007 ДЗ СОМБОР
B81: 05 | C81: 00205008 ОБ СОМБОР
B82: 05 | C82: 00205009 СПБ ЈУНАКОВИЋ АПАТИН
B83: 06 | C83: 00206001 ДЗ БАЧ
B84: 06 | C84: 00206002 ДЗ Б ПАЛАНКА
B85: 06 | C85: 00206003 ДЗ Б ПЕТРОВАЦ
B86: 06 | C86: 00206004 ДЗ БЕОЧИН
B87: 06 | C87: 00206005 ДЗ БЕЧЕЈ
B88: 06 | C88: 00206006 ДЗ ЖАБАЉ
B89: 06 | C89: 00206007 ДЗ СРБОБРАН
B90: 06 | C90: 00206008 ДЗ ТЕМЕРИН
B91: 06 | C91: 00206009 ДЗ ТИТЕЛ
B92: 06 | C92: 00206010 ДЗ Н САД
B93: 06 | C93: 00206012 ТРАНСФУЗИЈА НОВИ САД
B94: 06 | C94: 00206013 ЗЗ РЕУМ Н САД
B95: 06 | C95: 00206014 ИНСТ ЈЗ НОВИ САД
B96: 06 | C96: 00206015 ОНКОЛОГИЈА Н САД
B97: 06 | C97: 00206016 ИНСТ ПЛ БОЛ Н САД
B98: 06 | C98: 00206017 ИНСТ КВБ Н САД
B99: 06 | C99: 00206018 ИНСТ ЗЗ ДЕЦЕ И ОМЛ Н САД
B100: 06 | C100: 00206019 СТОМАТ КЛ Н САД
B101: 06 | C101: 00206020 КЦ Н САД
B102: 06 | C102: 00206021 ЗЗЗ РАДНИКА Н САД
B103: 06 | C103: 00206022 ЗЗЗ СТУДЕНАТА Н САД
B104: 06 | C104: 00206023 ПАСТЕРОВ ЗАВОД НОВИ САД
B105: 06 | C105: 00206024 АП Н САД
B106: 06 | C106: 00206025 ХМП Н САД
B107: 06 | C107: 00206026 ДЗ ВРБАС
B108: 06 | C108: 00206027 ОБ ВРБАС
B109: 06 | C109: 00206028 АП ВРБАС
B110: 06 | C110: 00206029 ВМЦ НОВИ САД
B111: 07 | C111: 00207001 ДЗ ИНЂИЈА
B112: 07 | C112: 00207002 ДЗ ПЕЋИНЦИ
B113: 07 | C113: 00207003 ДЗ РУМА
B114: 07 | C114: 00207004 ДЗ С ПАЗОВА
B115: 07 | C115: 00207005 ДЗ ШИД
B116: 07 | C116: 00207007 СП Б СЛАНКАМЕН
B117: 07 | C117: 00207008 ЗЈЗ С. МИТРОВИЦА
B118: 07 | C118: 00207009 РХ ВРДНИК
B119: 07 | C119: 00207010 АП С МИТРОВИЦА
B120: 07 | C120: 00207011 ДЗ ИРИГ
B121: 07 | C121: 00207012 ДЗ С МИТРОВИЦА
B122: 07 | C122: 00207013 ОБ С МИТРОВИЦА
B123: 08 | C123: 00208001 ДЗ БОГАТИЋ
B124: 08 | C124: 00208002 ДЗ ЉУБОВИЈА
B125: 08 | C125: 00208005 РХ КОВИЉАЧА
B126: 08 | C126: 00208006 ЗЈЗ ШАБАЦ
B127: 08 | C127: 00208007 АУ ЛОЗНИЦА
B128: 08 | C128: 00208008 АП ШАБАЦ
B129: 08 | C129: 00208009 ОБ ШАБАЦ
B130: 08 | C130: 00208010 ДЗ ШАБАЦ
B131: 08 | C131: 00208011 ДЗ ВЛАДИМИРЦИ
B132: 08 | C132: 00208012 ДЗ КОЦЕЉЕВА
B133: 08 | C133: 00208013 ДЗ ЛОЗНИЦА
B134: 08 | C134: 00208014 ДЗ КРУПАЊ
B135: 08 | C135: 00208015 ДЗ МАЛИ ЗВОРНИК
B136: 08 | C136: 00208016 ОБ ЛОЗНИЦА
B137: 09 | C137: 00209001 ДЗ УБ
B138: 09 | C138: 00209003 АП ВАЉЕВО
B139: 09 | C139: 00209004 ДЗ ЛАЈКОВАЦ
B140: 09 | C140: 00209005 ЗЈЗ ВАЉЕВО
B141: 09 | C141: 00209007 ДЗ ВАЉЕВО
B142: 09 | C142: 00209008 ДЗ ОСЕЧИНА
B143: 09 | C143: 00209009 ДЗ ЉИГ
B144: 09 | C144: 00209010 ДЗ МИОНИЦА
B145: 09 | C145: 00209011 ОБ ВАЉЕВО
B146: 10 | C146: 00210002 ОБ С ПАЛАНКА
B147: 10 | C147: 00210003 АП С ПАЛАНКА
B148: 10 | C148: 00210004 АП СМЕДЕРЕВО
B149: 10 | C149: 00210005 ДЗ В ПЛАНА
B150: 10 | C150: 00210006 ДЗ С ПАЛАНКА
B151: 10 | C151: 00210007 АП В ПЛАНА
B152: 10 | C152: 00210008 ОБ СМЕДЕРЕВО
B153: 10 | C153: 00210009 ДЗ СМЕДЕРЕВО
B154: 11 | C154: 00211001 ДЗ В ГРАДИШТЕ
B155: 11 | C155: 00211002 ДЗ ЖАГУБИЦА
B156: 11 | C156: 00211005 ЗЈЗ ПОЖАРЕВАЦ
B157: 11 | C157: 00211006 АП ПОЖАРЕВАЦ
B158: 11 | C158: 00211007 ДЗ ЖАБАРИ
B159: 11 | C159: 00211008 ДЗ ГОЛУБАЦ
B160: 11 | C160: 00211009 ДЗ КУЧЕВО
B161: 11 | C161: 00211010 ДЗ МАЛО ЦРНИЋЕ
B162: 11 | C162: 00211011 ДЗ ПОЖАРЕВАЦ
B163: 11 | C163: 00211012 OБ ПОЖАРЕВАЦ
B164: 11 | C164: 00211013 ДЗ ПЕТРОВАЦ НА МЛАВИ
B165: 11 | C165: 00211014 ОБ ПЕТРОВАЦ НА МЛАВИ
B166: 12 | C166: 00212001 ДЗ КРАГУЈЕВАЦ
B167: 12 | C167: 00212002 ДЗ БАТОЧИНА
B168: 12 | C168: 00212003 ДЗ КНИЋ
B169: 12 | C169: 00212004 ДЗ ЛАПОВО
B170: 12 | C170: 00212005 ДЗ РАЧА
B171: 12 | C171: 00212006 ДЗ ТОПОЛА
B172: 12 | C172: 00212007 ЗЦ АРАНЂЕЛОВАЦ
B173: 12 | C173: 00212008 СТОМАТОЛОГИЈА КРАГУЈЕВАЦ
B174: 12 | C174: 00212009 СП Б БУКОВИЧКА БАЊА
B175: 12 | C175: 00212010 КЦ КРАГУЈЕВАЦ
B176: 12 | C176: 00212011 ИНСТ ЈЗ КРАГУЈЕВАЦ
B177: 12 | C177: 00212012 АП КРАГУЈЕВАЦ
B178: 12 | C178: 00212013 АП АРАНЂЕЛОВАЦ
B179: 12 | C179: 00212014 ХМП КРАГУЈЕВАЦ
B180: 13 | C180: 00213001 ДЗ ДЕСПОТОВАЦ
B181: 13 | C181: 00213002 ДЗ СВИЛАЈНАЦ
B182: 13 | C182: 00213005 ЗЈЗ ЋУПРИЈА
B183: 13 | C183: 00213007 ДЗ РЕКОВАЦ
B184: 13 | C184: 00213008 ДЗ ЈАГОДИНА
B185: 13 | C185: 00213009 ОБ ЈАГОДИНА
B186: 13 | C186: 00213010 АП ЈАГОДИНА
B187: 13 | C187: 00213011 ДЗ ЋУПРИЈА
B188: 13 | C188: 00213012 ОБ ЋУПРИЈА
B189: 13 | C189: 00213014 ДЗ ПАРАЋИН
B190: 13 | C190: 00213015 АП ПАРАЋИН
B191: 13 | C191: 00213016 ОБ ПАРАЋИН
B192: 14 | C192: 00214002 ЗЦ НЕГОТИН
B193: 14 | C193: 00214003 ЗЦ КЛАДОВО
B194: 14 | C194: 00214005 АУ БОР
B195: 14 | C195: 00214006 ДЗ МАЈДАНПЕК
B196: 14 | C196: 00214007 ОБ МАЈДАНПЕК
B197: 14 | C197: 00214008 ДЗ БОР
B198: 14 | C198: 00214009 ОБ БОР
B199: 15 | C199: 00215001 ДЗ БОЉЕВАЦ
B200: 15 | C200: 00215002 ЗЦ КЊАЖЕВАЦ
B201: 15 | C201: 00215003 ЗЦ ЗАЈЕЧАР
B202: 15 | C202: 00215004 РХ ГАМЗИГРАД
B203: 15 | C203: 00215005 ЗЈЗ ЗАЈЕЧАР
B204: 15 | C204: 00215006 АП ЗАЈЕЧАР
B205: 16 | C205: 00216001 ЗЦ УЖИЦЕ
B206: 16 | C206: 00216003 РХ ЗЛАТИБОР
B207: 16 | C207: 00216004 ЗЈЗ УЖИЦЕ
B208: 16 | C208: 00216005 АП УЖИЦЕ
B209: 17 | C209: 00217001 ЗЦ ЧАЧАК
B210: 17 | C210: 00217003 РХ ИВАЊИЦА
B211: 17 | C211: 00217004 ЗЈЗ ЧАЧАК
B212: 17 | C212: 00217005 АП ЧАЧАК
B213: 17 | C213: 00217006 АП Г МИЛАНОВАЦ
B214: 17 | C214: 00217007 ДЗ Г МИЛАНОВАЦ
B215: 17 | C215: 00217008 ОБ Г МИЛАНОВАЦ
B216: 17 | C216: 00217009 ДЗ ЧАЧАК
B217: 17 | C217: 00217010 ДЗ ИВАЊИЦА
B218: 17 | C218: 00217011 ДЗ ЛУЧАНИ
B219: 17 | C219: 00217012 ОБ ЧАЧАК
B220: 18 | C220: 00218001 ДЗ РАШКА
... 161 more rows

Sheet Obrazac1
G2: Образац 1
A7: Назив корисника буџетских средстава
A8: =NazivKorisnika -> Дом здравља "МАЛИ ЗВОРНИК"
A9: ="Седиште: " & Sediste -> Седиште: МАЛИ ЗВОРНИК | D9: ="Матични број: " & MaticniBroj -> Матични број: 17813820
A10: ="ПИБ: " & PIB -> ПИБ: 106867296 | D10: ="Број подрачуна: " & BrojPodracuna -> Број подрачуна: 840-814661-60
A11: Назив надлежног директног корисника буџетских средстава
A14: БИЛАНС СТАЊА
A15: на дан 31.12.2016.
G17: (У хиљадама динара)
A18: Ознака ОП | B18: Број конта | C18: Опис | D18: Износ из претходне године | E18: Износ текуће године
D19: (почетно стање) | E19: Бруто | F19: Исправка вредности | G19: Нето (5 – 6)
A21: 1 | B21: 2 | C21: 3 | D21: 4 | E21: 5 | F21: 6 | G21: 7
C22: АКТИВА
A23: 1001 | B23: 000000 | C23: НEФИНАНСИЈСКА ИМОВИНА (1002 + 1020) | D23: =D24+D42 -> 50,694 | E23: =E24+E42 -> 106,292 | F23: =F24+F42 -> 54,818 | G23: =E23-F23 -> 51,474
A24: 1002 | B24: 010000 | C24: НЕФИНАНСИЈСКА ИМОВИНА У СТАЛНИМ СРЕДСТВИМА (1003 + 1007 + 1009 + 1011 + 1015 + 1018) | D24: =D25+D29+D31+D33+D37+D40 -> 49,510 | E24: =E25+E29+E31+E33+E37+E40 -> 95,883 | F24: =F25+F29+F31+F33+F37+F40 -> 45,472 | G24: 50,411
A25: 1003 | B25: 011000 | C25: НЕКРЕТНИНЕ И ОПРЕМА (од 1004 до 1006) | D25: =SUM(D26:D28) -> 42,587 | E25: =SUM(E26:E28) -> 88,734 | F25: =SUM(F26:F28) -> 45,176 | G25: 43,558
A26: 1004 | B26: 011100 | C26: Зграде и грађевински објекти | D26: 31,611 | E26: 48,119 | F26: 15,217 | G26: 32,902
A27: 1005 | B27: 011200 | C27: Опрема | D27: 10,976 | E27: 40,615 | F27: 29,959 | G27: 10,656
A28: 1006 | B28: 011300 | C28: Остале некретнине и опрема | G28: 0
A29: 1007 | B29: 012000 | C29: КУЛТИВИСАНА ИМОВИНА (1008) | D29: =D30 -> 0 | E29: =E30 -> 0 | F29: =F30 -> 0 | G29: 0
A30: 1008 | B30: 012100 | C30: Култивисана имовина | G30: 0
A31: 1009 | B31: 013000 | C31: ДРАГОЦЕНОСТИ (1010) | D31: =D32 -> 0 | E31: =E32 -> 0 | F31: =F32 -> 0 | G31: 0
A32: 1010 | B32: 013100 | C32: Драгоцености | G32: 0
A33: 1011 | B33: 014000 | C33: ПРИРОДНА ИМОВИНА (од 1012 до 1014) | D33: =SUM(D34:D36) -> 6,801 | E33: =SUM(E34:E36) -> 6,801 | F33: =SUM(F34:F36) -> 0 | G33: 6,801
A34: 1012 | B34: 014100 | C34: Земљиште | D34: 6,801 | E34: 6,801 | G34: 6,801
A35: 1013 | B35: 014200 | C35: Подземна блага | G35: 0
A36: 1014 | B36: 014300 | C36: Шуме и воде | G36: 0
A37: 1015 | B37: 015000 | C37: НЕФИНАНСИЈСКА ИМОВИНА У ПРИПРЕМИ И АВАНСИ (1016 + 1017) | D37: =D38+D39 -> 0 | E37: =E38+E39 -> 0 | F37: =F38+F39 -> 0 | G37: 0
A38: 1016 | B38: 015100 | C38: Нефинансијска имовина у припреми | G38: 0
A39: 1017 | B39: 015200 | C39: Аванси за нефинансијску имовину | G39: =E39-F39 -> 0
A40: 1018 | B40: 016000 | C40: НЕМАТЕРИЈАЛНА ИМОВИНА (1019) | D40: =D41 -> 122 | E40: =E41 -> 348 | F40: =F41 -> 296 | G40: 52
A41: 1019 | B41: 016100 | C41: Нематеријална имовина | D41: 122 | E41: 348 | F41: 296 | G41: 52
A42: 1020 | B42: 020000 | C42: НЕФИНАНСИЈСКА ИМОВИНА У ЗАЛИХАМА (1021 + 1025) | D42: =D43+D51 -> 1,184 | E42: =E43+E51 -> 10,409 | F42: =F43+F51 -> 9,346 | G42: 1,063
A43: 1021 | B43: 021000 | C43: ЗАЛИХЕ (од 1022 до 1024) | D43: =SUM(D44:D50) -> 0 | E43: =SUM(E44:E50) -> 0 | F43: =SUM(F44:F50) -> 0 | G43: 0
A44: 1022 | B44: 021100 | C44: Робне резерве | G44: 0
A45: Ознака ОП | B45: Број конта | C45: Опис | D45: Износ из претходне године | E45: Износ текуће године
D46: (почетно стање) | E46: Бруто | F46: Исправка вредности | G46: Нето (5 – 6)
A48: 1 | B48: 2 | C48: 3 | D48: 4 | E48: 5 | F48: 6 | G48: 7
A49: 1023 | B49: 021200 | C49: Залихе производње | G49: 0
A50: 1024 | B50: 021300 | C50: Роба за даљу продају | G50: 0
A51: 1025 | B51: 022000 | C51: ЗАЛИХЕ СИТНОГ ИНВЕНТАРА И ПОТРОШНОГ МАТЕРИЈАЛА (1026 + 1027) | D51: =D52+D53 -> 1,184 | E51: =E52+E53 -> 10,409 | F51: =F52+F53 -> 9,346 | G51: 1,063
A52: 1026 | B52: 022100 | C52: Залихе ситног инвентара | D52: 308 | E52: 2,371 | F52: 2,240 | G52: 131
A53: 1027 | B53: 022200 | C53: Залихе потрошног материјала | D53: 876 | E53: 8,038 | F53: 7,106 | G53: 932
A54: 1028 | B54: 100000 | C54: ФИНАНСИЈСКА ИМОВИНА (1029 + 1049 + 1067) | D54: =D55+D75+D97 -> 7,995 | E54: =E55+E75+E97 -> 279,038 | F54: =F55+F75+F97 -> 270,602 | G54: 8,436
A55: 1029 | B55: 110000 | C55: ДУГОРОЧНА ФИНАНСИЈСКА ИМОВИНА (1030 + 1040) | D55: =D56+D66 -> 0 | E55: =E56+E66 -> 0 | F55: =F56+F66 -> 0 | G55: 0
A56: 1030 | B56: 111000 | C56: ДУГОРОЧНА ДОМАЋА ФИНАНСИЈСКА ИМОВИНА (од 1031 до 1039) | D56: =SUM(D57:D65) -> 0 | E56: =SUM(E57:E65) -> 0 | F56: =SUM(F57:F65) -> 0 | G56: 0
A57: 1031 | B57: 111100 | C57: Дугорочне домаће хартије од вредности, изузев акција | G57: 0
A58: 1032 | B58: 111200 | C58: Кредити осталим нивоима власти | G58: 0
A59: 1033 | B59: 111300 | C59: Кредити домаћим јавним финансијским институцијама | G59: 0
A60: 1034 | B60: 111400 | C60: Кредити домаћим пословним банкама | G60: 0
A61: 1035 | B61: 111500 | C61: Кредити домаћим јавним нефинансијским институцијама | G61: 0
A62: 1036 | B62: 111600 | C62: Кредити физичким лицима и домаћинствима у земљи | G62: 0
A63: 1037 | B63: 111700 | C63: Кредити домаћим невладиним организацијама | G63: 0
A64: 1038 | B64: 111800 | C64: Кредити домаћим нефинансијским приватним предузећима | G64: 0
A65: 1039 | B65: 111900 | C65: Домаће акције и остали капитал | G65: 0
A66: 1040 | B66: 112000 | C66: ДУГОРОЧНA СТРАНА ФИНАНСИЈСКА ИМОВИНА (од 1041 до 1048) | D66: =SUM(D67:D74) -> 0 | E66: =SUM(E67:E74) -> 0 | F66: =SUM(F67:F74) -> 0 | G66: 0
A67: 1041 | B67: 112100 | C67: Дугорочне стране хартије од вредности, изузев акција | G67: 0
A68: 1042 | B68: 112200 | C68: Кредити страним владама | G68: 0
A69: 1043 | B69: 112300 | C69: Кредити међународним организацијама | G69: 0
A70: 1044 | B70: 112400 | C70: Кредити страним пословним банкама | G70: 0
A71: 1045 | B71: 112500 | C71: Кредити страним нефинансијским институцијама | G71: 0
A72: 1046 | B72: 112600 | C72: Кредити страним невладиним организацијама | G72: 0
A73: 1047 | B73: 112700 | C73: Стране акције и остали капитал | G73: 0
A74: 1048 | B74: 112800 | C74: Страни финансијски деривати | G74: 0
A75: 1049 | B75: 120000 | C75: НОВЧАНА СРЕДСТВА, ПЛЕМЕНИТИ МЕТАЛИ, ХАРТИЈЕ ОД ВРЕДНОСТИ, ПОТРАЖИВАЊА И КРАТКОРОЧНИ ПЛАСМАНИ (1050+ 1060 + 1062) | D75: =D76+D86+D92 -> 2,802 | E75: =E76+E86+E92 -> 250,166 | F75: =F76+F86+F92 -> 247,073 | G75: =E75-F75 -> 3,093
A76: 1050 | B76: 121000 | C76: НОВЧАНА СРЕДСТВА, ПЛЕМЕНИТИ МЕТАЛИ, ХАРТИЈЕ ОД ВРЕДНОСТИ (од 1051 до 1059) | D76: =D77+D78+D79+D80+D81+D82+D83+D84+D85 -> 1,019 | E76: =E77+E78+E79+E80+E81+E82+E83+E84+E85 -> 100,521 | F76: =F77+F78+F79+F80+F81+F82+F83+F84+F85 -> 98,937 | G76: 1,584
A77: 1051 | B77: 121100 | C77: Жиро и текући рачуни | D77: 1,017 | E77: 93,754 | F77: 92,172 | G77: 1,582
A78: 1052 | B78: 121200 | C78: Издвојена новчана средства и акредитиви | G78: 0
A79: 1053 | B79: 121300 | C79: Благајна | E79: 3,206 | F79: 3,206 | G79: 0
A80: 1054 | B80: 121400 | C80: Девизни рачун | G80: 0
A81: 1055 | B81: 121500 | C81: Девизни акредитиви | G81: 0
A82: 1056 | B82: 121600 | C82: Девизна благајна | G82: 0
A83: 1057 | B83: 121700 | C83: Остала новчана средства | D83: 2 | E83: 3,561 | F83: 3,559 | G83: 2
A84: 1058 | B84: 121800 | C84: Племенити метали | G84: 0
A85: 1059 | B85: 121900 | C85: Хартије од вредности | G85: 0
A86: 1060 | B86: 122000 | C86: КРАТКОРОЧНА ПОТРАЖИВАЊА (1061) | D86: =D91 -> 710 | E86: =E91 -> 145,767 | F86: =F91 -> 145,323 | G86: 444
A87: Ознака ОП | B87: Број конта | C87: Опис | D87: Износ из претходне године | E87: Износ текуће године
D88: (почетно стање) | E88: Бруто | F88: Исправка вредности | G88: Нето (5 – 6)
A90: 1 | B90: 2 | C90: 3 | D90: 4 | E90: 5 | F90: 6 | G90: 7
A91: 1061 | B91: 122100 | C91: Потраживања по основу продаје и друга потраживања | D91: 710 | E91: 145,767 | F91: 145,323 | G91: 444
A92: 1062 | B92: 123000 | C92: КРАТКОРОЧНИ ПЛАСМАНИ (од 1063 до 1066) | D92: =SUM(D93:D96) -> 1,073 | E92: =SUM(E93:E96) -> 3,878 | F92: =SUM(F93:F96) -> 2,813 | G92: 1,065
A93: 1063 | B93: 123100 | C93: Краткорочни кредити | G93: 0
A94: 1064 | B94: 123200 | C94: Дати аванси, депозити и кауције | D94: 1,073 | E94: 1,065 | G94: 1,065
A95: 1065 | B95: 123300 | C95: Хартије од вредности намењене продаји | G95: 0
A96: 1066 | B96: 123900 | C96: Остали краткорочни пласмани | E96: 2,813 | F96: 2,813 | G96: 0
A97: 1067 | B97: 130000 | C97: АКТИВНА ВРЕМЕНСКА РАЗГРАНИЧЕЊА (1068) | D97: =D98 -> 5,193 | E97: =E98 -> 28,872 | F97: =F98 -> 23,529 | G97: 5,343
A98: 1068 | B98: 131000 | C98: АКТИВНА ВРЕМЕНСКА РАЗГРАНИЧЕЊА (од 1069 до 1071) | D98: =SUM(D99:D101) -> 5,193 | E98: =SUM(E99:E101) -> 28,872 | F98: =SUM(F99:F101) -> 23,529 | G98: 5,343
A99: 1069 | B99: 131100 | C99: Разграничени расходи до једне године | G99: 0
A100: 1070 | B100: 131200 | C100: Обрачунати неплаћени расходи и издаци | D100: 4,409 | E100: 27,663 | F100: 23,430 | G100: 4,233
A101: 1071 | B101: 131300 | C101: Остала активна временска разграничења | D101: 784 | E101: 1,209 | F101: 99 | G101: 1,110
A102: 1072 | C102: УКУПНА АКТИВА (1001 + 1028) | D102: =D23+D54 -> 58,689 | E102: =E23+E54 -> 385,330 | F102: =F23+F54 -> 325,420 | G102: 59,910
A103: 1073 | B103: 351000 | C103: ВАНБИЛАНСНА АКТИВА | G103: 0
A104: Ознака ОП | B104: Број конта | C104: Опис | F104: Износ
F105: Претходна година | G105: Текућа година
A106: 1 | B106: 2 | C106: 3 | F106: 4 | G106: 5
C107: ПАСИВА
A108: 1074 | B108: 200000 | C108: ОБАВЕЗЕ (1075 + 1099 + 1118 + 1173 + 1198 + 1212) | F108: =F109+F133+F155+F213+F241+F255 -> 6,976 | G108: =G109+G133+G155+G213+G241+G255 -> 6,852
A109: 1075 | B109: 210000 | C109: ДУГОРОЧНЕ ОБАВЕЗЕ (1076 + 1086 + 1093 + 1095 + 1097) | F109: =F110+F120+F127+F129+F131 -> 0 | G109: =G110+G120+G127+G129+G131 -> 0
A110: 1076 | B110: 211000 | C110: ДОМАЋЕ ДУГОРОЧНЕ ОБАВЕЗЕ (од 1077 до 1085) | F110: =SUM(F111:F119) -> 0 | G110: =SUM(G111:G119) -> 0
A111: 1077 | B111: 211100 | C111: Обавезе по основу емитованих хартија од вредности, изузев акција
A112: 1078 | B112: 211200 | C112: Обавезе по основу дугорочних кредита од осталих нивоа власти
A113: 1079 | B113: 211300 | C113: Обавезе по основу дугорочних кредита од домаћих јавних финансијских институција
A114: 1080 | B114: 211400 | C114: Обавезе по основу дугорочних кредита од домаћих пословних банака
A115: 1081 | B115: 211500 | C115: Обавезе по основу дугорочних кредита од осталих домаћих кредитора
A116: 1082 | B116: 211600 | C116: Обавезе по основу дугорочних кредита од домаћинстава у земљи
A117: 1083 | B117: 211700 | C117: Дугорочне обавезе по основу домаћих финансијских деривата
A118: 1084 | B118: 211800 | C118: Дугорочне обавезе по основу домаћих меница
A119: 1085 | B119: 211900 | C119: Дугорочне обавезе за финансијске лизинге
A120: 1086 | B120: 212000 | C120: СТРАНЕ ДУГОРОЧНЕ ОБАВЕЗЕ (од 1087 до 1092) | F120: =SUM(F121:F126) -> 0 | G120: =SUM(G121:G126) -> 0
A121: 1087 | B121: 212100 | C121: Дугорочне стране обавезе по основу емитованих хартија од вредности, изузев акција
A122: 1088 | B122: 212200 | C122: Обавезе по основу дугорочних кредита од страних влада
A123: 1089 | B123: 212300 | C123: Обавезе по основу дугорочних кредита од мултилатералних институција
A124: 1090 | B124: 212400 | C124: Обавезе по основу дугорочних кредита од страних пословних банака
A125: 1091 | B125: 212500 | C125: Обавезе по основу дугорочних кредита од осталих страних кредитора
A126: 1092 | B126: 212600 | C126: Дугорочне обавезе по основу страних финансијских деривата
A127: 1093 | B127: 213000 | C127: ДУГОРОЧНЕ ОБАВЕЗЕ ПО ОСНОВУ ГАРАНЦИЈА (1094) | F127: =F128 -> 0 | G127: =G128 -> 0
A128: 1094 | B128: 213100 | C128: Дугорочне обавезе по основу гаранција
A129: 1095 | B129: 214000 | C129: ОБАВЕЗЕ ПО ОСНОВУ ОТПЛАТЕ ГЛАВНИЦЕ ЗА ФИНАНСИЈСКИ ЛИЗИНГ (1096) | F129: =F130 -> 0 | G129: =G130 -> 0
A130: 1096 | B130: 214100 | C130: Обавезе по основу отплате главнице зa финансијски лизинг
A131: 1097 | B131: 215000 | C131: ОБАВЕЗЕ ПО ОСНОВУ ОТПЛАТА ГАРАНЦИЈА ПО КОМЕРЦИЈАЛНИМ ТРАНСАКЦИЈАМА (1098) | F131: =F132 -> 0 | G131: =G132 -> 0
A132: 1098 | B132: 215100 | C132: Обавезе по основу отплата гаранција по комерцијалним трансакцијама
A133: 1099 | B133: 220000 | C133: КРАТКОРОЧНЕ ОБАВЕЗЕ (1100 + 1109 + 1116) | F133: =F134+F146+F153 -> 0 | G133: =G134+G146+G153 -> 0
A134: 1100 | B134: 221000 | C134: КРАТКОРОЧНЕ ДОМАЋЕ ОБАВЕЗЕ (од 1101 до 1108) | D134: КРАТКОРОЧНЕ ДОМАЋЕ ОБАВЕЗЕ (од 1101 до 1108) | E134: КРАТКОРОЧНЕ ДОМАЋЕ ОБАВЕЗЕ (од 1101 до 1108) | F134: =SUM(F135:F142) -> 0 | G134: =SUM(G135:G142) -> 0
A135: 1101 | B135: 221100 | C135: Краткорочне домаће обавезе по основу емитованих хартија од вредности, изузев акција | D135: Краткорочне домаће обавезе по основу емитованих хартија од вредности, изузев акција | E135: Краткорочне домаће обавезе по основу емитованих хартија од вредности, изузев акција
A136: 1102 | B136: 221200 | C136: Обавезе по основу краткорочних кредита од осталих нивоа власти | D136: Обавезе по основу краткорочних кредита од осталих нивоа власти | E136: Обавезе по основу краткорочних кредита од осталих нивоа власти
A137: 1103 | B137: 221300 | C137: Обавезе по основу краткорочних кредита од домаћих јавних финансијских институција | D137: Обавезе по основу краткорочних кредита од домаћих јавних финансијских институција | E137: Обавезе по основу краткорочних кредита од домаћих јавних финансијских институција
A138: 1104 | B138: 221400 | C138: Обавезе по основу краткорочних кредита од домаћих пословних банака | D138: Обавезе по основу краткорочних кредита од домаћих пословних банака | E138: Обавезе по основу краткорочних кредита од домаћих пословних банака
A139: 1105 | B139: 221500 | C139: Обавезе по основу краткорочних кредита од осталих домаћих кредитора | D139: Обавезе по основу краткорочних кредита од осталих домаћих кредитора | E139: Обавезе по основу краткорочних кредита од осталих домаћих кредитора
A140: 1106 | B140: 221600 | C140: Обавезе по основу краткорочних кредита од домаћинстава у земљи | D140: Обавезе по основу краткорочних кредита од домаћинстава у земљи | E140: Обавезе по основу краткорочних кредита од домаћинстава у земљи
A141: 1107 | B141: 221700 | C141: Краткорочне обавезе по основу домаћих финансијских деривата | D141: Краткорочне обавезе по основу домаћих финансијских деривата | E141: Краткорочне обавезе по основу домаћих финансијских деривата
A142: 1108 | B142: 221800 | C142: Краткорочне обавезе по основу домаћих меница | D142: Краткорочне обавезе по основу домаћих меница | E142: Краткорочне обавезе по основу домаћих меница
A143: Ознака ОП | B143: Број конта | C143: Опис | F143: Износ
F144: Претходна година | G144: Текућа година
A145: 1 | B145: 2 | C145: 3 | F145: 4 | G145: 5
A146: 1109 | B146: 222000 | C146: КРАТКОРОЧНЕ СТРАНЕ ОБАВЕЗЕ (од 1110 до 1115) | D146: КРАТКОРОЧНЕ СТРАНЕ ОБАВЕЗЕ (од 1110 до 1115) | E146: КРАТКОРОЧНЕ СТРАНЕ ОБАВЕЗЕ (од 1110 до 1115) | F146: =F147+F148+F149+F150+F151+F152 -> 0 | G146: =G147+G148+G149+G150+G151+G152 -> 0
A147: 1110 | B147: 222100 | C147: Краткорочне стране обавезе по основу емитованих хартија од вредности, изузев акција | D147: Краткорочне стране обавезе по основу емитованих хартија од вредности, изузев акција | E147: Краткорочне стране обавезе по основу емитованих хартија од вредности, изузев акција
A148: 1111 | B148: 222200 | C148: Обавезе по основу краткорочних кредита од страних влада
A149: 1112 | B149: 222300 | C149: Обавезе по основу краткорочних кредита од мултилатералних институција
A150: 1113 | B150: 222400 | C150: Обавезе по основу краткорочних кредита од страних пословних банака
A151: 1114 | B151: 222500 | C151: Обавезе по основу краткорочних кредита од осталих страних кредитора
A152: 1115 | B152: 222600 | C152: Краткорочне обавезе по основу страних финансијских деривата
A153: 1116 | B153: 223000 | C153: КРАТКОРОЧНЕ ОБАВЕЗЕ ПО ОСНОВУ ГАРАНЦИЈА (1117) | F153: =F154 -> 0 | G153: =G154 -> 0
A154: 1117 | B154: 223100 | C154: Краткорочне обавезе по основу гаранција
A155: 1118 | B155: 230000 | C155: ОБАВЕЗЕ ПО ОСНОВУ РАСХОДА ЗА ЗАПОСЛЕНЕ (1119 + 1125 + 1131 + 1137 + 1141+ 1147 + 1153 + 1161 + 1167) | F155: =F156+F162+F168+F174+F178+F187+F193+F201+F207 -> 0 | G155: =G156+G162+G168+G174+G178+G187+G193+G201+G207 -> 0
A156: 1119 | B156: 231000 | C156: ОБАВЕЗЕ ЗА ПЛАТЕ И ДОДАТКЕ (од 1120 до 1124) | F156: =SUM(F157:F161) -> 0 | G156: =SUM(G157:G161) -> 0
A157: 1120 | B157: 231100 | C157: Обавезе за нето плате и додатке
A158: 1121 | B158: 231200 | C158: Обавезе по основу пореза на плате и додатке
A159: 1122 | B159: 231300 | C159: Обавезе по основу доприноса за пензијско и инвалидско осигурање на плате и додатке
A160: 1123 | B160: 231400 | C160: Обавезе по основу доприноса за здравствено осигурање на плате и додатке
A161: 1124 | B161: 231500 | C161: Обавезе по основу доприноса за незапосленост на плате и додатке
A162: 1125 | B162: 232000 | C162: ОБАВЕЗЕ ПО ОСНОВУ НАКНАДА ЗАПОСЛЕНИМА (од 1126 до 1130) | F162: =SUM(F163:F167) -> 0 | G162: =SUM(G163:G167) -> 0
A163: 1126 | B163: 232100 | C163: Обавезе по основу нето накнада запосленима
A164: 1127 | B164: 232200 | C164: Обавезе по основу пореза на плате за накнаде запосленима
A165: 1128 | B165: 232300 | C165: Обавезе по основу доприноса за пензијско и инвалидско осигурање за накнаде запосленима
A166: 1129 | B166: 232400 | C166: Обавезе по основу доприноса за здравствено осигурање за накнаде запосленима
A167: 1130 | B167: 232500 | C167: Обавезе по основу доприноса за незапосленост за накнаде запосленима
A168: 1131 | B168: 233000 | C168: ОБАВЕЗЕ ЗА НАГРАДЕ И ОСТАЛЕ ПОСЕБНЕ РАСХОДЕ (од 1132 до 1136) | F168: =SUM(F169:F173) -> 0 | G168: =SUM(G169:G173) -> 0
A169: 1132 | B169: 233100 | C169: Обавезе по основу нето исплата награда и осталих посебних расхода
A170: 1133 | B170: 233200 | C170: Обавезе по основу пореза на награде и остале посебне расходе
A171: 1134 | B171: 233300 | C171: Обавезе по основу доприноса за пензијско и инвалидско осигурање за награде и остале посебне расходе
A172: 1135 | B172: 233400 | C172: Обавезе по основу доприноса за здравствено осигурање за награде и остале посебне расходе
A173: 1136 | B173: 233500 | C173: Обавезе по основу доприноса за случај незапослености за награде и остале посебне расходе
A174: 1137 | B174: 234000 | C174: ОБАВЕЗЕ ПО ОСНОВУ СОЦИЈАЛНИХ ДОПРИНОСА НА ТЕРЕТ ПОСЛОДАВЦА (од 1138 до 1140) | F174: =SUM(F175:F177) -> 0 | G174: =SUM(G175:G177) -> 0
A175: 1138 | B175: 234100 | C175: Обавезе по основу доприноса за пензијско и инвалидско осигурање на терет послодавца
A176: 1139 | B176: 234200 | C176: Обавезе по основу доприноса за здравствено осигурање на терет послодавца
A177: 1140 | B177: 234300 | C177: Обавезе по основу доприноса за случај незапослености на терет послодавца
A178: 1141 | B178: 235000 | C178: ОБАВЕЗЕ ПО ОСНОВУ НАКНАДА У НАТУРИ (од 1142 до 1146) | F178: =F182+F183+F184+F185+F186 -> 0 | G178: =G182+G183+G184+G185+G186 -> 0
A179: Ознака ОП | B179: Број конта | C179: Опис | F179: Износ
F180: Претходна година | G180: Текућа година
A181: 1 | B181: 2 | C181: 3 | F181: 4 | G181: 5
A182: 1142 | B182: 235100 | C182: Обавезе по основу нето накнада у натури
A183: 1143 | B183: 235200 | C183: Обавезе по основу пореза на накнаде у натури
A184: 1144 | B184: 235300 | C184: Обавезе по основу доприноса за пензијско и инвалидско осигурање за накнаде у натури
A185: 1145 | B185: 235400 | C185: Обавезе по основу доприноса за здравствено осигурање за накнаде у натури
A186: 1146 | B186: 235500 | C186: Обавезе по основу доприноса за случај незапослености за накнаде у натури
A187: 1147 | B187: 236000 | C187: ОБАВЕЗЕ ПО ОСНОВУ СОЦИЈАЛНЕ ПОМОЋИ ЗАПОСЛЕНИМА (од 1148 до 1152) | F187: =SUM(F188:F192) -> 0 | G187: =SUM(G188:G192) -> 0
A188: 1148 | B188: 236100 | C188: Обавезе по основу нето исплата социјалне помоћи запосленима
A189: 1149 | B189: 236200 | C189: Обавезе по основу пореза на социјалну помоћ запосленима
A190: 1150 | B190: 236300 | C190: Обавезе по основу доприноса за пензијско и инвалидско осигурање за социјалну помоћ запосленима
A191: 1151 | B191: 236400 | C191: Обавезе по основу доприноса за здравствено осигурање за социјалну помоћ запосленима
A192: 1152 | B192: 236500 | C192: Обавезе по основу доприноса за случај незапослености за социјалну помоћ запосленима
A193: 1153 | B193: 237000 | C193: СЛУЖБЕНА ПУТОВАЊА И УСЛУГЕ ПО УГОВОРУ (од 1154 до 1160) | F193: =SUM(F194:F200) -> 0 | G193: =SUM(G194:G200) -> 0
A194: 1154 | B194: 237100 | C194: Обавезе по основу нето исплата за службена путовања
A195: 1155 | B195: 237200 | C195: Обавезе по основу пореза на исплате за службена путовања
A196: 1156 | B196: 237300 | C196: Обавезе по основу нето исплата за услуге по уговору
A197: 1157 | B197: 237400 | C197: Обавезе по основу пореза на исплате за услуге по уговору
A198: 1158 | B198: 237500 | C198: Обавезе по основу доприноса за пензијско и инвалидско осигурање за услуге по уговору
A199: 1159 | B199: 237600 | C199: Обавезе по основу доприноса за здравствено осигурање за услуге по уговору
A200: 1160 | B200: 237700 | C200: Обавезе по основу доприноса за случај незапослености за услуге по уговору
A201: 1161 | B201: 238000 | C201: ОБАВЕЗЕ ПО ОСНОВУ ПОСЛАНИЧКИХ ДОДАТАКА (од 1162 до 1166) | F201: =SUM(F202:F206) -> 0 | G201: =SUM(G202:G206) -> 0
A202: 1162 | B202: 238100 | C202: Обавезе за нето исплаћени посланички додатак
A203: 1163 | B203: 238200 | C203: Обавезе по основу пореза на исплаћени посланички додатак
A204: 1164 | B204: 238300 | C204: Обавезе по основу доприноса за пензијско и инвалидско осигурање за посланички додатак
A205: 1165 | B205: 238400 | C205: Обавезе по основу доприноса за здравствено осигурање за посланички додатак
A206: 1166 | B206: 238500 | C206: Обавезе по основу доприноса за случај незапослености за посланички додатак
A207: 1167 | B207: 239000 | C207: ОБАВЕЗЕ ПО ОСНОВУ СУДИЈСКИХ ДОДАТАКА (од 1168 до 1172) | F207: =SUM(F208:F212) -> 0 | G207: =SUM(G208:G212) -> 0
A208: 1168 | B208: 239100 | C208: Обавезе за нето исплаћени судијски додатак
A209: 1169 | B209: 239200 | C209: Обавезе по основу пореза на исплаћени судијски додатак
A210: 1170 | B210: 239300 | C210: Обавезе по основу доприноса за пензијско и инвалидско осигурање за судијски додатак
A211: 1171 | B211: 239400 | C211: Обавезе по основу доприноса за здравствено осигурање за судијски додатак
... 78 more rows

Sheet Obrazac2
E3: Образац 2
A7: Назив корисника буџетских средстава
A8: =NazivKorisnika -> Дом здравља "МАЛИ ЗВОРНИК"
A9: ="Седиште: " & Sediste -> Седиште: МАЛИ ЗВОРНИК | D9: ="Матични број: " & MaticniBroj -> Матични број: 17813820
A10: ="ПИБ: " & PIB -> ПИБ: 106867296 | D10: ="Број подрачуна: " & BrojPodracuna -> Број подрачуна: 840-814661-60
A11: Назив надлежног директног корисника буџетских средстава
A14: БИЛАНС ПРИХОДА И РАСХОДА
A15: у периоду 01.01.2016. - 31.12.2016.
E17: (У хиљадама динара)
A18: Ознака ОП | B18: Број конта | C18: Опис | D18: Износ
D19: Претходна година | E19: Текућа година
A20: 1 | B20: 2 | C20: 3 | D20: 4 | E20: 5
A21: 2001 | C21: ТЕКУЋИ ПРИХОДИ И ПРИМАЊА ОД ПРОДАЈЕ НЕФИНАНСИЈСКЕ ИМОВИНЕ (2002 + 2106) | D21: =D22+D126 -> 87,071 | E21: =E22+E126 -> 89,221
A22: 2002 | B22: 700000 | C22: ТЕКУЋИ ПРИХОДИ (2003 + 2047 + 2057 + 2069 + 2094 + 2099 + 2103) | D22: =D23+D67+D77+D89+D114+D119+D123 -> 87,071 | E22: =E23+E67+E77+E89+E114+E119+E123 -> 89,221
A23: 2003 | B23: 710000 | C23: ПОРЕЗИ (2004 + 2008 + 2010 + 2017 + 2023 + 2030 + 2033 + 2040) | D23: =D24+D28+D30+D37+D43+D50+D53+D60 -> 0 | E23: =E24+E28+E30+E37+E43+E50+E53+E60 -> 0
A24: 2004 | B24: 711000 | C24: ПОРЕЗ НА ДОХОДАК, ДОБИТ И КАПИТАЛНЕ ДОБИТКЕ (од 2005 до 2007) | D24: =SUM(D25:D27) -> 0 | E24: =SUM(E25:E27) -> 0
A25: 2005 | B25: 711100 | C25: Порези на доходак и капиталне добитке које плаћају физичка лица
A26: 2006 | B26: 711200 | C26: Порези на добит и капиталне добитке које плаћају предузећа и друга правна лица
A27: 2007 | B27: 711300 | C27: Порези на доходак, добит и капиталне добитке који се не могу разврстати између физичких и правних лица
A28: 2008 | B28: 712000 | C28: ПОРЕЗ НА ФОНД ЗАРАДА (2009) | D28: =D29 -> 0 | E28: =E29 -> 0
A29: 2009 | B29: 712100 | C29: Порез на фонд зарада
A30: 2010 | B30: 713000 | C30: ПОРЕЗ НА ИМОВИНУ (од 2011 до 2016) | D30: =SUM(D31:D36) -> 0 | E30: =SUM(E31:E36) -> 0
A31: 2011 | B31: 713100 | C31: Периодични порези на непокретности
A32: 2012 | B32: 713200 | C32: Периодични порези на нето имовину
A33: 2013 | B33: 713300 | C33: Порези на заоставштину, наслеђе и поклон
A34: 2014 | B34: 713400 | C34: Порези на финансијске и капиталне трансакције
A35: 2015 | B35: 713500 | C35: Други једнократни порези на имовину
A36: 2016 | B36: 713600 | C36: Други периодични порези на имовину
A37: 2017 | B37: 714000 | C37: ПОРЕЗ НА ДОБРА И УСЛУГЕ (од 2018 до 2022) | D37: =SUM(D38:D42) -> 0 | E37: =SUM(E38:E42) -> 0
A38: 2018 | B38: 714100 | C38: Општи порези на добра и услуге
A39: 2019 | B39: 714300 | C39: Добит фискалних монопола
A40: 2020 | B40: 714400 | C40: Порези на појединачне услуге
A41: 2021 | B41: 714500 | C41: Порези, таксе и накнаде на употребу добара, на дозволу да се добра употребљавају или делатности обављају
A42: 2022 | B42: 714600 | C42: Други порези на добра и услуге
A43: 2023 | B43: 715000 | C43: ПОРЕЗ НА МЕЂУНАРОДНУ ТРГОВИНУ И ТРАНСАКЦИЈЕ (од 2024 до 2029) | D43: =SUM(D44:D49) -> 0 | E43: =SUM(E44:E49) -> 0
A44: 2024 | B44: 715100 | C44: Царине и друге увозне дажбине
A45: 2025 | B45: 715200 | C45: Порези на извоз
A46: 2026 | B46: 715300 | C46: Добит извозних или увозних монопола
A47: 2027 | B47: 715400 | C47: Добит по основу разлике између куповног и продајног девизног курса
A48: 2028 | B48: 715500 | C48: Порези на продају или куповину девиза
A49: 2029 | B49: 715600 | C49: Други порези на међународну трговину и трансакције
A50: 2030 | B50: 716000 | C50: ДРУГИ ПОРЕЗИ (2031 + 2032) | D50: =D51+D52 -> 0 | E50: =E51+E52 -> 0
A51: 2031 | B51: 716100 | C51: Други порези које искључиво плаћају предузећа, односно предузетници
A52: 2032 | B52: 716200 | C52: Други порези које плаћају остала лица или који се не могу идентификовати
A53: 2033 | B53: 717000 | C53: АКЦИЗЕ (од 2034 до 2039) | D53: =SUM(D54:D59) -> 0 | E53: =SUM(E54:E59) -> 0
A54: 2034 | B54: 717100 | C54: Акцизе на деривате нафте
A55: 2035 | B55: 717200 | C55: Акцизе на дуванске прерађевине
A56: 2036 | B56: 717300 | C56: Акцизе на алкохолна пића
A57: 2037 | B57: 717400 | C57: Акцизе на освежавајућа безалкохолна пића
A58: 2038 | B58: 717500 | C58: Акциза на кафу
A59: 2039 | B59: 717600 | C59: Друге акцизе
A60: 2040 | B60: 719000 | C60: ЈЕДНОКРАТНИ ПОРЕЗ НА ЕКСТРА ПРОФИТ И ЕКСТРА ИМОВИНУ СТЕЧЕНУ КОРИШЋЕЊЕМ ПОСЕБНИХ ПОГОДНОСТИ (од 2041 до 2046) | D60: =SUM(D61:D66) -> 0 | E60: =SUM(E61:E66) -> 0
A61: 2041 | B61: 719100 | C61: Порез на доходак, добит и капиталну добит на терет физичких лица
A62: 2042 | B62: 719200 | C62: Порез на доходак, добит и капиталну добит на терет предузећа и осталих правних лица
A63: 2043 | B63: 719300 | C63: Порез на доходак, добит и капиталну добит нераспоредив између физичких и правних лица
A64: 2044 | B64: 719400 | C64: Остали једнократни порези на имовину
A65: 2045 | B65: 719500 | C65: Остали порези које плаћају искључиво предузећа и предузетници
A66: 2046 | B66: 719600 | C66: Остали порези које плаћају друга или неидентификована лица
A67: 2047 | B67: 720000 | C67: СОЦИЈАЛНИ ДОПРИНОСИ (2048 + 2053) | D67: =D68+D73 -> 0 | E67: =E68+E73 -> 0
A68: 2048 | B68: 721000 | C68: ДОПРИНОСИ ЗА СОЦИЈАЛНО ОСИГУРАЊЕ (од 2049 до 2052) | D68: =SUM(D69:D72) -> 0 | E68: =SUM(E69:E72) -> 0
A69: 2049 | B69: 721100 | C69: Доприноси за социјално осигурање на терет запослених
A70: 2050 | B70: 721200 | C70: Доприноси за социјално осигурање на терет послодаваца
A71: 2051 | B71: 721300 | C71: Доприноси за социјално осигурање лица која обављају самосталну делатност и незапослених лица
A72: 2052 | B72: 721400 | C72: Доприноси за социјално осигурање који се не могу разврстати
A73: 2053 | B73: 722000 | C73: ОСТАЛИ СОЦИЈАЛНИ ДОПРИНОСИ (од 2054 до 2056) | D73: =SUM(D74:D76) -> 0 | E73: =SUM(E74:E76) -> 0
A74: 2054 | B74: 722100 | C74: Социјални доприноси на терет осигураника
A75: 2055 | B75: 722200 | C75: Социјални доприноси послодаваца
A76: 2056 | B76: 722300 | C76: Импутирани социјални доприноси
A77: 2057 | B77: 730000 | C77: ДОНАЦИЈЕ, ПОМОЋИ И ТРАНСФЕРИ (2058 + 2061 + 2066) | D77: =D78+D81+D86 -> 10,598 | E77: =E78+E81+E86 -> 8,826
A78: 2058 | B78: 731000 | C78: ДОНАЦИЈЕ ОД ИНОСТРАНИХ ДРЖАВА (2059 + 2060) | D78: =D79+D80 -> 0 | E78: =E79+E80 -> 0
A79: 2059 | B79: 731100 | C79: Текуће донације од иностраних држава
A80: 2060 | B80: 731200 | C80: Капиталне донације од иностраних држава
A81: 2061 | B81: 732000 | C81: ДОНАЦИЈЕ И ПОМОЋИ ОД МЕЂУНАРОДНИХ ОРГАНИЗАЦИЈА (од 2062 до 2065) | D81: =D82+D83+D84+D85 -> 0 | E81: =E82+E83+E84+E85 -> 0
A82: 2062 | B82: 732100 | C82: Текуће донације од међународних организација
A83: 2063 | B83: 732200 | C83: Капиталне донације од међународних организација
A84: 2064 | B84: 732300 | C84: Текуће помоћи од ЕУ
A85: 2065 | B85: 732400 | C85: Капиталне помоћи од ЕУ
A86: 2066 | B86: 733000 | C86: ТРАНСФЕРИ ОД ДРУГИХ НИВОА ВЛАСТИ (2067 + 2068) | D86: =D87+D88 -> 10,598 | E86: =E87+E88 -> 8,826
A87: 2067 | B87: 733100 | C87: Текући трансфери од других нивоа власти | D87: 2,284 | E87: 3,182
A88: 2068 | B88: 733200 | C88: Капитални трансфери од других нивоа власти | D88: 8,314 | E88: 5,644
A89: 2069 | B89: 740000 | C89: ДРУГИ ПРИХОДИ (2070 + 2077 + 2082 + 2089 + 2092) | D89: =D90+D97+D102+D109+D112 -> 3,364 | E89: =E90+E97+E102+E109+E112 -> 4,554
A90: 2070 | B90: 741000 | C90: ПРИХОДИ ОД ИМОВИНЕ (од 2071 до 2076) | D90: =SUM(D91:D96) -> 0 | E90: =SUM(E91:E96) -> 0
A91: 2071 | B91: 741100 | C91: Камате
A92: 2072 | B92: 741200 | C92: Дивиденде
A93: 2073 | B93: 741300 | C93: Повлачење прихода од квази корпорација
A94: 2074 | B94: 741400 | C94: Приход од имовине који припада имаоцима полиса осигурања
A95: 2075 | B95: 741500 | C95: Закуп непроизведене имовине
A96: 2076 | B96: 741600 | C96: Финансијске промене на финансијским лизинзима
A97: 2077 | B97: 742000 | C97: ПРИХОДИ ОД ПРОДАЈЕ ДОБАРА И УСЛУГА (од 2078 до 2081) | D97: =SUM(D98:D101) -> 3,202 | E97: =SUM(E98:E101) -> 4,448
A98: 2078 | B98: 742100 | C98: Приходи од продаје добара и услуга или закупа од стране тржишних организација
A99: 2079 | B99: 742200 | C99: Таксе и накнаде
A100: 2080 | B100: 742300 | C100: Споредне продаје добара и услуга које врше државне нетржишне јединице | D100: 3,202 | E100: 4,448
A101: 2081 | B101: 742400 | C101: Импутиране продаје добара и услуга
A102: 2082 | B102: 743000 | C102: НОВЧАНЕ КАЗНЕ И ОДУЗЕТА ИМОВИНСКА КОРИСТ (од 2083 до 2088) | D102: =SUM(D103:D108) -> 0 | E102: =SUM(E103:E108) -> 0
A103: 2083 | B103: 743100 | C103: Приходи од новчаних казни за кривична дела
A104: 2084 | B104: 743200 | C104: Приходи од новчаних казни за привредне преступе
A105: 2085 | B105: 743300 | C105: Приходи од новчаних казни за прекршаје
A106: 2086 | B106: 743400 | C106: Приходи од пенала
A107: 2087 | B107: 743500 | C107: Приходи од одузете имовинске користи
A108: 2088 | B108: 743900 | C108: Остале новчане казне, пенали и приходи од одузете имовинске користи
A109: 2089 | B109: 744000 | C109: ДОБРОВОЉНИ ТРАНСФЕРИ ОД ФИЗИЧКИХ И ПРАВНИХ ЛИЦА (2090 + 2091) | D109: =D110+D111 -> 162 | E109: =E110+E111 -> 106
A110: 2090 | B110: 744100 | C110: Текући добровољни трансфери од физичких и правних лица | D110: 162 | E110: 106
A111: 2091 | B111: 744200 | C111: Капитални добровољни трансфери од физичких и правних лица
A112: 2092 | B112: 745000 | C112: МЕШОВИТИ И НЕОДРЕЂЕНИ ПРИХОДИ (2093) | D112: =D113 -> 0 | E112: =E113 -> 0
A113: 2093 | B113: 745100 | C113: Мешовити и неодређени приходи
A114: 2094 | B114: 770000 | C114: МЕМОРАНДУМСКЕ СТАВКЕ ЗА РЕФУНДАЦИЈУ РАСХОДА (2095 + 2097) | D114: =D115+D117 -> 300 | E114: =E115+E117 -> 911
A115: 2095 | B115: 771000 | C115: МЕМОРАНДУМСКЕ СТАВКЕ ЗА РЕФУНДАЦИЈУ РАСХОДА (2096) | D115: =D116 -> 300 | E115: =E116 -> 911
A116: 2096 | B116: 771100 | C116: Меморандумске ставке за рефундацију расхода | D116: 300 | E116: 911
A117: 2097 | B117: 772000 | C117: МЕМОРАНДУМСКЕ СТАВКЕ ЗА РЕФУНДАЦИЈУ РАСХОДА ИЗ ПРЕТХОДНЕ ГОДИНЕ (2098) | D117: =D118 -> 0 | E117: =E118 -> 0
A118: 2098 | B118: 772100 | C118: Меморандумске ставке за рефундацију расхода из претходне године
A119: 2099 | B119: 780000 | C119: ТРАНСФЕРИ ИЗМЕЂУ БУЏЕТСКИХ КОРИСНИКА НА ИСТОМ НИВОУ (2100) | D119: =D120 -> 72,809 | E119: =E120 -> 71,011
A120: 2100 | B120: 781000 | C120: ТРАНСФЕРИ ИЗМЕЂУ БУЏЕТСКИХ КОРИСНИКА НА ИСТОМ НИВОУ (2101 + 2102) | D120: =D121+D122 -> 72,809 | E120: =E121+E122 -> 71,011
A121: 2101 | B121: 781100 | C121: Трансфери између буџетских корисника на истом нивоу | D121: 72,809 | E121: 71,011
A122: 2102 | B122: 781300 | C122: Трансфери између организација обавезног социјалног осигурања
A123: 2103 | B123: 790000 | C123: ПРИХОДИ ИЗ БУЏЕТА (2104) | D123: =D124 -> 0 | E123: =E124 -> 3,919
A124: 2104 | B124: 791000 | C124: ПРИХОДИ ИЗ БУЏЕТА (2105) | D124: =D125 -> 0 | E124: =E125 -> 3,919
A125: 2105 | B125: 791100 | C125: Приходи из буџета | E125: 3,919
A126: 2106 | B126: 800000 | C126: ПРИМАЊА ОД ПРОДАЈЕ НЕФИНАНСИЈСКЕ ИМОВИНЕ (2107 + 2114 + 2121 + 2124) | D126: =D127+D134+D141+D144 -> 0 | E126: =E127+E134+E141+E144 -> 0
A127: 2107 | B127: 810000 | C127: ПРИМАЊА ОД ПРОДАЈЕ ОСНОВНИХ СРЕДСТАВА (2108 + 2110 + 2112) | D127: =D128+D130+D132 -> 0 | E127: =E128+E130+E132 -> 0
A128: 2108 | B128: 811000 | C128: ПРИМАЊА ОД ПРОДАЈЕ НЕПОКРЕТНОСТИ (2109) | D128: =D129 -> 0 | E128: =E129 -> 0
A129: 2109 | B129: 811100 | C129: Примања од продаје непокретности
A130: 2110 | B130: 812000 | C130: ПРИМАЊА ОД ПРОДАЈЕ ПОКРЕТНЕ ИМОВИНЕ (2111) | D130: =D131 -> 0 | E130: =E131 -> 0
A131: 2111 | B131: 812100 | C131: Примања од продаје покретне имовине
A132: 2112 | B132: 813000 | C132: ПРИМАЊА ОД ПРОДАЈЕ ОСТАЛИХ ОСНОВНИХ СРЕДСТАВА (2113) | D132: =D133 -> 0 | E132: =E133 -> 0
A133: 2113 | B133: 813100 | C133: Примања од продаје осталих основних средстава
A134: 2114 | B134: 820000 | C134: ПРИМАЊА ОД ПРОДАЈЕ ЗАЛИХА (2115 + 2117 + 2119) | D134: =D135+D137+D139 -> 0 | E134: =E135+E137+E139 -> 0
A135: 2115 | B135: 821000 | C135: ПРИМАЊА ОД ПРОДАЈЕ РОБНИХ РЕЗЕРВИ (2116) | D135: =D136 -> 0 | E135: =E136 -> 0
A136: 2116 | B136: 821100 | C136: Примања од продаје робних резерви
A137: 2117 | B137: 822000 | C137: ПРИМАЊА ОД ПРОДАЈЕ ЗАЛИХА ПРОИЗВОДЊЕ (2118) | D137: =D138 -> 0 | E137: =E138 -> 0
A138: 2118 | B138: 822100 | C138: Примања од продаје залиха производње
A139: 2119 | B139: 823000 | C139: ПРИМАЊА ОД ПРОДАЈЕ РОБЕ ЗА ДАЉУ ПРОДАЈУ (2120) | D139: =D140 -> 0 | E139: =E140 -> 0
A140: 2120 | B140: 823100 | C140: Примања од продаје робе за даљу продају
A141: 2121 | B141: 830000 | C141: ПРИМАЊА ОД ПРОДАЈЕ ДРАГОЦЕНОСТИ (2122) | D141: =D142 -> 0 | E141: =E142 -> 0
A142: 2122 | B142: 831000 | C142: ПРИМАЊА ОД ПРОДАЈЕ ДРАГОЦЕНОСТИ (2123) | D142: =D143 -> 0 | E142: =E143 -> 0
A143: 2123 | B143: 831100 | C143: Примања од продаје драгоцености
A144: 2124 | B144: 840000 | C144: ПРИМАЊА ОД ПРОДАЈЕ ПРИРОДНЕ ИМОВИНЕ (2125 + 2127 + 2129) | D144: =D145+D147+D149 -> 0 | E144: =E145+E147+E149 -> 0
A145: 2125 | B145: 841000 | C145: ПРИМАЊА ОД ПРОДАЈЕ ЗЕМЉИШТА (2126) | D145: =D146 -> 0 | E145: =E146 -> 0
A146: 2126 | B146: 841100 | C146: Примања од продаје земљишта
A147: 2127 | B147: 842000 | C147: ПРИМАЊА ОД ПРОДАЈЕ ПОДЗЕМНИХ БЛАГА (2128) | D147: =D148 -> 0 | E147: =E148 -> 0
A148: 2128 | B148: 842100 | C148: Примања од продаје подземних блага
A149: 2129 | B149: 843000 | C149: ПРИМАЊА ОД ПРОДАЈЕ ШУМА И ВОДА (2130) | D149: =D150 -> 0 | E149: =E150 -> 0
A150: 2130 | B150: 843100 | C150: Примања од продаје шума и вода
A151: 2131 | C151: ТЕКУЋИ РАСХОДИ И ИЗДАЦИ ЗА НЕФИНАНСИЈСКУ ИМОВИНУ (2132 + 2300) | D151: =D152+D320 -> 90,284 | E151: =E152+E320 -> 88,853
A152: 2132 | B152: 400000 | C152: ТЕКУЋИ РАСХОДИ (2133 + 2155 + 2200 + 2215 + 2239 + 2252 + 2268 + 2283) | D152: =D153+D175+D220+D235+D259+D272+D288+D303 -> 82,287 | E152: =E153+E175+E220+E235+E259+E272+E288+E303 -> 84,266
A153: 2133 | B153: 410000 | C153: РАСХОДИ ЗА ЗАПОСЛЕНЕ (2134 + 2136 + 2140 + 2142 + 2147 + 2149 + 2151 + 2153) | D153: =D154+D156+D160+D162+D167+D169+D171+D173 -> 60,317 | E153: =E154+E156+E160+E162+E167+E169+E171+E173 -> 62,876
A154: 2134 | B154: 411000 | C154: ПЛАТЕ, ДОДАЦИ И НАКНАДЕ ЗАПОСЛЕНИХ (ЗАРАДЕ) (2135) | D154: =D155 -> 49,166 | E154: =E155 -> 48,028
A155: 2135 | B155: 411100 | C155: Плате, додаци и накнаде запослених | D155: 49,166 | E155: 48,028
A156: 2136 | B156: 412000 | C156: СОЦИЈАЛНИ ДОПРИНОСИ НА ТЕРЕТ ПОСЛОДАВЦА (од 2137 до 2139) | D156: =SUM(D157:D159) -> 8,777 | E156: =SUM(E157:E159) -> 8,567
A157: 2137 | B157: 412100 | C157: Допринос за пензијско и инвалидско осигурање | D157: 5,884 | E157: 5,744
A158: 2138 | B158: 412200 | C158: Допринос за здравствено осигурање | D158: 2,525 | E158: 2,464
A159: 2139 | B159: 412300 | C159: Допринос за незапосленост | D159: 368 | E159: 359
A160: 2140 | B160: 413000 | C160: НАКНАДЕ У НАТУРИ (2141) | D160: =D161 -> 0 | E160: =E161 -> 0
A161: 2141 | B161: 413100 | C161: Накнаде у натури
A162: 2142 | B162: 414000 | C162: СОЦИЈАЛНА ДАВАЊА ЗАПОСЛЕНИМА (од 2143 до 2146) | D162: =SUM(D163:D166) -> 173 | E162: =SUM(E163:E166) -> 3,731
A163: 2143 | B163: 414100 | C163: Исплата накнада за време одсуствовања с посла на терет фондова
A164: 2144 | B164: 414200 | C164: Расходи за образовање деце запослених
A165: 2145 | B165: 414300 | C165: Отпремнине и помоћи | D165: 173 | E165: 3,731
A166: 2146 | B166: 414400 | C166: Помоћ у медицинском лечењу запосленог или чланова уже породице и друге помоћи запосленом
A167: 2147 | B167: 415000 | C167: НАКНАДЕ ТРОШКОВА ЗА ЗАПОСЛЕНЕ (2148) | D167: =D168 -> 1,608 | E167: =E168 -> 1,673
A168: 2148 | B168: 415100 | C168: Накнаде трошкова за запослене | D168: 1,608 | E168: 1,673
A169: 2149 | B169: 416000 | C169: НАГРАДЕ ЗАПОСЛЕНИМА И ОСТАЛИ ПОСЕБНИ РАСХОДИ (2150) | D169: =D170 -> 593 | E169: =E170 -> 877
A170: 2150 | B170: 416100 | C170: Награде запосленима и остали посебни расходи | D170: 593 | E170: 877
A171: 2151 | B171: 417000 | C171: ПОСЛАНИЧКИ ДОДАТАК (2152) | D171: =D172 -> 0 | E171: =E172 -> 0
A172: 2152 | B172: 417100 | C172: Посланички додатак
A173: 2153 | B173: 418000 | C173: СУДИЈСКИ ДОДАТАК (2154) | D173: =D174 -> 0 | E173: =E174 -> 0
A174: 2154 | B174: 418100 | C174: Судијски додатак
A175: 2155 | B175: 420000 | C175: КОРИШЋЕЊЕ УСЛУГА И РОБА (2156 + 2164 + 2170 + 2179 + 2187 + 2190) | D175: =D176+D184+D190+D199+D207+D210 -> 20,776 | E175: =E176+E184+E190+E199+E207+E210 -> 20,180
A176: 2156 | B176: 421000 | C176: СТАЛНИ ТРОШКОВИ (од 2157 до 2163) | D176: =SUM(D177:D183) -> 5,966 | E176: =SUM(E177:E183) -> 5,576
A177: 2157 | B177: 421100 | C177: Трошкови платног промета и банкарских услуга | D177: 174 | E177: 160
A178: 2158 | B178: 421200 | C178: Енергетске услуге | D178: 4,768 | E178: 4,230
A179: 2159 | B179: 421300 | C179: Комуналне услуге | D179: 279 | E179: 704
A180: 2160 | B180: 421400 | C180: Услуге комуникација | D180: 262 | E180: 293
A181: 2161 | B181: 421500 | C181: Трошкови осигурања | D181: 483 | E181: 166
A182: 2162 | B182: 421600 | C182: Закуп имовине и опреме
A183: 2163 | B183: 421900 | C183: Остали трошкови | E183: 23
A184: 2164 | B184: 422000 | C184: ТРОШКОВИ ПУТОВАЊА (од 2165 до 2169) | D184: =SUM(D185:D189) -> 278 | E184: =SUM(E185:E189) -> 284
A185: 2165 | B185: 422100 | C185: Трошкови службених путовања у земљи | D185: 278
A186: 2166 | B186: 422200 | C186: Трошкови службених путовања у иностранство
A187: 2167 | B187: 422300 | C187: Трошкови путовања у оквиру редовног рада | E187: 284
A188: 2168 | B188: 422400 | C188: Трошкови путовања ученика
A189: 2169 | B189: 422900 | C189: Остали трошкови транспорта
A190: 2170 | B190: 423000 | C190: УСЛУГЕ ПО УГОВОРУ (од 2171 до 2178) | D190: =SUM(D191:D198) -> 3,403 | E190: =SUM(E191:E198) -> 3,529
A191: 2171 | B191: 423100 | C191: Административне услуге
A192: 2172 | B192: 423200 | C192: Компјутерске услуге | D192: 495 | E192: 574
A193: 2173 | B193: 423300 | C193: Услуге образовања и усавршавања запослених | D193: 816 | E193: 460
A194: 2174 | B194: 423400 | C194: Услуге информисања | D194: 5
A195: 2175 | B195: 423500 | C195: Стручне услуге | D195: 477 | E195: 123
A196: 2176 | B196: 423600 | C196: Услуге за домаћинство и угоститељство
A197: 2177 | B197: 423700 | C197: Репрезентација | D197: 39 | E197: 204
A198: 2178 | B198: 423900 | C198: Остале опште услуге | D198: 1,571 | E198: 2,168
A199: 2179 | B199: 424000 | C199: СПЕЦИЈАЛИЗОВАНЕ УСЛУГЕ (од 2180 до 2186) | D199: =SUM(D200:D206) -> 632 | E199: =SUM(E200:E206) -> 552
A200: 2180 | B200: 424100 | C200: Пољопривредне услуге
A201: 2181 | B201: 424200 | C201: Услуге образовања, културе и спорта
A202: 2182 | B202: 424300 | C202: Медицинске услуге | D202: 173 | E202: 159
A203: 2183 | B203: 424400 | C203: Услуге одржавања аутопутева
A204: 2184 | B204: 424500 | C204: Услуге одржавања националних паркова и природних површина
A205: 2185 | B205: 424600 | C205: Услуге очувања животне средине, науке и геодетске услуге
A206: 2186 | B206: 424900 | C206: Остале специјализоване услуге | D206: 459 | E206: 393
A207: 2187 | B207: 425000 | C207: ТЕКУЋЕ ПОПРАВКЕ И ОДРЖАВАЊЕ (УСЛУГЕ И МАТЕРИЈАЛИ) (2188 + 2189) | D207: =D208+D209 -> 1,429 | E207: =E208+E209 -> 1,743
A208: 2188 | B208: 425100 | C208: Текуће поправке и одржавање зграда и објеката | D208: 184 | E208: 282
... 176 more rows

Sheet Obrazac3
E3: Образац 3
A7: Назив корисника буџетских средстава
A8: =NazivKorisnika -> Дом здравља "МАЛИ ЗВОРНИК"
A9: ="Седиште: " & Sediste -> Седиште: МАЛИ ЗВОРНИК | D9: ="Матични број: " & MaticniBroj -> Матични број: 17813820
A10: ="ПИБ: " & PIB -> ПИБ: 106867296 | D10: ="Број подрачуна: " & BrojPodracuna -> Број подрачуна: 840-814661-60
A11: Назив надлежног директног корисника буџетских средстава
A14: ИЗВЕШТАЈ О КАПИТАЛНИМ ИЗДАЦИМА И ПРИМАЊИМА
A15: у периоду 01.01.2016. - 31.12.2016.
E17: (У хиљадама динара)
A18: Ознака | B18: Број конта | C18: Опис | D18: Износ
A19: ОП | D19: Претходна година | E19: Текућа година
A20: 1 | B20: 2 | C20: 3 | D20: 4 | E20: 5
A21: 3001 | C21: ПРИМАЊА (3002 + 3027) | D21: =D22+D47 -> 0 | E21: =E22+E47 -> 0
A22: 3002 | B22: 800000 | C22: ПРИМАЊА ОД ПРОДАЈЕ НЕФИНАНСИЈСКЕ ИМОВИНЕ (3003 + 3010 + 3017 + 3020) | D22: =D23+D30+D37+D40 -> 0 | E22: =E23+E30+E37+E40 -> 0
A23: 3003 | B23: 810000 | C23: ПРИМАЊА ОД ПРОДАЈЕ ОСНОВНИХ СРЕДСТАВА (3004 + 3006 + 3008) | D23: =D24+D26+D28 -> 0 | E23: =E24+E26+E28 -> 0
A24: 3004 | B24: 811000 | C24: ПРИМАЊА ОД ПРОДАЈЕ НЕПОКРЕТНОСТИ (3005) | D24: =D25 -> 0 | E24: =E25 -> 0
A25: 3005 | B25: 811100 | C25: Примања од продаје непокретности
A26: 3006 | B26: 812000 | C26: ПРИМАЊА ОД ПРОДАЈЕ ПОКРЕТНЕ ИМОВИНЕ (3007) | D26: =D27 -> 0 | E26: =E27 -> 0
A27: 3007 | B27: 812100 | C27: Примања од продаје покретне имовине
A28: 3008 | B28: 813000 | C28: ПРИМАЊА ОД ПРОДАЈЕ ОСТАЛИХ ОСНОВНИХ СРЕДСТАВА (3009) | D28: =D29 -> 0 | E28: =E29 -> 0
A29: 3009 | B29: 813100 | C29: Примања од продаје осталих основних средстава
A30: 3010 | B30: 820000 | C30: ПРИМАЊА ОД ПРОДАЈЕ ЗАЛИХА (3011 + 3013 + 3015) | D30: =D31+D33+D35 -> 0 | E30: =E31+E33+E35 -> 0
A31: 3011 | B31: 821000 | C31: ПРИМАЊА ОД ПРОДАЈЕ РОБНИХ РЕЗЕРВИ (3012) | D31: =D32 -> 0 | E31: =E32 -> 0
A32: 3012 | B32: 821100 | C32: Примања од продаје робних резерви
A33: 3013 | B33: 822000 | C33: ПРИМАЊА ОД ПРОДАЈЕ ЗАЛИХА ПРОИЗВОДЊЕ (3014) | D33: =D34 -> 0 | E33: =E34 -> 0
A34: 3014 | B34: 822100 | C34: Примања од продаје залиха производње
A35: 3015 | B35: 823000 | C35: ПРИМАЊА ОД ПРОДАЈЕ РОБЕ ЗА ДАЉУ ПРОДАЈУ (3016) | D35: =D36 -> 0 | E35: =E36 -> 0
A36: 3016 | B36: 823100 | C36: Примања од продаје робе за даљу продају
A37: 3017 | B37: 830000 | C37: ПРИМАЊА ОД ПРОДАЈЕ ДРАГОЦЕНОСТИ (3018) | D37: =D38 -> 0 | E37: =E38 -> 0
A38: 3018 | B38: 831000 | C38: ПРИМАЊА ОД ПРОДАЈЕ ДРАГОЦЕНОСТИ (3019) | D38: =D39 -> 0 | E38: =E39 -> 0
A39: 3019 | B39: 831100 | C39: Примања од продаје драгоцености
A40: 3020 | B40: 840000 | C40: ПРИМАЊА ОД ПРОДАЈЕ ПРИРОДНЕ ИМОВИНЕ (3021 + 3023 + 3025) | D40: =D41+D43+D45 -> 0 | E40: =E41+E43+E45 -> 0
A41: 3021 | B41: 841000 | C41: ПРИМАЊА ОД ПРОДАЈЕ ЗЕМЉИШТА (3022) | D41: =D42 -> 0 | E41: =E42 -> 0
A42: 3022 | B42: 841100 | C42: Примања од продаје земљишта
A43: 3023 | B43: 842000 | C43: ПРИМАЊА ОД ПРОДАЈЕ ПОДЗЕМНИХ БЛАГА (3024) | D43: =D44 -> 0 | E43: =E44 -> 0
A44: 3024 | B44: 842100 | C44: Примања од продаје подземних блага
A45: 3025 | B45: 843000 | C45: ПРИМАЊА ОД ПРОДАЈЕ ШУМА И ВОДА (3026) | D45: =D46 -> 0 | E45: =E46 -> 0
A46: 3026 | B46: 843100 | C46: Примања од продаје шума и вода
A47: 3027 | B47: 900000 | C47: ПРИМАЊА ОД ЗАДУЖИВАЊА И ПРОДАЈЕ ФИНАНСИЈСКЕ ИМОВИНЕ (3028 + 3047) | D47: =D48+D67 -> 0 | E47: =E48+E67 -> 0
A48: 3028 | B48: 910000 | C48: ПРИМАЊА ОД ЗАДУЖИВАЊА (3029 + 3039) | D48: =D49+D59 -> 0 | E48: =E49+E59 -> 0
A49: 3029 | B49: 911000 | C49: ПРИМАЊА ОД ДОМАЋИХ ЗАДУЖИВАЊА (од 3030 до 3038) | D49: =SUM(D50:D58) -> 0 | E49: =SUM(E50:E58) -> 0
A50: 3030 | B50: 911100 | C50: Примања од емитовања домаћих хартија од вредности, изузев акција
A51: 3031 | B51: 911200 | C51: Примања од задуживања од осталих нивоа власти
A52: 3032 | B52: 911300 | C52: Примања од задуживања од јавних финансијских институција у земљи
A53: 3033 | B53: 911400 | C53: Примања од задуживања од пословних банака у земљи
A54: 3034 | B54: 911500 | C54: Примања од задуживања од осталих поверилаца у земљи
A55: 3035 | B55: 911600 | C55: Примања од задуживања од домаћинстава у земљи
A56: 3036 | B56: 911700 | C56: Примања од домаћих финансијских деривата
A57: 3037 | B57: 911800 | C57: Примања од домаћих меница
A58: 3038 | B58: 911900 | C58: Исправка унутрашњег дуга
A59: 3039 | B59: 912000 | C59: ПРИМАЊА ОД ИНОСТРАНОГ ЗАДУЖИВАЊА (од 3040 до 3046) | D59: =SUM(D60:D66) -> 0 | E59: =SUM(E60:E66) -> 0
A60: 3040 | B60: 912100 | C60: Примања од емитовања хартија од вредности, изузев акција, на иностраном финансијском тржишту
A61: 3041 | B61: 912200 | C61: Примања од задуживања од иностраних држава
A62: 3042 | B62: 912300 | C62: Примања од задуживања од мултилатералних институција
A63: 3043 | B63: 912400 | C63: Примања од задуживања од иностраних пословних банака
A64: 3044 | B64: 912500 | C64: Примања од задуживања од осталих иностраних поверилаца
A65: 3045 | B65: 912600 | C65: Примања од иностраних финансијских деривата
A66: 3046 | B66: 912900 | C66: Исправка спољног дуга
A67: 3047 | B67: 920000 | C67: ПРИМАЊА ОД ПРОДАЈЕ ФИНАНСИЈСКЕ ИМОВИНЕ (3048 + 3058) | D67: =D68+D78 -> 0 | E67: =E68+E78 -> 0
A68: 3048 | B68: 921000 | C68: ПРИМАЊА ОД ПРОДАЈЕ ДОМАЋЕ ФИНАНСИЈСКЕ ИМОВИНЕ (од 3049 до 3057) | D68: =SUM(D69:D77) -> 0 | E68: =SUM(E69:E77) -> 0
A69: 3049 | B69: 921100 | C69: Примања од продаје домаћих хартија од вредности, изузев акција
A70: 3050 | B70: 921200 | C70: Примања од отплате кредита датих осталим нивоима власти
A71: 3051 | B71: 921300 | C71: Примања од отплате кредита датих домаћим јавним финансијским институцијама
A72: 3052 | B72: 921400 | C72: Примања од отплате кредита датих домаћим пословним банкама
A73: 3053 | B73: 921500 | C73: Примања од отплате кредита датих домаћим јавним нефинансијским институцијама
A74: 3054 | B74: 921600 | C74: Примања од отплате кредита датих физичким лицима и домаћинствима у земљи
A75: 3055 | B75: 921700 | C75: Примања од отплате кредита датих удружењима грађана у земљи
A76: 3056 | B76: 921800 | C76: Примања од отплате кредита датих нефинансијским приватним предузећима у земљи
A77: 3057 | B77: 921900 | C77: Примања од продаје домаћих акција и осталог капитала
A78: 3058 | B78: 922000 | C78: ПРИМАЊА ОД ПРОДАЈЕ СТРАНЕ ФИНАНСИЈСКЕ ИМОВИНЕ (од 3059 до 3066) | D78: =SUM(D79:D86) -> 0 | E78: =SUM(E79:E86) -> 0
A79: 3059 | B79: 922100 | C79: Примања од продаје страних хартија од вредности, изузев акција
A80: 3060 | B80: 922200 | C80: Примања од отплате кредита датих страним владама
A81: 3061 | B81: 922300 | C81: Примања од отплате кредита датих међународним организацијама
A82: 3062 | B82: 922400 | C82: Примања од отплате кредита датих страним пословним банкама
A83: 3063 | B83: 922500 | C83: Примања од отплате кредита датих страним нефинансијским институцијама
A84: 3064 | B84: 922600 | C84: Примања од отплате кредита датих страним невладиним организацијама
A85: 3065 | B85: 922700 | C85: Примања од продаје страних акција и осталог капитала
A86: 3066 | B86: 922800 | C86: Примања од продаје стране валуте
A87: 3067 | C87: ИЗДАЦИ (3068 + 3114) | D87: =D88+D134 -> 7,997 | E87: =E88+E134 -> 4,587
A88: 3068 | B88: 500000 | C88: ИЗДАЦИ ЗА НЕФИНАНСИЈСКУ ИМОВИНУ (3069 + 3091 + 3100 + 3103 + 3111) | D88: =D89+D111+D120+D123+D131 -> 7,997 | E88: =E89+E111+E120+E123+E131 -> 4,587
A89: 3069 | B89: 510000 | C89: ОСНОВНА СРЕДСТВА (3070 + 3075 + 3085 + 3087 + 3089) | D89: =D90+D95+D105+D107+D109 -> 7,997 | E89: =E90+E95+E105+E107+E109 -> 4,587
A90: 3070 | B90: 511000 | C90: ЗГРАДЕ И ГРАЂЕВИНСКИ ОБЈЕКТИ (од 3071 до 3074) | D90: =SUM(D91:D94) -> 6,682 | E90: =SUM(E91:E94) -> 1,362
A91: 3071 | B91: 511100 | C91: Куповина зграда и објеката
A92: 3072 | B92: 511200 | C92: Изградња зграда и објеката | D92: 115
A93: 3073 | B93: 511300 | C93: Капитално одржавање зграда и објеката | D93: 6,421 | E93: 1,195
A94: 3074 | B94: 511400 | C94: Пројектно планирање | D94: 146 | E94: 167
A95: 3075 | B95: 512000 | C95: МАШИНЕ И ОПРЕМА (од 3076 до 3084) | D95: =SUM(D96:D104) -> 1,315 | E95: =SUM(E96:E104) -> 3,225
A96: 3076 | B96: 512100 | C96: Опрема за саобраћај | E96: 2,452
A97: 3077 | B97: 512200 | C97: Административна опрема | D97: 576 | E97: 261
A98: 3078 | B98: 512300 | C98: Опрема за пољопривреду
A99: 3079 | B99: 512400 | C99: Опрема за заштиту животне средине
A100: 3080 | B100: 512500 | C100: Медицинска и лабораторијска опрема | D100: 739 | E100: 304
A101: 3081 | B101: 512600 | C101: Опрема за образовање, културу и спорт
A102: 3082 | B102: 512700 | C102: Опрема за војску | E102: 208
A103: 3083 | B103: 512800 | C103: Опрема за јавну безбедност
A104: 3084 | B104: 512900 | C104: Опрема за производњу, моторна, непокретна и немоторна опрема
A105: 3085 | B105: 513000 | C105: ОСТАЛЕ НЕКРЕТНИНЕ И ОПРЕМА (3086) | D105: =D106 -> 0 | E105: =E106 -> 0
A106: 3086 | B106: 513100 | C106: Остале некретнине и опрема
A107: 3087 | B107: 514000 | C107: КУЛТИВИСАНА ИМОВИНА (3088) | D107: =D108 -> 0 | E107: =E108 -> 0
A108: 3088 | B108: 514100 | C108: Култивисана имовина
A109: 3089 | B109: 515000 | C109: НЕМАТЕРИЈАЛНА ИМОВИНА (3090) | D109: =D110 -> 0 | E109: =E110 -> 0
A110: 3090 | B110: 515100 | C110: Нематеријална имовина
A111: 3091 | B111: 520000 | C111: ЗАЛИХЕ (3092 + 3094 + 3098) | D111: =D112+D114+D118 -> 0 | E111: =E112+E114+E118 -> 0
A112: 3092 | B112: 521000 | C112: РОБНЕ РЕЗЕРВЕ (3093) | D112: =D113 -> 0 | E112: =E113 -> 0
A113: 3093 | B113: 521100 | C113: Робне резерве
A114: 3094 | B114: 522000 | C114: ЗАЛИХЕ ПРОИЗВОДЊЕ (од 3095 до 3097) | D114: =SUM(D115:D117) -> 0 | E114: =SUM(E115:E117) -> 0
A115: 3095 | B115: 522100 | C115: Залихе материјала
A116: 3096 | B116: 522200 | C116: Залихе недовршене производње
A117: 3097 | B117: 522300 | C117: Залихе готових производа
A118: 3098 | B118: 523000 | C118: ЗАЛИХЕ РОБЕ ЗА ДАЉУ ПРОДАЈУ (3099) | D118: =D119 -> 0 | E118: =E119 -> 0
A119: 3099 | B119: 523100 | C119: Залихе робе за даљу продају
A120: 3100 | B120: 530000 | C120: ДРАГОЦЕНОСТИ (3101) | D120: =D121 -> 0 | E120: =E121 -> 0
A121: 3101 | B121: 531000 | C121: ДРАГОЦЕНОСТИ (3102) | D121: =D122 -> 0 | E121: =E122 -> 0
A122: 3102 | B122: 531100 | C122: Драгоцености | D122: 0 | E122: 0
A123: 3103 | B123: 540000 | C123: ПРИРОДНА ИМОВИНА (3104 + 3106 + 3108) | D123: =D124+D126+D128 -> 0 | E123: =E124+E126+E128 -> 0
A124: 3104 | B124: 541000 | C124: ЗЕМЉИШТЕ (3105) | D124: =D125 -> 0 | E124: =E125 -> 0
A125: 3105 | B125: 541100 | C125: Земљиште
A126: 3106 | B126: 542000 | C126: РУДНА БОГАТСТВА (3107) | D126: =D127 -> 0 | E126: =E127 -> 0
A127: 3107 | B127: 542100 | C127: Копови
A128: 3108 | B128: 543000 | C128: ШУМЕ И ВОДЕ (3109 + 3110) | D128: =D129+D130 -> 0 | E128: =E129+E130 -> 0
A129: 3109 | B129: 543100 | C129: Шуме
A130: 3110 | B130: 543200 | C130: Воде
A131: 3111 | B131: 550000 | C131: НЕФИНАНСИЈСКА ИМОВИНА КОЈА СЕ ФИНАНСИРА ИЗ СРЕДСТАВА ЗА РЕАЛИЗАЦИЈУ НАЦИОНАЛНОГ ИНВЕСТИЦИОНОГ ПЛАНА (3112) | D131: =D132 -> 0 | E131: =E132 -> 0
A132: 3112 | B132: 551000 | C132: НЕФИНАНСИЈСКА ИМОВИНА КОЈА СЕ ФИНАНСИРА ИЗ СРЕДСТАВА ЗА РЕАЛИЗАЦИЈУ НАЦИОНАЛНОГ ИНВЕСТИЦИОНОГ ПЛАНА (3113) | D132: =D133 -> 0 | E132: =E133 -> 0
A133: 3113 | B133: 551100 | C133: Нефинансијска имовина која се финансира из средстава за реализацију националног инвестиционог плана
A134: 3114 | B134: 600000 | C134: ИЗДАЦИ ЗА ОТПЛАТУ ГЛАВНИЦЕ И НАБАВКУ ФИНАНСИЈСКЕ ИМОВИНЕ (3115 + 3140) | D134: =D135+D160 -> 0 | E134: =E135+E160 -> 0
A135: 3115 | B135: 610000 | C135: ОТПЛАТА ГЛАВНИЦЕ (3116 + 3126 + 3134 + 3136 + 3138) | D135: =D136+D146+D154+D156+D158 -> 0 | E135: =E136+E146+E154+E156+E158 -> 0
A136: 3116 | B136: 611000 | C136: ОТПЛАТА ГЛАВНИЦЕ ДОМАЋИМ КРЕДИТОРИМА (од 3117 до 3125) | D136: =SUM(D137:D145) -> 0 | E136: =SUM(E137:E145) -> 0
A137: 3117 | B137: 611100 | C137: Отплата главнице на домаће хартије од вредности, изузев акција
A138: 3118 | B138: 611200 | C138: Отплата главнице осталим нивоима власти
A139: 3119 | B139: 611300 | C139: Отплата главнице домаћим јавним финансијским институцијама
A140: 3120 | B140: 611400 | C140: Отплата главнице домаћим пословним банкама
A141: 3121 | B141: 611500 | C141: Отплата главнице осталим домаћим кредиторима
A142: 3122 | B142: 611600 | C142: Отплата главнице домаћинствима у земљи
A143: 3123 | B143: 611700 | C143: Отплата главнице на домаће финансијске деривате
A144: 3124 | B144: 611800 | C144: Отплата домаћих меница
A145: 3125 | B145: 611900 | C145: Исправка унутрашњег дуга
A146: 3126 | B146: 612000 | C146: ОТПЛАТА ГЛАВНИЦЕ СТРАНИМ КРЕДИТОРИМА (од 3127 до 3133) | D146: =SUM(D147:D153) -> 0 | E146: =SUM(E147:E153) -> 0
A147: 3127 | B147: 612100 | C147: Отплата главнице на хартије од вредности, изузев акција, емитоване на иностраном финансијском тржишту
A148: 3128 | B148: 612200 | C148: Отплата главнице страним владама
A149: 3129 | B149: 612300 | C149: Отплата главнице мултилатералним институцијама
A150: 3130 | B150: 612400 | C150: Отплата главнице страним пословним банкама
A151: 3131 | B151: 612500 | C151: Отплата главнице осталим страним кредиторима
A152: 3132 | B152: 612600 | C152: Отплата главнице на стране финансијске деривате
A153: 3133 | B153: 612900 | C153: Исправка спољног дуга
A154: 3134 | B154: 613000 | C154: ОТПЛАТА ГЛАВНИЦЕ ПО ГАРАНЦИЈАМА (3135) | D154: =D155 -> 0 | E154: =E155 -> 0
A155: 3135 | B155: 613100 | C155: Отплата главнице по гаранцијама
A156: 3136 | B156: 614000 | C156: ОТПЛАТА ГЛАВНИЦЕ ЗА ФИНАНСИЈСКИ ЛИЗИНГ (3137) | D156: =D157 -> 0 | E156: =E157 -> 0
A157: 3137 | B157: 614100 | C157: Отплата главнице за финансијски лизинг
A158: 3138 | B158: 615000 | C158: ОТПЛАТА ГАРАНЦИЈА ПО КОМЕРЦИЈАЛНИМ ТРАНСАКЦИЈАМА (3139) | D158: =D159 -> 0 | E158: =E159 -> 0
A159: 3139 | B159: 615100 | C159: Отплата гаранција по комерцијалним трансакцијама
A160: 3140 | B160: 620000 | C160: НАБАВКА ФИНАНСИЈСКЕ ИМОВИНЕ (3141 + 3151 + 3160) | D160: =D161+D171+D180 -> 0 | E160: =E161+E171+E180 -> 0
A161: 3141 | B161: 621000 | C161: НАБАВКА ДОМАЋЕ ФИНАНСИЈСКЕ ИМОВИНЕ (од 3142 до 3150) | D161: =SUM(D162:D170) -> 0 | E161: =SUM(E162:E170) -> 0
A162: 3142 | B162: 621100 | C162: Набавка домаћих хартија од вредности, изузев акција
A163: 3143 | B163: 621200 | C163: Кредити осталим нивоима власти
A164: 3144 | B164: 621300 | C164: Кредити домаћим јавним финансијским институцијама
A165: 3145 | B165: 621400 | C165: Кредити домаћим пословним банкама
A166: 3146 | B166: 621500 | C166: Кредити домаћим нефинансијским јавним институцијама
A167: 3147 | B167: 621600 | C167: Кредити физичким лицима и домаћинствима у земљи
A168: 3148 | B168: 621700 | C168: Кредити невладиним организацијама у земљи
A169: 3149 | B169: 621800 | C169: Кредити домаћим нефинансијским приватним предузећима
A170: 3150 | B170: 621900 | C170: Набавка домаћих акција и осталог капитала
A171: 3151 | B171: 622000 | C171: НАБАВКА СТРАНЕ ФИНАНСИЈСКЕ ИМОВИНЕ (од 3152 до 3159) | D171: =SUM(D172:D179) -> 0 | E171: =SUM(E172:E179) -> 0
A172: 3152 | B172: 622100 | C172: Набавка страних хартија од вредности, изузев акција
A173: 3153 | B173: 622200 | C173: Кредити страним владама
A174: 3154 | B174: 622300 | C174: Кредити међународним организацијама
A175: 3155 | B175: 622400 | C175: Кредити страним пословним банкама
A176: 3156 | B176: 622500 | C176: Кредити страним нефинансијским институцијама
A177: 3157 | B177: 622600 | C177: Кредити страним невладиним организацијама
A178: 3158 | B178: 622700 | C178: Набавка страних акција и осталог капитала
A179: 3159 | B179: 622800 | C179: Куповина стране валуте
A180: 3160 | B180: 623000 | C180: НАБАВКА ФИНАНСИЈСКЕ ИМОВИНЕ КОЈА СЕ ФИНАНСИРА ИЗ СРЕДСТАВА ЗА РЕАЛИЗАЦИЈУ НАЦИОНАЛНОГ ИНВЕСТИЦИОНОГ ПЛАНА (3161) | D180: =D181 -> 0 | E180: =E181 -> 0
A181: 3161 | B181: 623100 | C181: Набавка финансијске имовине која се финансира из средстава за реализацију националног инвестиционог плана
A182: 3162 | C182: ВИШАК ПРИМАЊА (3001 – 3067) > 0 | D182: =IF(D21-D87>0,D21-D87,0) -> 0 | E182: =IF(E21-E87>0,E21-E87,0) -> 0
A183: 3163 | C183: МАЊАК ПРИМАЊА (3067 – 3001) > 0 | D183: =IF(D87-D21>0,D87-D21,0) -> 7,997 | E183: =IF(E87-E21>0,E87-E21,0) -> 4,587
A185: Датум | C185: Лице одговорно за | D185: Наредбодавац
C186: попуњавање обрасца

Sheet Obrazac4
E3: Образац 4
A7: Назив корисника буџетских средстава
A8: =NazivKorisnika -> Дом здравља "МАЛИ ЗВОРНИК"
A9: ="Седиште: " & Sediste -> Седиште: МАЛИ ЗВОРНИК | D9: ="Матични број: " & MaticniBroj -> Матични број: 17813820
A10: ="ПИБ: " & PIB -> ПИБ: 106867296 | D10: ="Број подрачуна: " & BrojPodracuna -> Број подрачуна: 840-814661-60
A11: Назив надлежног директног корисника буџетских средстава
A14: ИЗВЕШТАЈ О НОВЧАНИМ ТОКОВИМА
A15: у периоду 01.01.2016. - 31.12.2016.
E17: (У хиљадама динара)
A18: Ознака ОП | B18: Број конта | C18: Опис | D18: Износ
D19: Претходна година | E19: Текућа година
A20: 1 | B20: 2 | C20: 3 | D20: 4 | E20: 5
A21: 4001 | C21: Н О В Ч А Н И П Р И Л И В И (4002 + 4106 + 4131) | D21: =D22+D126+D151 -> 87,071 | E21: =E22+E126+E151 -> 89,221
A22: 4002 | B22: 700000 | C22: ТЕКУЋИ ПРИХОДИ (4003 + 4047 + 4057 + 4069 + 4094 + 4099 + 4103) | D22: =D23+D67+D77+D89+D114+D119+D123 -> 87,071 | E22: =E23+E67+E77+E89+E114+E119+E123 -> 89,221
A23: 4003 | B23: 710000 | C23: ПОРЕЗИ (4004 + 4008 + 4010 + 4017 + 4023 + 4030 + 4033 + 4040) | D23: =D24+D28+D30+D37+D43+D50+D53+D60 -> 0 | E23: =E24+E28+E30+E37+E43+E50+E53+E60 -> 0
A24: 4004 | B24: 711000 | C24: ПОРЕЗ НА ДОХОДАК, ДОБИТ И КАПИТАЛНЕ ДОБИТКЕ (од 4005 до 4007) | D24: =SUM(D25:D27) -> 0 | E24: =SUM(E25:E27) -> 0
A25: 4005 | B25: 711100 | C25: Порези на доходак и капиталне добитке које плаћају физичка лица
A26: 4006 | B26: 711200 | C26: Порези на добит и капиталне добитке које плаћају предузећа и друга правна лица
A27: 4007 | B27: 711300 | C27: Порези на доходак, добит и капиталне добитке који се не могу разврстати између физичких и правних лица
A28: 4008 | B28: 712000 | C28: ПОРЕЗ НА ФОНД ЗАРАДА (4009) | D28: =D29 -> 0 | E28: =E29 -> 0
A29: 4009 | B29: 712100 | C29: Порез на фонд зарада
A30: 4010 | B30: 713000 | C30: ПОРЕЗ НА ИМОВИНУ (од 4011 до 4016) | D30: =SUM(D31:D36) -> 0 | E30: =SUM(E31:E36) -> 0
A31: 4011 | B31: 713100 | C31: Периодични порези на непокретности
A32: 4012 | B32: 713200 | C32: Периодични порези на нето имовину
A33: 4013 | B33: 713300 | C33: Порези на заоставштину, наслеђе и поклон
A34: 4014 | B34: 713400 | C34: Порези на финансијске и капиталне трансакције
A35: 4015 | B35: 713500 | C35: Други једнократни порези на имовину
A36: 4016 | B36: 713600 | C36: Други периодични порези на имовину
A37: 4017 | B37: 714000 | C37: ПОРЕЗ НА ДОБРА И УСЛУГЕ (од 4018 до 4022) | D37: =SUM(D38:D42) -> 0 | E37: =SUM(E38:E42) -> 0
A38: 4018 | B38: 714100 | C38: Општи порези на добра и услуге
A39: 4019 | B39: 714300 | C39: Добит фискалних монопола
A40: 4020 | B40: 714400 | C40: Порези на појединачне услуге
A41: 4021 | B41: 714500 | C41: Порези, таксе и накнаде на употребу добара, на дозволу да се добра употребљавају или делатности обављају
A42: 4022 | B42: 714600 | C42: Други порези на добра и услуге
A43: 4023 | B43: 715000 | C43: ПОРЕЗ НА МЕЂУНАРОДНУ ТРГОВИНУ И ТРАНСАКЦИЈЕ (од 4024 до 4029) | D43: =SUM(D44:D49) -> 0 | E43: =SUM(E44:E49) -> 0
A44: 4024 | B44: 715100 | C44: Царине и друге увозне дажбине
A45: 4025 | B45: 715200 | C45: Порези на извоз
A46: 4026 | B46: 715300 | C46: Добит извозних или увозних монопола
A47: 4027 | B47: 715400 | C47: Добит по основу разлике између куповног и продајног девизног курса
A48: 4028 | B48: 715500 | C48: Порези на продају или куповину девиза
A49: 4029 | B49: 715600 | C49: Други порези на међународну трговину и трансакције
A50: 4030 | B50: 716000 | C50: ДРУГИ ПОРЕЗИ (4031 + 4032) | D50: =D51+D52 -> 0 | E50: =E51+E52 -> 0
A51: 4031 | B51: 716100 | C51: Други порези које искључиво плаћају предузећа, односно предузетници
A52: 4032 | B52: 716200 | C52: Други порези које плаћају остала лица или који се не могу идентификовати
A53: 4033 | B53: 717000 | C53: АКЦИЗЕ (од 4034 до 4039) | D53: =SUM(D54:D59) -> 0 | E53: =SUM(E54:E59) -> 0
A54: 4034 | B54: 717100 | C54: Акцизе на деривате нафте
A55: 4035 | B55: 717200 | C55: Акцизе на дуванске прерађевине
A56: 4036 | B56: 717300 | C56: Акцизе на алкохолна пића
A57: 4037 | B57: 717400 | C57: Акцизе на освежавајућа безалкохолна пића
A58: 4038 | B58: 717500 | C58: Акцизе на кафу
A59: 4039 | B59: 717600 | C59: Друге акцизе
A60: 4040 | B60: 719000 | C60: ЈЕДНОКРАТНИ ПОРЕЗ НА ЕКСТРА ПРОФИТ И ЕКСТРА ИМОВИНУ СТЕЧЕНУ КОРИШЋЕЊЕМ ПОСЕБНИХ ПОГОДНОСТИ (од 4041 до 4046) | D60: =SUM(D61:D66) -> 0 | E60: =SUM(E61:E66) -> 0
A61: 4041 | B61: 719100 | C61: Порез на доходак, добит и капиталну добит на терет физичких лица
A62: 4042 | B62: 719200 | C62: Порез на доходак, добит и капиталну добит на терет предузећа и осталих правних лица
A63: 4043 | B63: 719300 | C63: Порез на доходак, добит и капиталну добит нераспоредив између физичких и правних лица
A64: 4044 | B64: 719400 | C64: Остали једнократни порези на имовину
A65: 4045 | B65: 719500 | C65: Остали порези које плаћају искључиво предузећа и предузетници
A66: 4046 | B66: 719600 | C66: Остали порези које плаћају друга или неидентификована лица
A67: 4047 | B67: 720000 | C67: СОЦИЈАЛНИ ДОПРИНОСИ (4048 + 4053) | D67: =D68+D73 -> 0 | E67: =E68+E73 -> 0
A68: 4048 | B68: 721000 | C68: ДОПРИНОСИ ЗА СОЦИЈАЛНО ОСИГУРАЊЕ (од 4049 до 4052) | D68: =SUM(D69:D72) -> 0 | E68: =SUM(E69:E72) -> 0
A69: 4049 | B69: 721100 | C69: Доприноси за социјално осигурање на терет запослених
A70: 4050 | B70: 721200 | C70: Доприноси за социјално осигурање на терет послодавца
A71: 4051 | B71: 721300 | C71: Доприноси за социјално осигурање лица која обављају самосталну делатност и незапослених лица
A72: 4052 | B72: 721400 | C72: Доприноси за социјално осигурање који се не могу разврстати
A73: 4053 | B73: 722000 | C73: ОСТАЛИ СОЦИЈАЛНИ ДОПРИНОСИ (од 4054 до 4056) | D73: =SUM(D74:D76) -> 0 | E73: =SUM(E74:E76) -> 0
A74: 4054 | B74: 722100 | C74: Социјални доприноси на терет осигураника
A75: 4055 | B75: 722200 | C75: Социјални доприноси на терет послодаваца
A76: 4056 | B76: 722300 | C76: Импутирани социјални доприноси
A77: 4057 | B77: 730000 | C77: ДОНАЦИЈЕ, ПОМОЋИ И ТРАНСФЕРИ (4058 + 4061 + 4066) | D77: =D78+D81+D86 -> 10,598 | E77: =E78+E81+E86 -> 8,826
A78: 4058 | B78: 731000 | C78: ДОНАЦИЈЕ ОД ИНОСТРАНИХ ДРЖАВА (од 4059 + 4060) | D78: =D79+D80 -> 0 | E78: =E79+E80 -> 0
A79: 4059 | B79: 731100 | C79: Текуће донације од иностраних држава
A80: 4060 | B80: 731200 | C80: Капиталне донације од иностраних држава
A81: 4061 | B81: 732000 | C81: ДОНАЦИЈЕ И ПОМОЋИ ОД МЕЂУНАРОДНИХ ОРГАНИЗАЦИЈА (од 4062 до 4065) | D81: =D82+D83+D84+D85 -> 0 | E81: =E82+E83+E84+E85 -> 0
A82: 4062 | B82: 732100 | C82: Текуће донације од међународних организација
A83: 4063 | B83: 732200 | C83: Капиталне донације од међународних организација
A84: 4064 | B84: 732300 | C84: Текуће помоћи од ЕУ
A85: 4065 | B85: 732400 | C85: Капиталне помоћи од ЕУ
A86: 4066 | B86: 733000 | C86: ТРАНСФЕРИ ОД ДРУГИХ НИВОА ВЛАСТИ (4067 + 4068) | D86: =D87+D88 -> 10,598 | E86: =E87+E88 -> 8,826
A87: 4067 | B87: 733100 | C87: Текући трансфери од других нивоа власти | D87: 2,284 | E87: 3,182
A88: 4068 | B88: 733200 | C88: Капитални трансфери од других нивоа власти | D88: 8,314 | E88: 5,644
A89: 4069 | B89: 740000 | C89: ДРУГИ ПРИХОДИ (4070 + 4077 + 4082 + 4089 + 4092) | D89: =D90+D97+D102+D109+D112 -> 3,364 | E89: =E90+E97+E102+E109+E112 -> 4,554
A90: 4070 | B90: 741000 | C90: ПРИХОДИ ОД ИМОВИНЕ (од 4071 до 4076) | D90: =SUM(D91:D96) -> 0 | E90: =SUM(E91:E96) -> 0
A91: 4071 | B91: 741100 | C91: Камате
A92: 4072 | B92: 741200 | C92: Дивиденде
A93: 4073 | B93: 741300 | C93: Повлачење прихода од квази корпорација
A94: 4074 | B94: 741400 | C94: Приход од имовине који припада имаоцима полиса осигурања
A95: 4075 | B95: 741500 | C95: Закуп непроизведене имовине
A96: 4076 | B96: 741600 | C96: Финансијске промене на финансијским лизинзима
A97: 4077 | B97: 742000 | C97: ПРИХОДИ ОД ПРОДАЈЕ ДОБАРА И УСЛУГА (од 4078 до 4081) | D97: =SUM(D98:D101) -> 3,202 | E97: =SUM(E98:E101) -> 4,448
A98: 4078 | B98: 742100 | C98: Приходи од продаје добара и услуга или закупа од стране тржишних организација
A99: 4079 | B99: 742200 | C99: Таксе и накнаде
A100: 4080 | B100: 742300 | C100: Споредне продаје добара и услуга које врше државне нетржишне јединице | D100: 3,202 | E100: 4,448
A101: 4081 | B101: 742400 | C101: Импутиране продаје добара и услуга
A102: 4082 | B102: 743000 | C102: НОВЧАНЕ КАЗНЕ И ОДУЗЕТА ИМОВИНСКА КОРИСТ (од 4083 до 4088) | D102: =SUM(D103:D108) -> 0 | E102: =SUM(E103:E108) -> 0
A103: 4083 | B103: 743100 | C103: Приходи од новчаних казни за кривична дела
A104: 4084 | B104: 743200 | C104: Приходи од новчаних казни за привредне преступе
A105: 4085 | B105: 743300 | C105: Приходи од новчаних казни за прекршаје
A106: 4086 | B106: 743400 | C106: Приходи од пенала
A107: 4087 | B107: 743500 | C107: Приходи од одузете имовинске користи
A108: 4088 | B108: 743900 | C108: Остале новчане казне, пенали и приходи од одузете имовинске користи
A109: 4089 | B109: 744000 | C109: ДОБРОВОЉНИ ТРАНСФЕРИ ОД ФИЗИЧКИХ И ПРАВНИХ ЛИЦА (4090 + 4091) | D109: =D110+D111 -> 162 | E109: =E110+E111 -> 106
A110: 4090 | B110: 744100 | C110: Текући добровољни трансфери од физичких и правних лица | D110: 162 | E110: 106
A111: 4091 | B111: 744200 | C111: Капитални добровољни трансфери од физичких и правних лица
A112: 4092 | B112: 745000 | C112: МЕШОВИТИ И НЕОДРЕЂЕНИ ПРИХОДИ (4093) | D112: =D113 -> 0 | E112: =E113 -> 0
A113: 4093 | B113: 745100 | C113: Мешовити и неодређени приходи
A114: 4094 | B114: 770000 | C114: МЕМОРАНДУМСКЕ СТАВКЕ ЗА РЕФУНДАЦИЈУ РАСХОДА (4095 + 4097) | D114: =D115+D117 -> 300 | E114: =E115+E117 -> 911
A115: 4095 | B115: 771000 | C115: МЕМОРАНДУМСКЕ СТАВКЕ ЗА РЕФУНДАЦИЈУ РАСХОДА (4096) | D115: =D116 -> 300 | E115: =E116 -> 911
A116: 4096 | B116: 771100 | C116: Меморандумске ставке за рефундацију расхода | D116: 300 | E116: 911
A117: 4097 | B117: 772000 | C117: МЕМОРАНДУМСКЕ СТАВКЕ ЗА РЕФУНДАЦИЈУ РАСХОДА ИЗ ПРЕТХОДНЕ ГОДИНЕ (4098) | D117: =D118 -> 0 | E117: =E118 -> 0
A118: 4098 | B118: 772100 | C118: Меморандумске ставке за рефундацију расхода из претходне године
A119: 4099 | B119: 780000 | C119: ТРАНСФЕРИ ИЗМЕЂУ БУЏЕТСКИХ КОРИСНИКА НА ИСТОМ НИВОУ (4100) | D119: =D120 -> 72,809 | E119: =E120 -> 71,011
A120: 4100 | B120: 781000 | C120: ТРАНСФЕРИ ИЗМЕЂУ БУЏЕТСКИХ КОРИСНИКА НА ИСТОМ НИВОУ (4101 + 4102) | D120: =D121+D122 -> 72,809 | E120: =E121+E122 -> 71,011
A121: 4101 | B121: 781100 | C121: Трансфери између буџетских корисника на истом нивоу | D121: 72,809 | E121: 71,011
A122: 4102 | B122: 781300 | C122: Трансфери између организација обавезног социјалног осигурања
A123: 4103 | B123: 790000 | C123: ПРИХОДИ ИЗ БУЏЕТА (4104) | D123: =D124 -> 0 | E123: =E124 -> 3,919
A124: 4104 | B124: 791000 | C124: ПРИХОДИ ИЗ БУЏЕТА (4105) | D124: =D125 -> 0 | E124: =E125 -> 3,919
A125: 4105 | B125: 791100 | C125: Приходи из буџета | E125: 3,919
A126: 4106 | B126: 800000 | C126: ПРИМАЊА ОД ПРОДАЈЕ НЕФИНАНСИЈСКЕ ИМОВИНЕ (4107 + 4114 + 4121 + 4124) | D126: =D127+D134+D141+D144 -> 0 | E126: =E127+E134+E141+E144 -> 0
A127: 4107 | B127: 810000 | C127: ПРИМАЊА ОД ПРОДАЈЕ ОСНОВНИХ СРЕДСТАВА (4108 + 4110 + 4112) | D127: =D128+D130+D132 -> 0 | E127: =E128+E130+E132 -> 0
A128: 4108 | B128: 811000 | C128: ПРИМАЊА ОД ПРОДАЈЕ НЕПОКРЕТНОСТИ (4109) | D128: =D129 -> 0 | E128: =E129 -> 0
A129: 4109 | B129: 811100 | C129: Примања од продаје непокретности
A130: 4110 | B130: 812000 | C130: ПРИМАЊА ОД ПРОДАЈЕ ПОКРЕТНЕ ИМОВИНЕ (4111) | D130: =D131 -> 0 | E130: =E131 -> 0
A131: 4111 | B131: 812100 | C131: Примања од продаје покретне имовине
A132: 4112 | B132: 813000 | C132: ПРИМАЊА ОД ПРОДАЈЕ ОСТАЛИХ ОСНОВНИХ СРЕДСТАВА (4113) | D132: =D133 -> 0 | E132: =E133 -> 0
A133: 4113 | B133: 813100 | C133: Примања од продаје осталих основних средстава
A134: 4114 | B134: 820000 | C134: ПРИМАЊА ОД ПРОДАЈЕ ЗАЛИХА (4115 + 4117 + 4119) | D134: =D135+D137+D139 -> 0 | E134: =E135+E137+E139 -> 0
A135: 4115 | B135: 821000 | C135: ПРИМАЊА ОД ПРОДАЈЕ РОБНИХ РЕЗЕРВИ (4116) | D135: =D136 -> 0 | E135: =E136 -> 0
A136: 4116 | B136: 821100 | C136: Примања од продаје робних резерви
A137: 4117 | B137: 822000 | C137: ПРИМАЊА ОД ПРОДАЈЕ ЗАЛИХА ПРОИЗВОДЊЕ (4118) | D137: =D138 -> 0 | E137: =E138 -> 0
A138: 4118 | B138: 822100 | C138: Примања од продаје залиха производње
A139: 4119 | B139: 823000 | C139: ПРИМАЊА ОД ПРОДАЈЕ РОБЕ ЗА ДАЉУ ПРОДАЈУ (4120) | D139: =D140 -> 0 | E139: =E140 -> 0
A140: 4120 | B140: 823100 | C140: Примања од продаје робе за даљу продају
A141: 4121 | B141: 830000 | C141: ПРИМАЊА ОД ПРОДАЈЕ ДРАГОЦЕНОСТИ (4122) | D141: =D142 -> 0 | E141: =E142 -> 0
A142: 4122 | B142: 831000 | C142: ПРИМАЊА ОД ПРОДАЈЕ ДРАГОЦЕНОСТИ (4123) | D142: =D143 -> 0 | E142: =E143 -> 0
A143: 4123 | B143: 831100 | C143: Примања од продаје драгоцености
A144: 4124 | B144: 840000 | C144: ПРИМАЊА ОД ПРОДАЈЕ ПРИРОДНЕ ИМОВИНЕ (4125 + 4127 + 4129) | D144: =D145+D147+D149 -> 0 | E144: =E145+E147+E149 -> 0
A145: 4125 | B145: 841000 | C145: ПРИМАЊА ОД ПРОДАЈЕ ЗЕМЉИШТА (4126) | D145: =D146 -> 0 | E145: =E146 -> 0
A146: 4126 | B146: 841100 | C146: Примања од продаје земљишта
A147: 4127 | B147: 842000 | C147: ПРИМАЊА ОД ПРОДАЈЕ ПОДЗЕМНИХ БЛАГА (4128) | D147: =D148 -> 0 | E147: =E148 -> 0
A148: 4128 | B148: 842100 | C148: Примања од продаје подземних блага
A149: 4129 | B149: 843000 | C149: ПРИМАЊА ОД ПРОДАЈЕ ШУМА И ВОДА (4130) | D149: =D150 -> 0 | E149: =E150 -> 0
A150: 4130 | B150: 843100 | C150: Примања од продаје шума и вода
A151: 4131 | B151: 900000 | C151: ПРИМАЊА ОД ЗАДУЖИВАЊА И ПРОДАЈЕ ФИНАНСИЈСКЕ ИМОВИНЕ (4132 + 4151) | D151: =D152+D171 -> 0 | E151: =E152+E171 -> 0
A152: 4132 | B152: 910000 | C152: ПРИМАЊА ОД ЗАДУЖИВАЊА (4133 + 4143) | D152: =D153+D163 -> 0 | E152: =E153+E163 -> 0
A153: 4133 | B153: 911000 | C153: ПРИМАЊА ОД ДОМАЋИХ ЗАДУЖИВАЊА (од 4134 до 4142) | D153: =SUM(D154:D162) -> 0 | E153: =SUM(E154:E162) -> 0
A154: 4134 | B154: 911100 | C154: Примања од емитовања домаћих хартија од вредности, изузев акција
A155: 4135 | B155: 911200 | C155: Примања од задуживања од осталих нивоа власти
A156: 4136 | B156: 911300 | C156: Примања од задуживања од јавних финансијских институција у земљи
A157: 4137 | B157: 911400 | C157: Примања од задуживања од пословних банака у земљи
A158: 4138 | B158: 911500 | C158: Примања од задуживања од осталих поверилаца у земљи
A159: 4139 | B159: 911600 | C159: Примања од задуживања од домаћинстава у земљи
A160: 4140 | B160: 911700 | C160: Примања од домаћих финансијских деривата
A161: 4141 | B161: 911800 | C161: Примања од домаћих меница
A162: 4142 | B162: 911900 | C162: Исправка унутрашњег дуга
A163: 4143 | B163: 912000 | C163: ПРИМАЊА ОД ИНОСТРАНОГ ЗАДУЖИВАЊА (од 4144 до 4150) | D163: =SUM(D164:D170) -> 0 | E163: =SUM(E164:E170) -> 0
A164: 4144 | B164: 912100 | C164: Примања од емитовања хартија од вредности, изузев акција, на иностраном финансијском тржишту
A165: 4145 | B165: 912200 | C165: Примања од задуживања од иностраних држава
A166: 4146 | B166: 912300 | C166: Примања од задуживања од мултилатералних институција
A167: 4147 | B167: 912400 | C167: Примања од задуживања од иностраних пословних банака
A168: 4148 | B168: 912500 | C168: Примања од задуживања од осталих иностраних поверилаца
A169: 4149 | B169: 912600 | C169: Примања од иностраних финансијских деривата
A170: 4150 | B170: 912900 | C170: Исправка спољног дуга
A171: 4151 | B171: 920000 | C171: ПРИМАЊА ОД ПРОДАЈЕ ФИНАНСИЈСКЕ ИМОВИНЕ (4152 + 4162) | D171: =D172+D182 -> 0 | E171: =E172+E182 -> 0
A172: 4152 | B172: 921000 | C172: ПРИМАЊА ОД ПРОДАЈЕ ДОМАЋЕ ФИНАНСИЈСКЕ ИМОВИНЕ (од 4153 до 4161) | D172: =SUM(D173:D181) -> 0 | E172: =SUM(E173:E181) -> 0
A173: 4153 | B173: 921100 | C173: Примања од продаје домаћих хартија од вредности, изузев акција
A174: 4154 | B174: 921200 | C174: Примања од отплате кредита датих осталим нивоима власти
A175: 4155 | B175: 921300 | C175: Примања од отплате кредита датих домаћим јавним финансијским институцијама
A176: 4156 | B176: 921400 | C176: Примања од отплате кредита датих домаћим пословним банкама
A177: 4157 | B177: 921500 | C177: Примања од отплате кредита датих домаћим јавним нефинансијским институцијама
A178: 4158 | B178: 921600 | C178: Примања од отплате кредита датих физичким лицима и домаћинствима у земљи
A179: 4159 | B179: 921700 | C179: Примања од отплате кредита датих удружењима грађана у земљи
A180: 4160 | B180: 921800 | C180: Примања од отплате кредита датих нефинансијским приватним предузећима у земљи
A181: 4161 | B181: 921900 | C181: Примања од продаје домаћих акција и осталог капитала
A182: 4162 | B182: 922000 | C182: ПРИМАЊА ОД ПРОДАЈЕ СТРАНЕ ФИНАНСИЈСКЕ ИМОВИНЕ (од 4163 до 4170) | D182: =SUM(D183:D190) -> 0 | E182: =SUM(E183:E190) -> 0
A183: 4163 | B183: 922100 | C183: Примања од продаје страних хартија од вредности, изузев акција
A184: 4164 | B184: 922200 | C184: Примања од отплате кредита датих страним владама
A185: 4165 | B185: 922300 | C185: Примања од отплате кредита датих међународним организацијама
A186: 4166 | B186: 922400 | C186: Примања од отплате кредита датих страним пословним банкама
A187: 4167 | B187: 922500 | C187: Примања од отплате кредита датих страним нефинансијским институцијама
A188: 4168 | B188: 922600 | C188: Примања од отплате кредита датих страним невладиним организацијама
A189: 4169 | B189: 922700 | C189: Примања од продаје страних акција и осталог капитала
A190: 4170 | B190: 922800 | C190: Примања од продаје стране валуте
A191: 4171 | C191: НОВЧАНИ ОДЛИВИ (4172 + 4340 + 4386) | D191: =D192+D360+D406 -> 90,284 | E191: =E192+E360+E406 -> 88,853
A192: 4172 | B192: 400000 | C192: ТЕКУЋИ РАСХОДИ (4173 + 4195 + 4240 + 4255 + 4279 + 4292 + 4308 + 4323) | D192: =D193+D215+D260+D275+D299+D312+D328+D343 -> 82,287 | E192: =E193+E215+E260+E275+E299+E312+E328+E343 -> 84,266
A193: 4173 | B193: 410000 | C193: РАСХОДИ ЗА ЗАПОСЛЕНЕ (4174 + 4176 + 4180 + 4182 + 4187 + 4189 + 4191+ 4193) | D193: =D194+D196+D200+D202+D207+D209+D211+D213 -> 60,317 | E193: =E194+E196+E200+E202+E207+E209+E211+E213 -> 62,876
A194: 4174 | B194: 411000 | C194: ПЛАТЕ, ДОДАЦИ И НАКНАДЕ ЗАПОСЛЕНИХ (ЗАРАДЕ) (4175) | D194: =D195 -> 49,166 | E194: =E195 -> 48,028
A195: 4175 | B195: 411100 | C195: Плате, додаци и накнаде запослених | D195: 49,166 | E195: 48,028
A196: 4176 | B196: 412000 | C196: СОЦИЈАЛНИ ДОПРИНОСИ НА ТЕРЕТ ПОСЛОДАВЦА (од 4177 до 4179) | D196: =SUM(D197:D199) -> 8,777 | E196: =SUM(E197:E199) -> 8,567
A197: 4177 | B197: 412100 | C197: Допринос за пензијско и инвалидско осигурање | D197: 5,884 | E197: 5,744
A198: 4178 | B198: 412200 | C198: Допринос за здравствено осигурање | D198: 2,525 | E198: 2,464
A199: 4179 | B199: 412300 | C199: Допринос за незапосленост | D199: 368 | E199: 359
A200: 4180 | B200: 413000 | C200: НАКНАДЕ У НАТУРИ (4181) | D200: =D201 -> 0 | E200: =E201 -> 0
A201: 4181 | B201: 413100 | C201: Накнаде у натури
A202: 4182 | B202: 414000 | C202: СОЦИЈАЛНА ДАВАЊА ЗАПОСЛЕНИМА (од 4183 до 4186) | D202: =SUM(D203:D206) -> 173 | E202: =SUM(E203:E206) -> 3,731
A203: 4183 | B203: 414100 | C203: Исплата накнада за време одсуствовања с посла на терет фондова
A204: 4184 | B204: 414200 | C204: Расходи за образовање деце запослених
A205: 4185 | B205: 414300 | C205: Отпремнине и помоћи | D205: 173 | E205: 3,731
A206: 4186 | B206: 414400 | C206: Помоћ у медицинском лечењу запосленог или чланова уже породице и друге помоћи запосленом
A207: 4187 | B207: 415000 | C207: НАКНАДЕ ТРОШКОВА ЗА ЗАПОСЛЕНЕ (4188) | D207: =D208 -> 1,608 | E207: =E208 -> 1,673
A208: 4188 | B208: 415100 | C208: Накнаде трошкова за запослене | D208: 1,608 | E208: 1,673
... 256 more rows

Sheet Obrazac5
K3: Образац 5
A7: Назив корисника буџетских средстава
A8: =NazivKorisnika -> Дом здравља "МАЛИ ЗВОРНИК"
A9: ="Седиште: " & Sediste -> Седиште: МАЛИ ЗВОРНИК | D9: ="Матични број: " & MaticniBroj -> Матични број: 17813820
A10: ="ПИБ: " & PIB -> ПИБ: 106867296 | D10: ="Број подрачуна: " & BrojPodracuna -> Број подрачуна: 840-814661-60
A11: Назив надлежног директног корисника буџетских средстава
A12: _______________________________________________________________________
A13: (Попуњава само индиректни корисник буџетских средстава)
A14: ИЗВЕШТАЈ О ИЗВРШЕЊУ БУЏЕТА
A15: у периоду од 01.01.2016. - 31.12.2016. године
A16: I. УКУПНИ ПРИХОДИ И ПРИМАЊА
K17: (У хиљадама динара)
A18: Ознака ОП | B18: Број конта | C18: Опис | D18: Износ планираних прихода и примања | E18: Износ остварених прихода и примања
E19: Укупно (од 6 до 11) | F19: Приходи и примања из буџета | J19: Из донација и помоћи | K19: Из осталих извора
F20: Републике | G20: Аутономне покрајине | H20: Општине / града | I20: ООСО
A21: 1 | B21: 2 | C21: 3 | D21: 4 | E21: 5 | F21: 6 | G21: 7 | H21: 8 | I21: 9 | J21: 10 | K21: 11
A22: 5001 | C22: ТЕКУЋИ ПРИХОДИ И ПРИМАЊА ОД ПРОДАЈЕ НЕФИНАНСИЈСКЕ ИМОВИНЕ (5002 + 5106) | D22: =D23+D147 -> 94,154 | E22: =SUM(F22:K22) -> 89,221 | F22: =F23+F147 -> 3,919 | G22: 0 | H22: 8,826 | I22: 71,922 | J22: 106 | K22: 4,448
A23: 5002 | B23: 700000 | C23: ТЕКУЋИ ПРИХОДИ (5003 + 5047 + 5057 + 5069 + 5094 + 5099 + 5103) | D23: =D24+D76+D90+D102+D131+D136+D140 -> 94,154 | E23: 89,221 | F23: =F24+F76+F90+F102+F131+F136+F140 -> 3,919 | G23: 0 | H23: 8,826 | I23: 71,922 | J23: 106 | K23: 4,448
A24: 5003 | B24: 710000 | C24: ПОРЕЗИ (5004 + 5008 + 5010 + 5017 + 5023 + 5030 + 5033 + 5040) | D24: =D25+D33+D35+D42+D48+D55+D58+D69 -> 0 | E24: 0 | F24: =F25+F33+F35+F42+F48+F55+F58+F69 -> 0 | G24: 0 | H24: 0 | I24: 0 | J24: 0 | K24: 0
A25: 5004 | B25: 711000 | C25: ПОРЕЗ НА ДОХОДАК, ДОБИТ И КАПИТАЛНЕ ДОБИТКЕ (од 5005 до 5007) | D25: =SUM(D26:D32) -> 0 | E25: 0 | F25: =SUM(F26:F32) -> 0 | G25: 0 | H25: 0 | I25: 0 | J25: 0 | K25: 0
A26: 5005 | B26: 711100 | C26: Порези на доходак и капиталнe добиткe које плаћају физичка лица | E26: 0
A27: Ознака ОП | B27: Број конта | C27: Опис | D27: Износ планираних прихода и примања | E27: Износ остварених прихода и примања
E28: Укупно (од 6 до 11) | F28: Приходи и примања из буџета | J28: Из донација и помоћи | K28: Из осталих извора
F29: Републике | G29: Аутономне покрајине | H29: Општине / града | I29: ООСО
A30: 1 | B30: 2 | C30: 3 | D30: 4 | E30: 5 | F30: 6 | G30: 7 | H30: 8 | I30: 9 | J30: 10 | K30: 11
A31: 5006 | B31: 711200 | C31: Порези на добит и капиталне добитке које плаћају предузећа и друга правна лица | E31: 0
A32: 5007 | B32: 711300 | C32: Порези на доходак, добит и капиталне добитке који се не могу разврстати између физичких и правних лица | E32: 0
A33: 5008 | B33: 712000 | C33: ПОРЕЗ НА ФОНД ЗАРАДА (5009) | D33: =D34 -> 0 | E33: 0 | F33: =F34 -> 0 | G33: 0 | H33: 0 | I33: 0 | J33: 0 | K33: 0
A34: 5009 | B34: 712100 | C34: Порез на фонд зарада | E34: 0
A35: 5010 | B35: 713000 | C35: ПОРЕЗ НА ИМОВИНУ (од 5011 до 5016) | D35: =SUM(D36:D41) -> 0 | E35: 0 | F35: =SUM(F36:F41) -> 0 | G35: 0 | H35: 0 | I35: 0 | J35: 0 | K35: 0
A36: 5011 | B36: 713100 | C36: Периодични порези на непокретности | E36: 0
A37: 5012 | B37: 713200 | C37: Периодични порези на нето имовину | E37: 0
A38: 5013 | B38: 713300 | C38: Порези на заоставштину, наслеђе и поклон | E38: 0
A39: 5014 | B39: 713400 | C39: Порези на финансијске и капиталне трансакције | E39: 0
A40: 5015 | B40: 713500 | C40: Други једнократни порези на имовину | E40: 0
A41: 5016 | B41: 713600 | C41: Други периодични порези на имовину | E41: 0
A42: 5017 | B42: 714000 | C42: ПОРЕЗ НА ДОБРА И УСЛУГЕ (од 5018 до 5022) | D42: =SUM(D43:D47) -> 0 | E42: 0 | F42: =SUM(F43:F47) -> 0 | G42: 0 | H42: 0 | I42: 0 | J42: 0 | K42: 0
A43: 5018 | B43: 714100 | C43: Општи порези на добра и услуге | E43: 0
A44: 5019 | B44: 714300 | C44: Добит фискалних монопола | E44: 0
A45: 5020 | B45: 714400 | C45: Порези на појединачне услуге | E45: 0
A46: 5021 | B46: 714500 | C46: Порези, таксе и накнаде на употребу добара, на дозволу да се добра употребљавају или делатности обављају | E46: 0
A47: 5022 | B47: 714600 | C47: Други порези на добра и услуге | E47: 0
A48: 5023 | B48: 715000 | C48: ПОРЕЗ НА МЕЂУНАРОДНУ ТРГОВИНУ И ТРАНСАКЦИЈЕ (од 5024 до 5029) | D48: =SUM(D49:D54) -> 0 | E48: 0 | F48: =SUM(F49:F54) -> 0 | G48: 0 | H48: 0 | I48: 0 | J48: 0 | K48: 0
A49: 5024 | B49: 715100 | C49: Царине и друге увозне дажбине | E49: 0
A50: 5025 | B50: 715200 | C50: Порези на извоз | E50: 0
A51: 5026 | B51: 715300 | C51: Добит извозних или увозних монопола | E51: 0
A52: 5027 | B52: 715400 | C52: Добит по основу разлике између куповног и продајног девизног курса | E52: 0
A53: 5028 | B53: 715500 | C53: Порези на продају или куповину девиза | E53: 0
A54: 5029 | B54: 715600 | C54: Други порези на међународну трговину и трансакције | E54: 0
A55: 5030 | B55: 716000 | C55: ДРУГИ ПОРЕЗИ (5031 + 5032) | D55: =D56+D57 -> 0 | E55: 0 | F55: =F56+F57 -> 0 | G55: 0 | H55: 0 | I55: 0 | J55: 0 | K55: 0
A56: 5031 | B56: 716100 | C56: Други порези које искључиво плаћају предузећа, односно предузетници | E56: 0
A57: 5032 | B57: 716200 | C57: Други порези које плаћају остала лица или који се не могу идентификовати | E57: 0
A58: 5033 | B58: 717000 | C58: АКЦИЗЕ (од 5034 до 5039) | D58: =SUM(D63:D68) -> 0 | E58: =SUM(F58:K58) -> 0 | F58: =SUM(F63:F68) -> 0 | G58: 0 | H58: 0 | I58: 0 | J58: 0 | K58: 0
A59: Ознака ОП | B59: Број конта | C59: Опис | D59: Износ планираних прихода и примања | E59: Износ остварених прихода и примања
E60: Укупно (од 6 до 11) | F60: Приходи и примања из буџета | J60: Из донација и помоћи | K60: Из осталих извора
F61: Републике | G61: Аутономне покрајине | H61: Општине / града | I61: ООСО
A62: 1 | B62: 2 | C62: 3 | D62: 4 | E62: 5 | F62: 6 | G62: 7 | H62: 8 | I62: 9 | J62: 10 | K62: 11
A63: 5034 | B63: 717100 | C63: Акцизе на деривате нафте | E63: 0
A64: 5035 | B64: 717200 | C64: Акцизе на дуванске прерађевине | E64: 0
A65: 5036 | B65: 717300 | C65: Акцизе на алкохолна пића | E65: 0
A66: 5037 | B66: 717400 | C66: Акцизе на освежавајућа безалкохолна пића | E66: 0
A67: 5038 | B67: 717500 | C67: Акциза на кафу | E67: 0
A68: 5039 | B68: 717600 | C68: Друге акцизе | E68: 0
A69: 5040 | B69: 719000 | C69: ЈЕДНОКРАТНИ ПОРЕЗ НА ЕКСТРА ПРОФИТ И ЕКСТРА ИМОВИНУ СТЕЧЕНУ КОРИШЋЕЊЕМ ПОСЕБНИХ ПОГОДНОСТИ (од 5041 до 5046) | D69: =SUM(D70:D75) -> 0 | E69: 0 | F69: =SUM(F70:F75) -> 0 | G69: 0 | H69: 0 | I69: 0 | J69: 0 | K69: 0
A70: 5041 | B70: 719100 | C70: Порез на доходак, добит и капиталну добит на терет физичких лица | E70: 0
A71: 5042 | B71: 719200 | C71: Порез на доходак, добит и капиталну добит на терет предузећа и осталих правних лица | E71: 0
A72: 5043 | B72: 719300 | C72: Порез на доходак, добит и капиталну добит нераспоредив између физичких и правних лица | E72: 0
A73: 5044 | B73: 719400 | C73: Остали једнократни порези на имовину | E73: 0
A74: 5045 | B74: 719500 | C74: Остали порези које плаћају искључиво предузећа и предузетници | E74: 0
A75: 5046 | B75: 719600 | C75: Остали порези које плаћају друга или неидентификована лица | E75: 0
A76: 5047 | B76: 720000 | C76: СОЦИЈАЛНИ ДОПРИНОСИ (5048 + 5053) | D76: =D77+D82 -> 0 | E76: 0 | F76: =F77+F82 -> 0 | G76: 0 | H76: 0 | I76: 0 | J76: 0 | K76: 0
A77: 5048 | B77: 721000 | C77: ДОПРИНОСИ ЗА СОЦИЈАЛНО ОСИГУРАЊЕ (од 5049 до 5052) | D77: =SUM(D78:D81) -> 0 | E77: 0 | F77: =SUM(F78:F81) -> 0 | G77: 0 | H77: 0 | I77: 0 | J77: 0 | K77: 0
A78: 5049 | B78: 721100 | C78: Доприноси за социјално осигурање на терет запослених | E78: 0
A79: 5050 | B79: 721200 | C79: Доприноси за социјално осигурање на терет послодавца | E79: 0
A80: 5051 | B80: 721300 | C80: Доприноси за социјално осигурање лица која обављају самосталну делатност и незапослених лица | E80: 0
A81: 5052 | B81: 721400 | C81: Доприноси за социјално осигурање који се не могу разврстати | E81: 0
A82: 5053 | B82: 722000 | C82: ОСТАЛИ СОЦИЈАЛНИ ДОПРИНОСИ (од 5054 до 5056) | D82: =SUM(D83:D85) -> 0 | E82: 0 | F82: =SUM(F83:F85) -> 0 | G82: 0 | H82: 0 | I82: 0 | J82: 0 | K82: 0
A83: 5054 | B83: 722100 | C83: Социјални доприноси на терет осигураника | E83: 0
A84: 5055 | B84: 722200 | C84: Социјални доприноси на терет послодаваца | E84: 0
A85: 5056 | B85: 722300 | C85: Импутирани социјални доприноси | E85: 0
A86: Ознака ОП | B86: Број конта | C86: Опис | D86: Износ планираних прихода и примања | E86: Износ остварених прихода и примања
E87: Укупно (од 6 до 11) | F87: Приходи и примања из буџета | J87: Из донација и помоћи | K87: Из осталих извора
F88: Републике | G88: Аутономне покрајине | H88: Општине / града | I88: ООСО
A89: 1 | B89: 2 | C89: 3 | D89: 4 | E89: 5 | F89: 6 | G89: 7 | H89: 8 | I89: 9 | J89: 10 | K89: 11
A90: 5057 | B90: 730000 | C90: ДОНАЦИЈЕ, ПОМОЋИ И ТРАНСФЕРИ (5058 + 5061 + 5066) | D90: =D91+D94+D99 -> 8,920 | E90: 8,826 | F90: =F91+F94+F99 -> 0 | G90: 0 | H90: 8,826 | I90: 0 | J90: 0 | K90: 0
A91: 5058 | B91: 731000 | C91: ДОНАЦИЈЕ ОД ИНОСТРАНИХ ДРЖАВА (5059 + 5060) | D91: =D92+D93 -> 0 | E91: 0 | F91: =F92+F93 -> 0 | G91: 0 | H91: 0 | I91: 0 | J91: 0 | K91: 0
A92: 5059 | B92: 731100 | C92: Текуће донације од иностраних држава | E92: 0
A93: 5060 | B93: 731200 | C93: Капиталне донације од иностраних држава | E93: 0
A94: 5061 | B94: 732000 | C94: ДОНАЦИЈЕ И ПОМОЋИ ОД МЕЂУНАРОДНИХ ОРГАНИЗАЦИЈА (од 5062 до 5065) | D94: =D95+D96+D97+D98 -> 0 | E94: 0 | F94: =F95+F96+F97+F98 -> 0 | G94: 0 | H94: 0 | I94: 0 | J94: 0 | K94: 0
A95: 5062 | B95: 732100 | C95: Текуће донације од међународних организација | E95: 0
A96: 5063 | B96: 732200 | C96: Капиталне донације од међународних организација | E96: 0
A97: 5064 | B97: 732300 | C97: Текуће помоћи од ЕУ | E97: 0
A98: 5065 | B98: 732400 | C98: Капиталне помоћи од ЕУ | E98: 0
A99: 5066 | B99: 733000 | C99: ТРАНСФЕРИ ОД ДРУГИХ НИВОА ВЛАСТИ (5067 + 5068) | D99: =D100+D101 -> 8,920 | E99: 8,826 | F99: =F100+F101 -> 0 | G99: 0 | H99: 8,826 | I99: 0 | J99: 0 | K99: 0
A100: 5067 | B100: 733100 | C100: Текући трансфери од других нивоа власти | D100: 3,280 | E100: =SUM(F100:K100) -> 3,182 | H100: 3,182
A101: 5068 | B101: 733200 | C101: Капитални трансфери од других нивоа власти | D101: 5,640 | E101: 5,644 | H101: 5,644
A102: 5069 | B102: 740000 | C102: ДРУГИ ПРИХОДИ (5070 + 5077 + 5082 + 5089 + 5092) | D102: =D103+D110+D115+D126+D129 -> 4,500 | E102: 4,554 | F102: =F103+F110+F115+F126+F129 -> 0 | G102: 0 | H102: 0 | I102: 0 | J102: 106 | K102: 4,448
A103: 5070 | B103: 741000 | C103: ПРИХОДИ ОД ИМОВИНЕ (од 5071 до 5076) | D103: =SUM(D104:D109) -> 0 | E103: 0 | F103: =SUM(F104:F109) -> 0 | G103: 0 | H103: 0 | I103: 0 | J103: 0 | K103: 0
A104: 5071 | B104: 741100 | C104: Камате | E104: 0
A105: 5072 | B105: 741200 | C105: Дивиденде | E105: 0
A106: 5073 | B106: 741300 | C106: Повлачење прихода од квази корпорација | E106: 0
A107: 5074 | B107: 741400 | C107: Приход од имовине који припада имаоцима полиса осигурања | E107: 0
A108: 5075 | B108: 741500 | C108: Закуп непроизведене имовине | E108: 0
A109: 5076 | B109: 741600 | C109: Финансијске промене на финансијским лизинзима | E109: 0
A110: 5077 | B110: 742000 | C110: ПРИХОДИ ОД ПРОДАЈЕ ДОБАРА И УСЛУГА (од 5078 до 5081) | D110: =SUM(D111:D114) -> 4,000 | E110: 4,448 | F110: =SUM(F111:F114) -> 0 | G110: 0 | H110: 0 | I110: 0 | J110: 0 | K110: 4,448
A111: 5078 | B111: 742100 | C111: Приходи од продаје добара и услуга или закупа од стране тржишних организација | E111: 0
A112: 5079 | B112: 742200 | C112: Таксе и накнаде | E112: 0
A113: 5080 | B113: 742300 | C113: Споредне продаје добара и услуга које врше државне нетржишне јединице | D113: 4,000 | E113: 4,448 | K113: 4,448
A114: 5081 | B114: 742400 | C114: Импутиране продаје добара и услуга | E114: 0
A115: 5082 | B115: 743000 | C115: НОВЧАНЕ КАЗНЕ И ОДУЗЕТА ИМОВИНСКА КОРИСТ (од 5083 до 5088) | D115: =SUM(D120:D125) -> 0 | E115: 0 | F115: =SUM(F120:F125) -> 0 | G115: 0 | H115: 0 | I115: 0 | J115: 0 | K115: 0
A116: Ознака ОП | B116: Број конта | C116: Опис | D116: Износ планираних прихода и примања | E116: Износ остварених прихода и примања
E117: Укупно (од 6 до 11) | F117: Приходи и примања из буџета | J117: Из донација и помоћи | K117: Из осталих извора
F118: Републике | G118: Аутономне покрајине | H118: Општине / града | I118: ООСО
A119: 1 | B119: 2 | C119: 3 | D119: 4 | E119: 5 | F119: 6 | G119: 7 | H119: 8 | I119: 9 | J119: 10 | K119: 11
A120: 5083 | B120: 743100 | C120: Приходи од новчаних казни за кривична дела | E120: 0
A121: 5084 | B121: 743200 | C121: Приходи од новчаних казни за привредне преступе | E121: 0
A122: 5085 | B122: 743300 | C122: Приходи од новчаних казни за прекршаје | E122: 0
A123: 5086 | B123: 743400 | C123: Приходи од пенала | E123: 0
A124: 5087 | B124: 743500 | C124: Приходи од одузете имовинске користи | E124: 0
A125: 5088 | B125: 743900 | C125: Остале новчане казне, пенали и приходи од одузете имовинске користи | E125: 0
A126: 5089 | B126: 744000 | C126: ДОБРОВОЉНИ ТРАНСФЕРИ ОД ФИЗИЧКИХ И ПРАВНИХ ЛИЦА (5090 + 5091) | D126: =D127+D128 -> 500 | E126: 106 | F126: =F127+F128 -> 0 | G126: 0 | H126: 0 | I126: 0 | J126: 106 | K126: 0
A127: 5090 | B127: 744100 | C127: Текући добровољни трансфери од физичких и правних лица | D127: 500 | E127: 106 | J127: 106
A128: 5091 | B128: 744200 | C128: Капитални добровољни трансфери од физичких и правних лица | E128: 0
A129: 5092 | B129: 745000 | C129: МЕШОВИТИ И НЕОДРЕЂЕНИ ПРИХОДИ (5093) | D129: =D130 -> 0 | E129: 0 | F129: =F130 -> 0 | G129: 0 | H129: 0 | I129: 0 | J129: 0 | K129: 0
A130: 5093 | B130: 745100 | C130: Мешовити и неодређени приходи | E130: 0
A131: 5094 | B131: 770000 | C131: МЕМОРАНДУМСКЕ СТАВКЕ ЗА РЕФУНДАЦИЈУ РАСХОДА (5095 + 5097) | D131: =D132+D134 -> 1,350 | E131: 911 | F131: =F132+F134 -> 0 | G131: 0 | H131: 0 | I131: 911 | J131: 0 | K131: 0
A132: 5095 | B132: 771000 | C132: МЕМОРАНДУМСКЕ СТАВКЕ ЗА РЕФУНДАЦИЈУ РАСХОДА (5096) | D132: =D133 -> 1,350 | E132: 911 | F132: =F133 -> 0 | G132: 0 | H132: 0 | I132: 911 | J132: 0 | K132: 0
A133: 5096 | B133: 771100 | C133: Меморандумске ставке за рефундацију расхода | D133: 1,350 | E133: 911 | I133: 911
A134: 5097 | B134: 772000 | C134: МЕМОРАНДУМСКЕ СТАВКЕ ЗА РЕФУНДАЦИЈУ РАСХОДА ИЗ ПРЕТХОДНЕ ГОДИНЕ (5098) | D134: =D135 -> 0 | E134: 0 | F134: =F135 -> 0 | G134: 0 | H134: 0 | I134: 0 | J134: 0 | K134: 0
A135: 5098 | B135: 772100 | C135: Меморандумске ставке за рефундацију расхода из претходне године | E135: 0
A136: 5099 | B136: 780000 | C136: ТРАНСФЕРИ ИЗМЕЂУ БУЏЕТСКИХ КОРИСНИКА НА ИСТОМ НИВОУ (5100) | D136: =D137 -> 75,464 | E136: =SUM(F136:K136) -> 71,011 | F136: =F137 -> 0 | G136: 0 | H136: 0 | I136: 71,011 | J136: 0 | K136: 0
A137: 5100 | B137: 781000 | C137: ТРАНСФЕРИ ИЗМЕЂУ БУЏЕТСКИХ КОРИСНИКА НА ИСТОМ НИВОУ (5101 + 5102) | D137: =D138+D139 -> 75,464 | E137: 71,011 | F137: =F138+F139 -> 0 | G137: 0 | H137: 0 | I137: 71,011 | J137: 0 | K137: 0
A138: 5101 | B138: 781100 | C138: Трансфери између буџетских корисника на истом нивоу | D138: 75,464 | E138: 71,011 | I138: 71,011
A139: 5102 | B139: 781300 | C139: Трансфери између организација обавезног социјалног осигурања | E139: 0
A140: 5103 | B140: 790000 | C140: ПРИХОДИ ИЗ БУЏЕТА (5104) | D140: =D141 -> 3,920 | E140: 3,919 | F140: =F141 -> 3,919 | G140: 0 | H140: 0 | I140: 0 | J140: 0 | K140: 0
A141: 5104 | B141: 791000 | C141: ПРИХОДИ ИЗ БУЏЕТА (5105) | D141: =D146 -> 3,920 | E141: 3,919 | F141: =F146 -> 3,919 | G141: 0 | H141: 0 | I141: 0 | J141: 0 | K141: 0
A142: Ознака ОП | B142: Број конта | C142: Опис | D142: Износ планираних прихода и примања | E142: Износ остварених прихода и примања
E143: Укупно (од 6 до 11) | F143: Приходи и примања из буџета | J143: Из донација и помоћи | K143: Из осталих извора
F144: Републике | G144: Аутономне покрајине | H144: Општине / града | I144: ООСО
A145: 1 | B145: 2 | C145: 3 | D145: 4 | E145: 5 | F145: 6 | G145: 7 | H145: 8 | I145: 9 | J145: 10 | K145: 11
A146: 5105 | B146: 791100 | C146: Приходи из буџета | D146: 3,920 | E146: 3,919 | F146: 3,919
A147: 5106 | B147: 800000 | C147: ПРИМАЊА ОД ПРОДАЈЕ НЕФИНАНСИЈСКЕ ИМОВИНЕ (5107 + 5114 + 5121 + 5124) | D147: =D148+D155+D162+D165 -> 0 | E147: 0 | F147: =F148+F155+F162+F165 -> 0 | G147: 0 | H147: 0 | I147: 0 | J147: 0 | K147: 0
A148: 5107 | B148: 810000 | C148: ПРИМАЊА ОД ПРОДАЈЕ ОСНОВНИХ СРЕДСТАВА (5108 + 5110 + 5112) | D148: =D149+D151+D153 -> 0 | E148: 0 | F148: =F149+F151+F153 -> 0 | G148: 0 | H148: 0 | I148: 0 | J148: 0 | K148: 0
A149: 5108 | B149: 811000 | C149: ПРИМАЊА ОД ПРОДАЈЕ НЕПОКРЕТНОСТИ (5109) | D149: =D150 -> 0 | E149: 0 | F149: =F150 -> 0 | G149: 0 | H149: 0 | I149: 0 | J149: 0 | K149: 0
A150: 5109 | B150: 811100 | C150: Примања од продаје непокретности | E150: 0
A151: 5110 | B151: 812000 | C151: ПРИМАЊА ОД ПРОДАЈЕ ПОКРЕТНЕ ИМОВИНЕ (5111) | D151: =D152 -> 0 | E151: 0 | F151: =F152 -> 0 | G151: 0 | H151: 0 | I151: 0 | J151: 0 | K151: 0
A152: 5111 | B152: 812100 | C152: Примања од продаје покретне имовине | E152: 0
A153: 5112 | B153: 813000 | C153: ПРИМАЊА ОД ПРОДАЈЕ ОСТАЛИХ ОСНОВНИХ СРЕДСТАВА (5113) | D153: =D154 -> 0 | E153: 0 | F153: =F154 -> 0 | G153: 0 | H153: 0 | I153: 0 | J153: 0 | K153: 0
A154: 5113 | B154: 813100 | C154: Примања од продаје осталих основних средстава | E154: 0
A155: 5114 | B155: 820000 | C155: ПРИМАЊА ОД ПРОДАЈЕ ЗАЛИХА (5115 + 5117 + 5119) | D155: =D156+D158+D160 -> 0 | E155: 0 | F155: =F156+F158+F160 -> 0 | G155: 0 | H155: 0 | I155: 0 | J155: 0 | K155: 0
A156: 5115 | B156: 821000 | C156: ПРИМАЊА ОД ПРОДАЈЕ РОБНИХ РЕЗЕРВИ (5116) | D156: =D157 -> 0 | E156: 0 | F156: =F157 -> 0 | G156: 0 | H156: 0 | I156: 0 | J156: 0 | K156: 0
A157: 5116 | B157: 821100 | C157: Примања од продаје робних резерви | E157: 0
A158: 5117 | B158: 822000 | C158: ПРИМАЊА ОД ПРОДАЈЕ ЗАЛИХА ПРОИЗВОДЊЕ (5118) | D158: =D159 -> 0 | E158: 0 | F158: =F159 -> 0 | G158: 0 | H158: 0 | I158: 0 | J158: 0 | K158: 0
A159: 5118 | B159: 822100 | C159: Примања од продаје залиха производње | E159: 0
A160: 5119 | B160: 823000 | C160: ПРИМАЊА ОД ПРОДАЈЕ РОБЕ ЗА ДАЉУ ПРОДАЈУ (5120) | D160: =D161 -> 0 | E160: 0 | F160: =F161 -> 0 | G160: 0 | H160: 0 | I160: 0 | J160: 0 | K160: 0
A161: 5120 | B161: 823100 | C161: Примања од продаје робе за даљу продају | E161: 0
A162: 5121 | B162: 830000 | C162: ПРИМАЊА ОД ПРОДАЈЕ ДРАГОЦЕНОСТИ (5122) | D162: =D163 -> 0 | E162: 0 | F162: =F163 -> 0 | G162: 0 | H162: 0 | I162: 0 | J162: 0 | K162: 0
A163: 5122 | B163: 831000 | C163: ПРИМАЊА ОД ПРОДАЈЕ ДРАГОЦЕНОСТИ (5123) | D163: =D164 -> 0 | E163: 0 | F163: 0 | G163: 0 | H163: 0 | I163: 0 | J163: 0 | K163: 0
A164: 5123 | B164: 831100 | C164: Примања од продаје драгоцености | E164: 0
A165: 5124 | B165: 840000 | C165: ПРИМАЊА ОД ПРОДАЈЕ ПРИРОДНЕ ИМОВИНЕ (5125 + 5127 + 5129) | D165: =D166+D168+D174 -> 0 | E165: 0 | F165: =F166+F168+F174 -> 0 | G165: 0 | H165: 0 | I165: 0 | J165: 0 | K165: 0
A166: 5125 | B166: 841000 | C166: ПРИМАЊА ОД ПРОДАЈЕ ЗЕМЉИШТА (5126) | D166: =D167 -> 0 | E166: 0 | F166: =F167 -> 0 | G166: 0 | H166: 0 | I166: 0 | J166: 0 | K166: 0
A167: 5126 | B167: 841100 | C167: Примања од продаје земљишта | E167: 0
A168: 5127 | B168: 842000 | C168: ПРИМАЊА ОД ПРОДАЈЕ ПОДЗЕМНИХ БЛАГА (5128) | D168: =D173 -> 0 | E168: 0 | F168: =F173 -> 0 | G168: 0 | H168: 0 | I168: 0 | J168: 0 | K168: 0
A169: Ознака ОП | B169: Број конта | C169: Опис | D169: Износ планираних прихода и примања | E169: Износ остварених прихода и примања
E170: Укупно (од 6 до 11) | F170: Приходи и примања из буџета | J170: Из донација и помоћи | K170: Из осталих извора
F171: Републике | G171: Аутономне покрајине | H171: Општине / града | I171: ООСО
A172: 1 | B172: 2 | C172: 3 | D172: 4 | E172: 5 | F172: 6 | G172: 7 | H172: 8 | I172: 9 | J172: 10 | K172: 11
A173: 5128 | B173: 842100 | C173: Примања од продаје подземних блага | E173: 0
A174: 5129 | B174: 843000 | C174: ПРИМАЊА ОД ПРОДАЈЕ ШУМА И ВОДА (5130) | D174: =D175 -> 0 | E174: 0 | F174: =F175 -> 0 | G174: 0 | H174: 0 | I174: 0 | J174: 0 | K174: 0
A175: 5130 | B175: 843100 | C175: Примања од продаје шума и вода | E175: 0
A176: 5131 | B176: 900000 | C176: ПРИМАЊА ОД ЗАДУЖИВАЊА И ПРОДАЈЕ ФИНАНСИЈСКЕ ИМОВИНЕ (5132 + 5151) | D176: =D177+D200 -> 0 | E176: =SUM(F176:K176) -> 0 | F176: =F177+F200 -> 0 | G176: 0 | H176: 0 | I176: 0 | J176: 0 | K176: 0
A177: 5132 | B177: 910000 | C177: ПРИМАЊА ОД ЗАДУЖИВАЊА (5133 + 5143) | D177: =D178+D188 -> 0 | E177: 0 | F177: =F178+F188 -> 0 | G177: 0 | H177: 0 | I177: 0 | J177: 0 | K177: 0
A178: 5133 | B178: 911000 | C178: ПРИМАЊА ОД ДОМАЋИХ ЗАДУЖИВАЊА (од 5134 до 5142) | D178: =SUM(D179:D187) -> 0 | E178: 0 | F178: =SUM(F179:F187) -> 0 | G178: 0 | H178: 0 | I178: 0 | J178: 0 | K178: 0
A179: 5134 | B179: 911100 | C179: Примања од емитовања домаћих хартија од вредности, изузев акција | E179: 0
A180: 5135 | B180: 911200 | C180: Примања од задуживања од осталих нивоа власти | E180: 0
A181: 5136 | B181: 911300 | C181: Примања од задуживања од јавних финансијских институција у земљи | E181: 0
A182: 5137 | B182: 911400 | C182: Примања од задуживања од пословних банака у земљи | E182: 0
A183: 5138 | B183: 911500 | C183: Примања од задуживања код осталих поверилаца у земљи | E183: 0
A184: 5139 | B184: 911600 | C184: Примања од задуживања од домаћинстава у земљи | E184: 0
A185: 5140 | B185: 911700 | C185: Примања од домаћих финансијских деривата | E185: 0
A186: 5141 | B186: 911800 | C186: Примања од домаћих меница | E186: 0
A187: 5142 | B187: 911900 | C187: Исправка унутрашњег дуга | E187: 0
A188: 5143 | B188: 912000 | C188: ПРИМАЊА ОД ИНОСТРАНОГ ЗАДУЖИВАЊА (од 5144 до 5150) | D188: =SUM(D189:D199) -> 0 | E188: 0 | F188: =SUM(F189:F199) -> 0 | G188: 0 | H188: 0 | I188: 0 | J188: 0 | K188: 0
A189: 5144 | B189: 912100 | C189: Примања од емитовања хартија од вредности, изузев акција, на иностраном финансијском тржишту | E189: 0
A190: 5145 | B190: 912200 | C190: Примања од задуживања од иностраних држава | E190: 0
A191: 5146 | B191: 912300 | C191: Примања од задуживања од мултилатералних институција | E191: 0
A192: 5147 | B192: 912400 | C192: Примања од задуживања од иностраних пословних банака | E192: 0
A193: 5148 | B193: 912500 | C193: Примања од задуживања од осталих иностраних поверилаца | E193: 0
A194: 5149 | B194: 912600 | C194: Примања од иностраних финансијских деривата | E194: 0
A195: Ознака ОП | B195: Број конта | C195: Опис | D195: Износ планираних прихода и примања | E195: Износ остварених прихода и примања
E196: Укупно (од 6 до 11) | F196: Приходи и примања из буџета | J196: Из донација и помоћи | K196: Из осталих извора
F197: Републике | G197: Аутономне покрајине | H197: Општине / града | I197: ООСО
A198: 1 | B198: 2 | C198: 3 | D198: 4 | E198: 5 | F198: 6 | G198: 7 | H198: 8 | I198: 9 | J198: 10 | K198: 11
A199: 5150 | B199: 912900 | C199: Исправка спољног дуга | E199: 0
A200: 5151 | B200: 920000 | C200: ПРИМАЊА ОД ПРОДАЈЕ ФИНАНСИЈСКЕ ИМОВИНЕ (5152 + 5162) | D200: =D201+D211 -> 0 | E200: 0 | F200: =F201+F211 -> 0 | G200: 0 | H200: 0 | I200: 0 | J200: 0 | K200: 0
A201: 5152 | B201: 921000 | C201: ПРИМАЊА ОД ПРОДАЈЕ ДОМАЋЕ ФИНАНСИЈСКЕ ИМОВИНЕ (од 5153 до 5161) | D201: =SUM(D202:D210) -> 0 | E201: 0 | F201: =SUM(F202:F210) -> 0 | G201: 0 | H201: 0 | I201: 0 | J201: 0 | K201: 0
A202: 5153 | B202: 921100 | C202: Примања од продаје домаћих хартија од вредности, изузев акција | E202: 0
A203: 5154 | B203: 921200 | C203: Примања од отплате кредита датих осталим нивоима власти | E203: 0
A204: 5155 | B204: 921300 | C204: Примања од отплате кредита датих домаћим јавним финансијским институцијама | E204: 0
A205: 5156 | B205: 921400 | C205: Примања од отплате кредита домаћим пословним банкама | E205: 0
... 346 more rows

Sheet Obrazac6
A1: РЕПУБЛИЧКИ ФОНД ЗА ЗДРАВСТВЕНО
A2: ОСИГУРАЊЕ - БЕОГРАД | F2: Образац 6
A3: Јована Мариновића 2
A4: СТАЊЕ НЕИЗМИРЕНИХ ОБАВЕЗА ПРЕМА ДОБАВЉАЧИМА (252000) НА ДАН 31.12.2016.
A5: ="ФИЛИЈАЛА: " & Filijala -> ФИЛИЈАЛА: 08 ШАБАЦ
A6: ="ЗДРАВСТВЕНА УСТАНОВА: " & ZU -> ЗДРАВСТВЕНА УСТАНОВА: 00208015 ДЗ МАЛИ ЗВОРНИК
F7: (У хиљадама динара)
A8: Ред. Бр. | C8: НАЗИВ ОБАВЕЗЕ | D8: Стање дуга на дан 31.12.2016. | E8: Доспели дуг на дан 31.12.2016. | F8: Недоспели дуг на дан 31.12.2016.
A9: 1 | C9: 2 | D9: 3=4+5 | E9: 4 | F9: 5
A10: 1. | C10: ЗА ЛЕКОВЕ И ПОМАГАЛА НА НАЛОГ У АПОТЕКАМА | D10: =SUM(D11:D12) -> 0 | E10: =SUM(E11:E12) -> 0 | F10: =SUM(F11:F12) -> 0
A11: 1.1. | C11: ЗА ЛЕКОВЕ НА РЕЦЕПТ | D11: =E11+F11 -> 0
A12: 1.2. | C12: ЗА ПОМАГАЛА НА НАЛОГ | D12: =E12+F12 -> 0
A13: 2. | C13: ЛЕКОВИ | D13: =SUM(D14:D18) -> 569 | E13: =SUM(E14:E18) -> 250 | F13: =SUM(F14:F18) -> 319
A14: 2.1. | C14: ЛЕКОВИ У ЗУ | D14: =E14+F14 -> 569 | E14: 250 | F14: 319
A15: 2.2. | C15: ЦИТОСТАТИЦИ ЛИСТА Б | D15: =E15+F15 -> 0
A16: 2.3. | C16: ЦИТОСТАТИЦИ ПО ПОСЕБНОМ РЕЖИМУ | D16: 0
A17: 2.4. | C17: ЛЕКОВИ ЗА ХЕМОФИЛИЈУ | D17: 0
A18: 2.5. | C18: ОСТАЛИ ЛЕКОВИ (ВАН ЛИСТЕ) | D18: 0
A19: 3. | C19: КРВ И ПРОДУКТИ ОД КРВИ | D19: 0
A20: 4. | C20: УГРАДНИ МАТЕРИЈАЛ | D20: =SUM(D21:D27) -> 0 | E20: =SUM(E21:E27) -> 0 | F20: =SUM(F21:F27) -> 0
A21: 4.1. | C21: УГРАДНИ МАТЕРИЈАЛ У ОРТОПЕДИЈИ | D21: 0
A22: 4.2. | C22: ИМПЛАНТАНТИ ЗА КУКОВЕ И ОСТАЛО | D22: 0
A23: 4.3. | C23: ВАЛВУЛЕ И ОСТАЛИ УГРАДНИ МАТЕРИЈАЛ У КАРДИОХИРУРГИЈИ | D23: 0
A24: 4.4. | C24: ПЕЈСМЕЈКЕРИ | D24: 0
A25: 4.5. | C25: СТЕНТОВИ | D25: 0
A26: 4.6. | C26: ГРАФТОВИ | D26: 0
A27: 4.7. | C27: ОСТАЛИ УГРАДНИ МАТЕРИЈАЛ | D27: 0
A28: 5. | C28: САНИТЕТСКИ И МЕДИЦИНСКИ ПОТРОШНИ МАТЕРИЈАЛ | D28: 773 | E28: 187 | F28: 586
A29: 6. | C29: МАТЕРИЈАЛ ЗА ДИЈАЛИЗУ СА ЛЕКОВИМА (РЕКОРМОН И ЕПРЕКС) | D29: 0
A30: 7. | C30: ИСХРАНА (НАМИРНИЦЕ И УСЛУГЕ) | D30: 0
A31: 8. | C31: ЕНЕРГЕНТИ | D31: =SUM(D32:D36) -> 254 | E31: =SUM(E32:E36) -> 100 | F31: =SUM(F32:F36) -> 154
A32: 8.1. | C32: ДАЉИНСКО ГРЕЈАЊЕ | D32: 0
A33: 8.2. | C33: ГАС | D33: 0
A34: 8.3. | C34: ОБАВЕЗЕ ПРЕМА НИС-У | D34: 52 | F34: 52
A35: 8.4. | C35: ЕЛЕКТРОПРИВРЕДА | D35: 102 | F35: 102
A36: 8.5. | C36: ОБАВЕЗЕ ЗА ОСТАЛЕ ЕНЕРГЕНТЕ | D36: 100 | E36: 100
A37: 9. | C37: ЈАВНО КОМУНАЛНО ПРЕДУЗЕЋЕ | D37: =SUM(D38:D40) -> 135 | E37: =SUM(E38:E40) -> 126 | F37: =SUM(F38:F40) -> 9
A38: 9.1. | C38: ОБАВЕЗЕ ЗА ВОДУ | D38: 135 | E38: 126 | F38: 9
A39: 9.2. | C39: ОБАВЕЗЕ ПРЕМА ПТТ-У | D39: 0
A40: 9.3. | C40: ОБАВЕЗЕ ПРЕМА ОСТАЛИМ ЈКП | D40: 0
A41: 10. | C41: ОСТАЛЕ ОБАВЕЗЕ | D41: 2,502 | E41: 2,200 | F41: 302
A42: 11. | C42: УКУПНЕ ОБАВЕЗЕ - 252000 (1+2+3+4+5+6+7+8+9+10) | D42: =+D10+D13+D19+D20+D28+D29+D30+D31+D37+D41 -> 4,233 | E42: =+E10+E13+E19+E20+E28+E29+E30+E31+E37+E41 -> 2,863 | F42: =+F10+F13+F19+F20+F28+F29+F30+F31+F37+F41 -> 1,370
A44: Напомена: Подаци у овом обрасцу морају бити сложени са подацима у БИЛАНСУ СТАЊА
C47: ОБРАЗАЦ ПОПУНИО: | F47: ОДГОВОРНО ЛИЦЕ:
C48: __________________________ | F48: ___________________
C49: Телефон:__________________________

Sheet Obrazac7
A1: РЕПУБЛИЧКИ ФОНД ЗА ЗДРАВСТВЕНО
A2: ОСИГУРАЊЕ - БЕОГРАД | G2: Образац 7
A3: Јована Мариновића 2
A4: НЕНАПЛАЋЕНА ПОТРАЖИВАЊА ЗДРАВСТВЕНЕ УСТАНОВЕ НА ДАН 31.12.2016. ГОДИНЕ
A5: ="ФИЛИЈАЛА: " & Filijala -> ФИЛИЈАЛА: 08 ШАБАЦ
A6: ="ЗДРАВСТВЕНА УСТАНОВА: " & ZU -> ЗДРАВСТВЕНА УСТАНОВА: 00208015 ДЗ МАЛИ ЗВОРНИК
G7: (У хиљадама динара)
A8: Ред. бр. | C8: Конто | D8: НАЗИВ | G8: 31.12.2016.
A9: 1 | C9: 2 | D9: 3 | G9: 4
A10: I | C10: 122100 | D10: Потраживања по основу продаје и друга потраживања (1+2+3+4+5+6+7) | G10: =SUM(G11:G17) -> 444
A11: 1 | C11: део 122100 | D11: Од РФЗО
A12: 2 | C12: део 122100 | D12: Од Фонда за социјално осигурање војних осигураника
A13: 3 | C13: део 122100 | D13: Од Фонда здравства Црне Горе
A14: 4 | C14: део 122100 | D14: Од Фонда здравства Републике Српске
A15: 5 | C15: део 122100 | D15: Од Дистрикта Брчко
A16: 6 | C16: део 122100 | D16: Од других здравствених установа
A17: 7 | C17: део 122100 | D17: Остала потраживања | G17: 444
A19: Напомена: Подаци у овом обрасцу морају бити сложени са подацима у БИЛАНСУ СТАЊА
A22: ПОДАЦИ О УКУПНОМ БРОЈУ ЗАПОСЛЕНИХ РАДНИКА
A24: Период | D24: Укупан број запослених радника | G24: Укупан број запослених на бази остварених часова рада
D25: На одређено | E25: На неодређено | F25: Укупно
A26: 1 | D26: 2 | E26: 3 | F26: 4=2+3 | G26: 5
A27: 31.12.2015. | D27: 4 | E27: 65 | F27: =SUM(D27:E27) -> 69 | G27: 70
A28: 31.12.2016. | D28: 5 | E28: 58 | F28: =SUM(D28:E28) -> 63 | G28: 60
A32: ОБРАЗАЦ ПОПУНИО: | G32: ОДГОВОРНО ЛИЦЕ:
A33: ______________________ | G33: __________________________
A34: Телефон: | C34: ____________

Sheet K9OOSO
A1: РЕПУБЛИЧКИ ФОНД ЗА ЗДРАВСТВЕНО
A2: ОСИГУРАЊЕ - БЕОГРАД | E2: К9ООСО
A3: Јована Мариновића 2
C5: ОДСТУПАЊА ОД НОВЧАНОГ ТОКА У ПЕРИОДУ 01.01.- 31.12.2016. ГОДИНЕ
A7: ="ФИЛИЈАЛА: " & Filijala -> ФИЛИЈАЛА: 08 ШАБАЦ
A8: ="ЗДРАВСТВЕНА УСТАНОВА: " & ZU -> ЗДРАВСТВЕНА УСТАНОВА: 00208015 ДЗ МАЛИ ЗВОРНИК
E10: у хиљадама (000) динара
A11: Р. Бр. | C11: ОПИС | D11: КОЛОНА УКУПНО | E11: КОЛОНА 9 ООСО
A12: 1 | B12: 2 | C12: 3 | D12: 4 | E12: 5
A13: 1. | C13: ПОЧЕТНО СТАЊЕ СРЕДСТАВА НА ДАН 01.01.2016.Г. | D13: =D14+D15 -> 1,019 | E13: =E14+E15 -> 251
B14: 1.1. | C14: Почетно стање средстава на подрачунима (група 121000) | D14: 1,019 | E14: 251
B15: 1.2. | C15: Почетно стање средстава у благајни (група 121000)
A16: 2. | C16: НОВЧАНИ ПРИЛИВИ У ПЕРИОДУ 01.01.-31.12.2016.Г. | D16: =D17+D18+D19 -> 89,221 | E16: =E17+E18+E19 -> 71,922
B17: 2.1. | C17: Приходи и примања који се исказују у обрасцу бр. 5.(класе 700000, 800000 и 900000) | D17: 89,221 | E17: 71,922
B18: 2.2. | C18: Новчани приливи по основу наплаћеног ПДВ-а
B19: 2.3. | C19: Остали новчани приливи који нису исказани на класама у обрасцу бр. 5.
A20: 3. | C20: НОВЧАНИ ОДЛИВИ У ПЕРИОДУ 01.01.-31.12.2016.Г. | D20: =D21+D22+D23 -> 88,656 | E20: =E21+E22+E23 -> 71,835
B21: 3.1. | C21: Расходи и издаци који се исказују у обрасцу бр.5. (класе 400000, 500000 и 600000) | D21: 88,656 | E21: 71,835
B22: 3.2. | C22: Новчани одливи по основу плаћеног ПДВ-а
B23: 3.3. | C23: Остали новчани одливи који нису исказани на класама у обрасцу бр. 5.
A24: 4. | C24: САЛДО СРЕДСТАВА НА ДАН 31.12.2016.г. (4 = (1+ 2- 3) = (4.1 + 4.2)) | D24: =D13+D16-D20 -> 1,584 | E24: =E13+E16-E20 -> 338
B25: 4.1. | C25: Салдо средстава на подрачунима (група 121000) | D25: 1,584 | E25: 338
B26: 4.2. | C26: Салдо средстава у благајни (група 121000)

Sheet OZPR
A1: РЕПУБЛИЧКИ ФОНД ЗА ЗДРАВСТВЕНО
A2: ОСИГУРАЊЕ - БЕОГРАД
A3: Јована Мариновића 2 | H3: ОЗПР
A7: ФИЛИЈАЛА:
A8: ЗДРАВСТВЕНА УСТАНОВА:
A14: ОБРАЗАЦ ЗА ПАРТИЦИПАЦИЈУ И РЕФУНДАЦИЈЕ
A15: у периоду од 01.01.2016. - 31.12.2016. године
A16: I. УКУПНИ ПРИХОДИ И ПРИМАЊА
H17: у хиљадама (000) динара
A18: Ознака ОП | B18: Број конта | C18: Опис | D18: Приходи по основу партиципације за услуге здравствене заштите и рефундација | E18: Приходи по основу партиципације за лекове издате на рецепт и помагала издатa на налог и рефундација | F18: Приходи по основу укупне партиципације и рефундација | G18: Јавни радови | H18: УКУПНО
A21: 1 | B21: 2 | C21: 3 | D21: 4 | E21: 5 | F21: 6=4+5 | G21: 7 | H21: 8=6+7
A22: 5001 | C22: ТЕКУЋИ ПРИХОДИ И ПРИМАЊА ОД ПРОДАЈЕ НЕФИНАНСИЈСКЕ ИМОВИНЕ (5002) | D22: =D23 -> 568 | E22: =E23 -> 0 | F22: =F23 -> 568 | G22: =G23 -> 911 | H22: =F22+G22 -> 1,479
A23: 5002 | B23: 700000 | C23: ТЕКУЋИ ПРИХОДИ (5003 + 5047 + 5057 + 5069 + 5094 + 5099 + 5103) | D23: =D24+D29 -> 568 | E23: =E24+E29 -> 0 | F23: =F24+F29 -> 568 | G23: =G24+G29 -> 911 | H23: 1,479
A24: 5094 | B24: 770000 | C24: МЕМОРАНДУМСКЕ СТАВКЕ ЗА РЕФУНДАЦИЈУ РАСХОДА (5095 + 5097) | D24: =D25+D27 -> 0 | E24: =E25+E27 -> 0 | F24: =F25+F27 -> 0 | G24: =G25+G27 -> 911 | H24: 911
A25: 5095 | B25: 771000 | C25: МЕМОРАНДУМСКЕ СТАВКЕ ЗА РЕФУНДАЦИЈУ РАСХОДА (5096) | D25: =D26 -> 0 | E25: =E26 -> 0 | F25: =F26 -> 0 | G25: =G26 -> 911 | H25: 911
A26: 5096 | B26: 771100 | C26: Меморандумске ставке за рефундацију расхода | F26: =D26+E26 -> 0 | G26: 911 | H26: 911
A27: 5097 | B27: 772000 | C27: МЕМОРАНДУМСКЕ СТАВКЕ ЗА РЕФУНДАЦИЈУ РАСХОДА ИЗ ПРЕТХОДНЕ ГОДИНЕ (5098) | D27: =D28 -> 0 | E27: =E28 -> 0 | F27: =F28 -> 0 | G27: =G28 -> 0 | H27: 0
A28: 5098 | B28: 772100 | C28: Меморандумске ставке за рефундацију расхода из претходне године | F28: =D28+E28 -> 0 | H28: 0
A29: 5099 | B29: 780000 | C29: ТРАНСФЕРИ ИЗМЕЂУ БУЏЕТСКИХ КОРИСНИКА НА ИСТОМ НИВОУ (5100) | D29: =D30 -> 568 | E29: 0 | F29: 568 | G29: 0 | H29: 568
A30: 5100 | B30: 781000 | C30: ТРАНСФЕРИ ИЗМЕЂУ БУЏЕТСКИХ КОРИСНИКА НА ИСТОМ НИВОУ (5101 + 5102) | D30: 568 | E30: 0 | F30: 568 | G30: 0 | H30: 568
A31: 5101 | B31: 781100 | C31: Трансфери између буџетских корисника на истом нивоу | D31: 568 | F31: =D31+E31 -> 568 | H31: 568
A32: 5171 | C32: УКУПНИ ПРИХОДИ И ПРИМАЊА (5001) | D32: =D22 -> 568 | E32: =E22 -> 0 | F32: =F22 -> 568 | G32: =G22 -> 911 | H32: 1,479
A35: II. УКУПНИ РАСХОДИ И ИЗДАЦИ
A37: Ознака ОП | B37: Број конта | C37: Опис | D37: Расходи и издаци по основу укупне партиципације, рефундација и јавних радова
A40: 1 | B40: 2 | C40: 3 | D40: 4
A41: 5172 | C41: ТЕКУЋИ РАСХОДИ И ИЗДАЦИ ЗА НЕФИНАНСИЈСКЕ ИМОВИНЕ (5173 + 5341) | D41: =D42+D222 -> 1,479
A42: 5173 | B42: 400000 | C42: ТЕКУЋИ РАСХОДИ (5174 + 5196 + 5241 + 5256 + 5280 + 5293 + 5309 + 5324) | D42: =D43+D65+D114+D129+D157+D170+D186+D201 -> 1,479
A43: 5174 | B43: 410000 | C43: РАСХОДИ ЗА ЗАПОСЛЕНЕ (5175 + 5177 + 5181 + 5183 + 5188 + 5190 + 5192 + 5194) | D43: =D44+D46+D50+D52+D57+D59+D61+D63 -> 908
A44: 5175 | B44: 411000 | C44: ПЛАТЕ, ДОДАЦИ И НАКНАДЕ ЗАПОСЛЕНИХ (ЗАРАДЕ) (5176) | D44: =D45 -> 738
A45: 5176 | B45: 411100 | C45: Плате, додаци и накнаде запослених | D45: 738
A46: 5177 | B46: 412000 | C46: СОЦИЈАЛНИ ДОПРИНОСИ НА ТЕРЕТ ПОСЛОДАВЦА (од 5178 до 5180) | D46: =SUM(D47:D49) -> 133
A47: 5178 | B47: 412100 | C47: Допринос за пензијско и инвалидско осигурање | D47: 89
A48: 5179 | B48: 412200 | C48: Допринос за здравствено осигурање | D48: 38
A49: 5180 | B49: 412300 | C49: Допринос за незапосленост | D49: 6
A50: 5181 | B50: 413000 | C50: НАКНАДЕ У НАТУРИ (5182) | D50: =D51 -> 0
A51: 5182 | B51: 413100 | C51: Накнаде у натури
A52: 5183 | B52: 414000 | C52: СОЦИЈАЛНА ДАВАЊА ЗАПОСЛЕНИМА (од 5184 до 5187) | D52: =SUM(D53:D56) -> 0
A53: 5184 | B53: 414100 | C53: Исплата накнада за време одсуствовања с посла на терет фондова
A54: 5185 | B54: 414200 | C54: Расходи за образовање деце запослених
A55: 5186 | B55: 414300 | C55: Отпремнине и помоћи
A56: 5187 | B56: 414400 | C56: Помоћ у медицинском лечењу запосленог или чланова уже породице и друге помоћи запосленом
A57: 5188 | B57: 415000 | C57: НАКНАДА ТРОШКОВА ЗА ЗАПОСЛЕНЕ (5189) | D57: =D58 -> 37
A58: 5189 | B58: 415100 | C58: Накнаде трошкова за запослене | D58: 37
A59: 5190 | B59: 416000 | C59: НАГРАДЕ ЗАПОСЛЕНИМА И ОСТАЛИ ПОСЕБНИ РАСХОДИ (5191) | D59: =D60 -> 0
A60: 5191 | B60: 416100 | C60: Награде запосленима и остали посебни расходи
A61: 5192 | B61: 417000 | C61: ПОСЛАНИЧКИ ДОДАТАК (5193) | D61: =D62 -> 0
A62: 5193 | B62: 417100 | C62: Посланички додатак
A63: 5194 | B63: 418000 | C63: СУДИЈСКИ ДОДАТАК (5195) | D63: =D64 -> 0
A64: 5195 | B64: 418100 | C64: Судијски додатак
A65: 5196 | B65: 420000 | C65: КОРИШЋЕЊЕ УСЛУГА И РОБА (5197 + 5205 + 5211 + 5220 + 5228 + 5231) | D65: =D66+D78+D84+D93+D101+D104 -> 571
A66: 5197 | B66: 421000 | C66: СТАЛНИ ТРОШКОВИ (од 5198 до 5204) | D66: =SUM(D67:D77) -> 1
A67: 5198 | B67: 421100 | C67: Трошкови платног промета и банкарских услуга | D67: 1
A68: 5199 | B68: 421200 | C68: Енергетске услуге
A69: Ознака ОП | B69: Број конта | C69: Опис | D69: Расходи и издаци по основу укупне партиципације, рефундација и јавних радова
A72: 1 | B72: 2 | C72: 3 | D72: 4
A73: 5200 | B73: 421300 | C73: Комуналне услуге
A74: 5201 | B74: 421400 | C74: Услуге комуникација
A75: 5202 | B75: 421500 | C75: Трошкови осигурања
A76: 5203 | B76: 421600 | C76: Закуп имовине и опреме
A77: 5204 | B77: 421900 | C77: Остали трошкови
A78: 5205 | B78: 422000 | C78: ТРОШКОВИ ПУТОВАЊА (од 5206 до 5210) | D78: =SUM(D79:D83) -> 0
A79: 5206 | B79: 422100 | C79: Трошкови службених путовања у земљи
A80: 5207 | B80: 422200 | C80: Трошкови службених путовања у иностранство
A81: 5208 | B81: 422300 | C81: Трошкови путовања у оквиру редовног рада
A82: 5209 | B82: 422400 | C82: Трошкови путовања ученика
A83: 5210 | B83: 422900 | C83: Остали трошкови транспорта
A84: 5211 | B84: 423000 | C84: УСЛУГЕ ПО УГОВОРУ (од 5212 до 5219) | D84: =SUM(D85:D92) -> 0
A85: 5212 | B85: 423100 | C85: Административне услуге
A86: 5213 | B86: 423200 | C86: Компјутерске услуге
A87: 5214 | B87: 423300 | C87: Услуге образовања и усавршавања запослених
A88: 5215 | B88: 423400 | C88: Услуге информисања
A89: 5216 | B89: 423500 | C89: Стручне услуге
A90: 5217 | B90: 423600 | C90: Услуге за домаћинство и угоститељство
A91: 5218 | B91: 423700 | C91: Репрезентација
A92: 5219 | B92: 423900 | C92: Остале опште услуге
A93: 5220 | B93: 424000 | C93: СПЕЦИЈАЛИЗОВАНЕ УСЛУГЕ (од 5221 до 5227) | D93: =SUM(D94:D100) -> 0
A94: 5221 | B94: 424100 | C94: Пољопривредне услуге
A95: 5222 | B95: 424200 | C95: Услуге образовања, културе и спорта
A96: 5223 | B96: 424300 | C96: Медицинске услуге
A97: 5224 | B97: 424400 | C97: Услуге одржавања аутопутева
A98: 5225 | B98: 424500 | C98: Услуге одржавања националних паркова и природних површина
A99: 5226 | B99: 424600 | C99: Услуге очувања животне средине, науке и геодетске услуге
A100: 5227 | B100: 424900 | C100: Остале специјализоване услуге
A101: 5228 | B101: 425000 | C101: ТЕКУЋЕ ПОПРАВКЕ И ОДРЖАВАЊЕ (5229 + 5230) | D101: =D102+D103 -> 568
A102: 5229 | B102: 425100 | C102: Текуће поправке и одржавање зграда и објеката
A103: 5230 | B103: 425200 | C103: Текуће поправке и одржавање опреме | D103: 568
A104: 5231 | B104: 426000 | C104: МАТЕРИЈАЛ (од 5232 до 5240) | D104: =SUM(D105:D113) -> 2
A105: 5232 | B105: 426100 | C105: Административни материјал | D105: 2
A106: 5233 | B106: 426200 | C106: Материјали за пољопривреду
A107: 5234 | B107: 426300 | C107: Материјали за образовање и усавршавање запослених
A108: 5235 | B108: 426400 | C108: Материјали за саобраћај
A109: 5236 | B109: 426500 | C109: Материјали за очување животне средине и науку
A110: 5237 | B110: 426600 | C110: Материјали за образовање, културу и спорт
A111: 5238 | B111: 426700 | C111: Медицински и лабораторијски материјали
A112: 5239 | B112: 426800 | C112: Материјали за одржавање хигијене и угоститељство
A113: 5240 | B113: 426900 | C113: Материјали за посебне намене
A114: 5241 | B114: 430000 | C114: АМОРТИЗАЦИЈА И УПОТРЕБА СРЕДСТАВА ЗА РАД (5242 + 5246 + 5248 + 5250 + 5254) | D114: =D115+D119+D121+D123+D127 -> 0
A115: 5242 | B115: 431000 | C115: АМОРТИЗАЦИЈА НЕКРЕТНИНА И ОПРЕМЕ (од 5243 до 5245) | D115: =SUM(D116:D118) -> 0
A116: 5243 | B116: 431100 | C116: Амортизација зграда и грађевинскиx објеката
A117: 5244 | B117: 431200 | C117: Амортизација опреме
A118: 5245 | B118: 431300 | C118: Амортизација осталих некретнина и опреме
A119: 5246 | B119: 432000 | C119: АМОРТИЗАЦИЈА КУЛТИВИСАНЕ ИМОВИНЕ (5247) | D119: =D120 -> 0
A120: 5247 | B120: 432100 | C120: Амортизација култивисане опреме
A121: 5248 | B121: 433000 | C121: УПОТРЕБА ДРАГОЦЕНОСТИ (5249) | D121: =D122 -> 0
A122: 5249 | B122: 433100 | C122: Употреба драгоцености
A123: 5250 | B123: 434000 | C123: УПОТРЕБА ПРИРОДНЕ ИМОВИНЕ (од 5251 до 5253) | D123: =SUM(D124:D126) -> 0
A124: 5251 | B124: 434100 | C124: Употреба земљишта
A125: 5252 | B125: 434200 | C125: Употреба подземног блага
A126: 5253 | B126: 434300 | C126: Употреба шума и вода
A127: 5254 | B127: 435000 | C127: АМОРТИЗАЦИЈА НЕМАТЕРИЈАЛНЕ ИМОВИНЕ (5255) | D127: =D128 -> 0
A128: 5255 | B128: 435100 | C128: Амортизација нематеријалне имовине
A129: 5256 | B129: 440000 | C129: ОТПЛАТА КАМАТА И ПРАТЕЋИ ТРОШКОВИ ЗАДУЖИВАЊА (5257 + 5267 + 5274 + 5276) | D129: =D130+D140+D151+D153 -> 0
A130: 5257 | B130: 441000 | C130: ОТПЛАТЕ ДОМАЋИХ КАМАТА (од 5258 до 5266) | D130: =SUM(D131:D139) -> 0
A131: 5258 | B131: 441100 | C131: Отплата камата на домаће хартије од вредности
A132: 5259 | B132: 441200 | C132: Отплата камата осталим нивоима власти
A133: 5260 | B133: 441300 | C133: Отплата камата домаћим јавним финансијским институцијама
A134: 5261 | B134: 441400 | C134: Отплата камата домаћим пословним банкама
A135: 5262 | B135: 441500 | C135: Отплата камата осталим домаћим кредиторима
A136: 5263 | B136: 441600 | C136: Отплата камата домаћинствима у земљи
A137: 5264 | B137: 441700 | C137: Отплата камата на домаће финансијске деривате
A138: 5265 | B138: 441800 | C138: Отплата камата на домаће менице
A139: 5266 | B139: 441900 | C139: Финансијске промене на финансијским лизинзима
A140: 5267 | B140: 442000 | C140: ОТПЛАТА СТРАНИХ КАМАТА (од 5268 до 5273) | D140: =SUM(D141:D150) -> 0
A141: 5268 | B141: 442100 | C141: Отплата камата на хартије од вредности емитоване на иностраном финансијском тржишту
A142: 5269 | B142: 442200 | C142: Отплата камата страним владама
A143: 5270 | B143: 442300 | C143: Отплата камата мултилатералним институцијама
A144: 5271 | B144: 442400 | C144: Отплата камата страним пословним банкама
A145: Ознака ОП | B145: Број конта | C145: Опис | D145: Расходи и издаци по основу укупне партиципације, рефундација и јавних радова
A148: 1 | B148: 2 | C148: 3 | D148: 4
A149: 5272 | B149: 442500 | C149: Отплата камата осталим страним кредиторима
A150: 5273 | B150: 442600 | C150: Отплата камата на стране финансијске деривате
A151: 5274 | B151: 443000 | C151: ОТПЛАТА КАМАТА ПО ГАРАНЦИЈАМА (5275) | D151: =D152 -> 0
A152: 5275 | B152: 443100 | C152: Отплата камата по гаранцијама
A153: 5276 | B153: 444000 | C153: ПРАТЕЋИ ТРОШКОВИ ЗАДУЖИВАЊА (од 5277 до 5279) | D153: =SUM(D154:D156) -> 0
A154: 5277 | B154: 444100 | C154: Негативне курсне разлике
A155: 5278 | B155: 444200 | C155: Казне за кашњење
A156: 5279 | B156: 444300 | C156: Остали пратећи трошкови задуживања
A157: 5280 | B157: 450000 | C157: СУБВЕНЦИЈЕ (5281 + 5284 + 5287 + 5290) | D157: =D158+D161+D164+D167 -> 0
A158: 5281 | B158: 451000 | C158: СУБВЕНЦИЈЕ ЈАВНИМ НЕФИНАНСИЈСКИМ ПРЕДУЗЕЋИМА И ОРГАНИЗАЦИЈАМА (5282 + 5283) | D158: =D159+D160 -> 0
A159: 5282 | B159: 451100 | C159: Текуће субвенције јавним нефинансијским предузећима и организацијама
A160: 5283 | B160: 451200 | C160: Капиталне субвенције јавним нефинансијским предузећима и организацијама
A161: 5284 | B161: 452000 | C161: СУБВЕНЦИЈЕ ПРИВАТНИМ ФИНАНСИЈСКИМ ИНСТИТУЦИЈАМА (5285 + 5286) | D161: =D162+D163 -> 0
A162: 5285 | B162: 452100 | C162: Текуће субвенције приватним финансијским институцијама
A163: 5286 | B163: 452200 | C163: Капиталне субвенције приватним финансијским институцијама
A164: 5287 | B164: 453000 | C164: СУБВЕНЦИЈЕ ЈАВНИМ ФИНАНСИЈСКИМ ИНСТИТУЦИЈАМА (5288 + 5289) | D164: =D165+D166 -> 0
A165: 5288 | B165: 453100 | C165: Текуће субвенције јавним финансијским институцијама
A166: 5289 | B166: 453200 | C166: Капиталне субвенције јавним финансијским институцијама
A167: 5290 | B167: 454000 | C167: СУБВЕНЦИЈЕ ПРИВАТНИМ ПРЕДУЗЕЋИМА (5291 + 5292) | D167: =D168+D169 -> 0
A168: 5291 | B168: 454100 | C168: Текуће субвенције приватним предузећима
A169: 5292 | B169: 454200 | C169: Капиталне субвенције приватним предузећима
A170: 5293 | B170: 460000 | C170: ДОНАЦИЈЕ, ДОТАЦИЈЕ И ТРАНСФЕРИ (5294 + 5297 + 5300 + 5303 + 5306) | D170: =D171+D174+D177+D180+D183 -> 0
A171: 5294 | B171: 461000 | C171: ДОНАЦИЈЕ СТРАНИМ ВЛАДАМА (5295 + 5296) | D171: =D172+D173 -> 0
A172: 5295 | B172: 461100 | C172: Текуће донације страним владама
A173: 5296 | B173: 461200 | C173: Капиталне донације страним владама
A174: 5297 | B174: 462000 | C174: ДОТАЦИЈЕ МЕЂУНАРОДНИМ ОРГАНИЗАЦИЈАМА (5298 + 5299) | D174: =D175+D176 -> 0
A175: 5298 | B175: 462100 | C175: Текуће дотације међународним организацијама
A176: 5299 | B176: 462200 | C176: Капиталне дотације међународним организацијама
A177: 5300 | B177: 463000 | C177: ТРАНСФЕРИ ОСТАЛИМ НИВОИМА ВЛАСТИ (5301 + 5302) | D177: =D178+D179 -> 0
A178: 5301 | B178: 463100 | C178: Текући трансфери осталим нивоима власти
A179: 5302 | B179: 463200 | C179: Капитални трансфери осталим нивоима власти
A180: 5303 | B180: 464000 | C180: ДОТАЦИЈЕ ОРГАНИЗАЦИЈАМА ОБАВЕЗНОГ СОЦИЈАЛНОГ ОСИГУРАЊА (5304 + 5305) | D180: =D181+D182 -> 0
A181: 5304 | B181: 464100 | C181: Текуће дотације организацијама обавезног социјалног осигурања
A182: 5305 | B182: 464200 | C182: Капиталне дотације организацијама обавезног социјалног осигурања
A183: 5306 | B183: 465000 | C183: ОСТАЛЕ ДОТАЦИЈЕ И ТРАНСФЕРИ (5307 + 5308) | D183: =D184+D185 -> 0
A184: 5307 | B184: 465100 | C184: Остале текуће дотације и трансфери
A185: 5308 | B185: 465200 | C185: Остале капиталне дотације и трансфери
A186: 5309 | B186: 470000 | C186: СОЦИЈАЛНО ОСИГУРАЊЕ И СОЦИЈАЛНА ЗАШТИТА (5310 + 5314) | D186: =D187+D191 -> 0
A187: 5310 | B187: 471000 | C187: ПРАВА ИЗ СОЦИЈАЛНОГ ОСИГУРАЊА (ОРГАНИЗАЦИЈЕ ОБАВЕЗНОГ СОЦИЈАЛНОГ ОСИГУРАЊА) (од 5311 до 5313) | D187: =SUM(D188:D190) -> 0
A188: 5311 | B188: 471100 | C188: Права из социјалног осигурања која се исплаћују непосредно домаћинствима
A189: 5312 | B189: 471200 | C189: Права из социјалног осигурања која се исплаћују непосредно пружаоцима услуга
A190: 5313 | B190: 471900 | C190: Трансфери другим организацијама обавезног социјалног осигурања за доприносе за осигурање
A191: 5314 | B191: 472000 | C191: НАКНАДЕ ЗА СОЦИЈАЛНУ ЗАШТИТУ ИЗ БУЏЕТА (од 5315 до 5323) | D191: =SUM(D192:D200) -> 0
A192: 5315 | B192: 472100 | C192: Накнаде из буџета у случају болести и инвалидности
A193: 5316 | B193: 472200 | C193: Накнаде из буџета за породиљско одсуство
A194: 5317 | B194: 472300 | C194: Накнаде из буџета за децу и породицу
A195: 5318 | B195: 472400 | C195: Накнаде из буџета за случај незапослености
A196: 5319 | B196: 472500 | C196: Старосне и породичне пензије из буџета
A197: 5320 | B197: 472600 | C197: Накнаде из буџета у случају смрти
A198: 5321 | B198: 472700 | C198: Накнаде из буџета за образовање, културу, науку и спорт
A199: 5322 | B199: 472800 | C199: Накнаде из буџета за становање и живот
A200: 5323 | B200: 472900 | C200: Остале накнаде из буџета
A201: 5324 | B201: 480000 | C201: ОСТАЛИ РАСХОДИ (5325 + 5328 + 5332 + 5334 + 5337 + 5339) | D201: =D202+D205+D209+D211+D218+D220 -> 0
A202: 5325 | B202: 481000 | C202: ДОТАЦИЈЕ НЕВЛАДИНИМ ОРГАНИЗАЦИЈАМА (5326 + 5327) | D202: =D203+D204 -> 0
A203: 5326 | B203: 481100 | C203: Дотације непрофитним организацијама које пружају помоћ домаћинствима
A204: 5327 | B204: 481900 | C204: Дотације осталим непрофитним институцијама
A205: 5328 | B205: 482000 | C205: ПОРЕЗИ, ОБАВЕЗНЕ ТАКСЕ И КАЗНЕ (од 5329 до 5331) | D205: =SUM(D206:D208) -> 0
A206: 5329 | B206: 482100 | C206: Остали порези
A207: 5330 | B207: 482200 | C207: Обавезне таксе
A208: 5331 | B208: 482300 | C208: Новчане казне и пенали
A209: 5332 | B209: 483000 | C209: НОВЧАНЕ КАЗНЕ И ПЕНАЛИ ПО РЕШЕЊУ СУДОВА (5333) | D209: =D210 -> 0
A210: 5333 | B210: 483100 | C210: Новчане казне и пенали по решењу судова
A211: 5334 | B211: 484000 | C211: НАКНАДА ШТЕТЕ ЗА ПОВРЕДЕ ИЛИ ШТЕТУ НАСТАЛУ УСЛЕД ЕЛЕМЕНТАРНИХ НЕПОГОДА ИЛИ ДРУГИХ ПРИРОДНИХ УЗРОКА (5335 + 5336) | D211: =D212+D213 -> 0
A212: 5335 | B212: 484100 | C212: Накнада штете за повреде или штету насталу услед елементарних непогода
A213: 5336 | B213: 484200 | C213: Накнада штете од дивљачи
A214: Ознака ОП | B214: Број конта | C214: Опис | D214: Расходи и издаци по основу укупне партиципације, рефундација и јавних радова
A217: 1 | B217: 2 | C217: 3 | D217: 4
A218: 5337 | B218: 485000 | C218: НАКНАДА ШТЕТЕ ЗА ПОВРЕДЕ ИЛИ ШТЕТУ НАНЕТУ ОД СТРАНЕ ДРЖАВНИХ ОРГАНА (5338) | D218: =D219 -> 0
A219: 5338 | B219: 485100 | C219: Накнада штете за повреде или штету нанетих од стране државних органа
A220: 5339 | B220: 489000 | C220: РАСХОДИ КОЈИ СЕ ФИНАНСИРАЈУ ИЗ СРЕДСТАВА ЗА РЕАЛИЗАЦИЈУ НАЦИОНАЛНОГ ИНВЕСТИЦИОНОГ ПЛАНА (5340) | D220: =D221 -> 0
A221: 5340 | B221: 489100 | C221: Расходи који се финансирају из средстава за реализацију националног инвестиционог плана
... 99 more rows

Sheet Transferi
A1: РЕПУБЛИЧКИ ФОНД ЗА ЗДРАВСТВЕНО
A2: ОСИГУРАЊЕ - БЕОГРАД
A3: Јована Мариновића 2 | F3: ТР
A7: ="ФИЛИЈАЛА: " & Filijala -> ФИЛИЈАЛА: 08 ШАБАЦ
A8: ="ЗДРАВСТВЕНА УСТАНОВА: " & ZU -> ЗДРАВСТВЕНА УСТАНОВА: 00208015 ДЗ МАЛИ ЗВОРНИК
A9: ТРАНСФЕРИ ИЗМЕЂУ БУЏЕТСКИХ КОРИСНИКА НА ИСТОМ НИВОУ - конто 781100 (ООСО) у периоду од 01.01.2016. - 31.12.2016. године
F10: у хиљадама (000) динара
A11: Р. бр. | B11: Назив | C11: Трансфери за услуге здравствене заштите | D11: Трансфери за лекове издате на рецепт | E11: Трансфери за помагала издата на налог | F11: УКУПНО
B12: 0 | C12: 1 | D12: 2 | E12: 3 | F12: 4=1+2+3
A13: 1 | B13: 781100 - Трансфери између буџетских корисника на истом нивоу (ООСО) | F13: =C13+D13+E13 -> 0
A15: Напомена: 1. Износ исказан у колони 4 - УКУПНО увећан за укупну партиципацију из обрасца ОЗПР (колона 6) мора бити једнак износу на ОП 5101 у колони 9 Обрасца 5.
A16: 2. У колону 1 - Трансфери за услуге здравствене заштите уноси се износ трансфера за здравствене услуге примарне и стоматолошке здравствене заштите у здравственим установама које имају апотеку у саставу.
A18: РАСХОДИ ЗА ЛЕКОВЕ ИЗДАТЕ НА РЕЦЕПТ И ПОМАГАЛА ИЗДАТА НА НАЛОГ у периоду од 01.01.2016. - 31.12.2016. године
C20: у хиљадама (000) динара
A21: Р. бр. | B21: Назив | C21: Лекови издати на рецепт и помагала издата на налог
B22: 0 | C22: 1
A23: 1 | B23: 426751 - Лекови на рецепт
A26: Напомена: Образац ТР попуњавају само апотеке и здравствене установе које у свом саставу имају апотеку.

Sheet BO
A1: РЕПУБЛИЧКИ ФОНД ЗА ЗДРАВСТВЕНО
A2: ОСИГУРАЊЕ - БЕОГРАД | H2: БО
A3: Јована Мариновића 2
A5: ОБРАЗАЦ БО - ИСПЛАЋЕНА И РЕФУНДИРАНА СРЕДСТВА КОЈА СЕ ОДНОСЕ НА НАКНАДЕ КОЈЕ СЕ ЕВИДЕНТИРАЈУ У ОКВИРУ ГРУПЕ 414100
D6: у периоду од 01.01.2016. - 31.12.2016. године
A7: ="ФИЛИЈАЛА: " & Filijala -> ФИЛИЈАЛА: 08 ШАБАЦ
A8: ="ЗДРАВСТВЕНА УСТАНОВА: " & ZU -> ЗДРАВСТВЕНА УСТАНОВА: 00208015 ДЗ МАЛИ ЗВОРНИК
H10: у хиљадама (000) динара
A11: Р. бр. | B11: Извор финансирања | C11: 771100 исказан у обрасцу 5ГО | D11: Пренета средства за накнаде које нису исказане у приходима (сторниран расход извршен у текућој години) | E11: Укупно пренета средства за накнаде | F11: Исплате накнада исказаних у обрасцу 5ГО на 414100 | G11: Исплате накнада које нису исказане у расходима | H11: Укупно исплаћене накнаде
B12: 0 | C12: 1 | D12: 2 | E12: 3=1+2 | F12: 4 | G12: 5 | H12: 6=4+5
A13: 1 | B13: УКУПНА СРЕДСТВА (1.1-1.5) | C13: =C14+C15+C16+C17+C18 -> 0 | D13: 3,549 | E13: 3,549 | F13: 0 | G13: 3,549 | H13: 3,549
A14: 1.1 | B14: РФЗО | D14: 280 | E14: =C14+D14 -> 280 | G14: 280 | H14: =F14+G14 -> 280
A15: 1.2 | B15: ФОНД ПИО | E15: =C15+D15 -> 0 | H15: =F15+G15 -> 0
A16: 1.3 | B16: СЕКРЕТАРИЈАТ ЗА СОЦИЈАЛНУ И ДЕЧИЈУ ЗАШТИТУ | D16: 3,269 | E16: =C16+D16 -> 3,269 | G16: 3,269 | H16: =F16+G16 -> 3,269
A17: 1.4 | B17: ОПШТИНА / ГРАД | E17: =C17+D17 -> 0 | H17: =F17+G17 -> 0
A18: 1.5 | B18: ОСТАЛО | E18: =C18+D18 -> 0 | H18: =F18+G18 -> 0
A20: Напомена: Овим обрасцем обухваћена су средства за:
A21: * накнаде за боловање преко 30 дана које рефундира РФЗО
A22: * накнаде за породиљско одсуство које рефундира Секретаријат за социјалну и дечију заштиту
A23: * накнаде за инвалиде II категорије које рефундира Фонд ПИО
A24: * накнаде за 35% за трудничко боловање

Sheet Kontrola
A1: Logicka Kontrola
A3: Nema gresaka!!!!!
A4: Kraj kontrole
